{"text_format":"1","workbook":"xlsx","n_sheets":15,"sheets":["WDM-JUN","WDM-SEN","WDM-XL","WDM-XL18","WDMOpen","EDM-JUN","EDM-SEN","EDM-XL","EDM-XL18","EDMOpen","EEM-JUN","EEM-SEN","EEM-XL","EEM-XL18","EEMOpen"],"not_rendered":{"charts":0,"images":0,"macros":0,"external_links":0,"defined_names":15,"comments":0,"pivot_tables":0},"unopened":[],"bounds":{"document_bytes":16777216,"sheet_cells":100000,"rows_first":2000,"rows_last":500,"rows_between":2000,"halvings":0,"cell_chars":16384,"cell_head_chars":4096},"cells_cut":0,"cells_raw":0,"read":"whole","date_system":"1900"}

{"sheet":"WDM-JUN","index":0,"n_rows":149,"n_cols":19,"rows_kept":149,"cut":false,"hidden":false,"merged":[[6,16,6,17]]}
["DSKD  69. Deutsche Meisterschaft und 19. Europameisterschaft 2017 Mettingen  ESKD"]
["  DM - Wertungsläufe in der JUNIOR - Klasse  "]
["10 Endlauf-Teilnehmer",null,null,null,null,null,null,null,null,null,null,null,null,null,null,null,null,null,"Bestzeit"]
["Wird der Lauf gewertet?   dann 0 oder 1 eintragen",null,null,null,null,null,0,1,1,1,1,1,null,null,null,null,null,null,"in Vorläufen"]
[null,null,null,null,"Bestzeit je Lauf",null,{"$f":"MIN(G9:G149)","v":37.92},38.07,37.909999999999997,37.89,37.89,100,null,null,null,null,null,null,{"$f":"MIN((IF(G4=1,G5,99)),        (IF(H4=1,H5,99)),   (IF(I4=1,I5,99)),  (IF(J4=1,J5,99)), (IF(K4=1,K5,99)),  (IF(L4=1,L5,99))       )","v":37.89}]
[null,null,null,null,"Mittelwert je Lauf",null,{"$f":"IF(G5>0,AVERAGE(G9:G149),0)","v":38.507857142857141},38.551785714285714,38.334444444444451,38.486428571428576,38.491785714285705,100]
["Start\nNummer","Gruppe","startet","Name","Vorname","Verein","Lauf 1","Lauf 2","Lauf 3","Lauf 4","Lauf 5","Lauf 6","Summe der gewerteten Läufe",null,"Platz",null,"Mittelwert",null,"Platz"]
[]
[124,"JUN",null,"Meyhoff","Moritz","Jugendclub Mettinger SK-Derby",38.200000000000003,38.08,37.94,37.89,37.89,null,{"$f":"(G9*$G$4+H9*$H$4+I9*$I$4+J9*$J$4+K9*$K$4+L9*$L$4)","v":151.80000000000001},{"$f":"IF(M9>0,M9*-1,-1000)","v":-151.80000000000001},{"$f":"IF(M9>0,RANK(N9,N:N),0)","v":1},null,{"$f":"IF((G9*$G$4+H9*$H$4+I9*$I$4+J9*$J$4+K9*$K$4+L9*$L$4)>0,(G9*$G$4+H9*$H$4+I9*$I$4+J9*$J$4+K9*$K$4+L9*$L$4)/(IF(G9>0,1*$G$4,0)+IF(H9>0,1*$H$4,0)+IF(I9>0,1*$I$4,0)+IF(J9>0,1*$J$4,0)+IF(K9>0,1*$K$4,0)+IF(L9>0,1*$L$4,0)),0)","v":37.950000000000003},{"$f":"IF(Q9>0,Q9*-1,-1000)","v":-37.950000000000003},{"$f":"IF(Q9>0,RANK(R9,R:R),0)","v":1}]
[113,"JUN",null,"Paschedag","Mia","Seifenkistengruppe Stromberg",38.24,38.130000000000003,37.909999999999997,38.11,38.159999999999997,null,152.31,-152.31,2,null,38.077500000000001,-38.077500000000001,2]
[121,"JUN",null,"Plath","Marvin","Jugendclub Mettinger SK-Derby",38.54,38.090000000000003,38.04,38.26,38.08,null,152.46999999999997,-152.46999999999997,3,null,38.117499999999993,-38.117499999999993,3]
[114,"JUN",null,"Lampe","Ida","Jugendclub Mettinger SK-Derby",38.270000000000003,38.35,37.92,38.159999999999997,38.19,null,152.62,-152.62,4,null,38.155000000000001,-38.155000000000001,4]
[120,"JUN",null,"Reinstein","Carlos","MSVg Gerolzhofen",38.43,38.17,38.1,38,38.450000000000003,null,152.72000000000003,-152.72000000000003,5,null,38.180000000000007,-38.180000000000007,5]
[112,"JUN",null,"Klein","Mika","SKK Moselflitzer Klüsserath",38.549999999999997,38.07,38.08,38.19,38.54,null,152.88,-152.88,6,null,38.22,-38.22,6]
[106,"JUN",null,"Klimpel","Beatrice","Power Crew Berlin",38.26,38.380000000000003,38.15,38.119999999999997,38.26,null,152.91,-152.91,7,null,38.227499999999999,-38.227499999999999,7]
[104,"JUN",null,"Freudenstein","Romy","Jugendclub Mettinger SK-Derby",37.92,38.130000000000003,38.159999999999997,38.39,38.340000000000003,null,153.01999999999998,-153.01999999999998,8,null,38.254999999999995,-38.254999999999995,8]
[127,"JUN",null,"Schleuß","Melina","Power Crew Berlin",38.25,38.4,38.44,38.15,38.130000000000003,null,153.12,-153.12,9,null,38.28,-38.28,9]
[111,"JUN",null,"Bednarski","Maximilian","Jugendclub Mettinger SK-Derby",38.33,38.369999999999997,38.03,38.29,38.53,null,153.22,-153.22,10,null,38.305,-38.305,10]
[109,"JUN",null,"Kapraun","Tim","Roadrunners Dreieich",38.21,38.479999999999997,37.99,38.42,38.479999999999997,null,153.37,-153.37,11,null,38.342500000000001,-38.342500000000001,11]
[119,"JUN",null,"Brandt","Jana","MSVg Gerolzhofen",38.49,38.47,38.130000000000003,38.25,38.6,null,153.44999999999999,-153.44999999999999,12,null,38.362499999999997,-38.362499999999997,12]
[117,"JUN",null,"Salewski","Ben","SKK Moselflitzer Klüsserath",38.44,38.409999999999997,38.18,38.520000000000003,38.340000000000003,null,153.45000000000002,-153.45000000000002,13,null,38.362500000000004,-38.362500000000004,13]
[122,"JUN",null,"Gahler","Hendrik","Jugendclub Mettinger SK-Derby",38.74,38.4,38.450000000000003,38.479999999999997,38.409999999999997,null,153.73999999999998,-153.73999999999998,14,null,38.434999999999995,-38.434999999999995,14]
[101,"JUN",null,"Pufahl","Maximilian","Jugendclub Mettinger SK-Derby",38.46,38.79,38.32,38.24,38.53,null,153.88,-153.88,15,null,38.47,-38.47,15]
[102,"JUN",null,"Klein","Til","SKK Moselflitzer Klüsserath",38.49,38.770000000000003,38.479999999999997,38.22,38.49,null,153.96,-153.96,16,null,38.49,-38.49,16]
[110,"JUN",null,"Milbach","Leif","Joker Team Berlin",38.24,38.380000000000003,37.96,39.28,38.39,null,154.01,-154.01,17,null,38.502499999999998,-38.502499999999998,17]
[115,"JUN",null,"Demleiter","Angelike Chantalle","Immer auf Achse Bergkamen",38.630000000000003,38.36,38.47,38.630000000000003,38.549999999999997,null,154.01,-154.01,17,null,38.502499999999998,-38.502499999999998,17]
[108,"JUN",null,"Gerland","Lio","SKK Moselflitzer Klüsserath",38.72,38.85,38.49,38.450000000000003,38.61,null,154.4,-154.4,19,null,38.6,-38.6,19]
[107,"JUN",null,"Gebert","Philipp Norbert","SKK Moselflitzer Klüsserath",38.36,38.89,38.35,38.74,38.57,null,154.55000000000001,-154.55000000000001,20,null,38.637500000000003,-38.637500000000003,20]
[103,"JUN",null,"Schier","Finn","Seifenkistengruppe Stromberg",38.07,38.64,38.380000000000003,38.83,38.72,null,154.57,-154.57,21,null,38.642499999999998,-38.642499999999998,21]
[123,"JUN",null,"Claus","Florentina","Immer auf Achse Bergkamen",38.79,38.700000000000003,38.630000000000003,38.74,38.520000000000003,null,154.59000000000003,-154.59000000000003,22,null,38.647500000000008,-38.647500000000008,22]
[116,"JUN",null,"May","Elias","SKK Moselflitzer Klüsserath",38.72,38.57,38.69,38.82,38.770000000000003,null,154.85,-154.85,23,null,38.712499999999999,-38.712499999999999,23]
[126,"JUN",null,"Gerland","Nils","SKK Moselflitzer Klüsserath",38.799999999999997,39.090000000000003,38.64,38.659999999999997,38.54,null,154.93,-154.93,24,null,38.732500000000002,-38.732500000000002,24]
[125,"JUN",null,"Zaruba","Max","Jugendclub Mettinger SK-Derby",null,null,null,null,null,null,0,-1000,0,null,0,-1000,0]
[128,"JUN",null,"Hieb","Fynn","Familiennetzwerk Hanau",38.729999999999997,39.07,39.03,38.53,38.57,null,155.19999999999999,-155.19999999999999,25,null,38.799999999999997,-38.799999999999997,25]
[118,"JUN",null,"Behr","Matthis","SG 1998 Partenheim",40.53,39.869999999999997,39.700000000000003,40.28,40.159999999999997,null,160.01,-160.01,26,null,40.002499999999998,-40.002499999999998,26]
[129,"JUN","EM","Nicolescu","Theodor","Rumänien",38.479999999999997,38.85,null,38.549999999999997,38.61,100,216.01,-216.01,27,null,54.002499999999998,-54.002499999999998,28]
[105,"JUN","EM","Marunde","Timéo","Frankreich",38.33,38.69,38.369999999999997,38.42,38.340000000000003,100,253.82,-253.82,28,null,50.763999999999996,-50.763999999999996,27]
[null,null,null,null,null,null,null,null,null,null,null,null,0,-1000,0,null,0,-1000,0]
[null,null,null,null,null,null,null,null,null,null,null,null,0,-1000,0,null,0,-1000,0]
[null,null,null,null,null,null,null,null,null,null,null,null,0,-1000,0,null,0,-1000,0]
[null,null,null,null,null,null,null,null,null,null,null,null,0,-1000,0,null,0,-1000,0]
[null,null,null,null,null,null,null,null,null,null,null,null,0,-1000,0,null,0,-1000,0]
[null,null,null,null,null,null,null,null,null,null,null,null,0,-1000,0,null,0,-1000,0]
[null,null,null,null,null,null,null,null,null,null,null,null,0,-1000,0,null,0,-1000,0]
[null,null,null,null,null,null,null,null,null,null,null,null,0,-1000,0,null,0,-1000,0]
[null,null,null,null,null,null,null,null,null,null,null,null,0,-1000,0,null,0,-1000,0]
[null,null,null,null,null,null,null,null,null,null,null,null,0,-1000,0,null,0,-1000,0]
[null,null,null,null,null,null,null,null,null,null,null,null,0,-1000,0,null,0,-1000,0]
[null,null,null,null,null,null,null,null,null,null,null,null,0,-1000,0,null,0,-1000,0]
[null,null,null,null,null,null,null,null,null,null,null,null,0,-1000,0,null,0,-1000,0]
[null,null,null,null,null,null,null,null,null,null,null,null,0,-1000,0,null,0,-1000,0]
[null,null,null,null,null,null,null,null,null,null,null,null,0,-1000,0,null,0,-1000,0]
[null,null,null,null,null,null,null,null,null,null,null,null,0,-1000,0,null,0,-1000,0]
[null,null,null,null,null,null,null,null,null,null,null,null,0,-1000,0,null,0,-1000,0]
[null,null,null,null,null,null,null,null,null,null,null,null,0,-1000,0,null,0,-1000,0]
[null,null,null,null,null,null,null,null,null,null,null,null,0,-1000,0,null,0,-1000,0]
[null,null,null,null,null,null,null,null,null,null,null,null,0,-1000,0,null,0,-1000,0]
[null,null,null,null,null,null,null,null,null,null,null,null,0,-1000,0,null,0,-1000,0]
[null,null,null,null,null,null,null,null,null,null,null,null,0,-1000,0,null,0,-1000,0]
[null,null,null,null,null,null,null,null,null,null,null,null,0,-1000,0,null,0,-1000,0]
[null,null,null,null,null,null,null,null,null,null,null,null,0,-1000,0,null,0,-1000,0]
[null,null,null,null,null,null,null,null,null,null,null,null,0,-1000,0,null,0,-1000,0]
[null,null,null,null,null,null,null,null,null,null,null,null,0,-1000,0,null,0,-1000,0]
[null,null,null,null,null,null,null,null,null,null,null,null,0,-1000,0,null,0,-1000,0]
[null,null,null,null,null,null,null,null,null,null,null,null,0,-1000,0,null,0,-1000,0]
[null,null,null,null,null,null,null,null,null,null,null,null,0,-1000,0,null,0,-1000,0]
[null,null,null,null,null,null,null,null,null,null,null,null,0,-1000,0,null,0,-1000,0]
[null,null,null,null,null,null,null,null,null,null,null,null,0,-1000,0,null,0,-1000,0]
[null,null,null,null,null,null,null,null,null,null,null,null,0,-1000,0,null,0,-1000,0]
[null,null,null,null,null,null,null,null,null,null,null,null,0,-1000,0,null,0,-1000,0]
[null,null,null,null,null,null,null,null,null,null,null,null,0,{"$f":"IF(M71>0,M71*-1,-1000)","v":-1000},0,null,0,-1000,0]
[null,null,null,null,null,null,null,null,null,null,null,null,0,{"$f":"IF(M72>0,M72*-1,-1000)","v":-1000},0,null,0,-1000,0]
[null,null,null,null,null,null,null,null,null,null,null,null,{"$f":"(G73*$G$4+H73*$H$4+I73*$I$4+J73*$J$4+K73*$K$4+L73*$L$4)","v":0},{"$f":"IF(M73>0,M73*-1,-1000)","v":-1000},{"$f":"IF(M73>0,RANK(N73,N:N),0)","v":0},null,{"$f":"IF((G73*$G$4+H73*$H$4+I73*$I$4+J73*$J$4+K73*$K$4+L73*$L$4)>0,(G73*$G$4+H73*$H$4+I73*$I$4+J73*$J$4+K73*$K$4+L73*$L$4)/(IF(G73>0,1*$G$4,0)+IF(H73>0,1*$H$4,0)+IF(I73>0,1*$I$4,0)+IF(J73>0,1*$J$4,0)+IF(K73>0,1*$K$4,0)+IF(L73>0,1*$L$4,0)),0)","v":0},{"$f":"IF(Q73>0,Q73*-1,-1000)","v":-1000},{"$f":"IF(Q73>0,RANK(R73,R:R),0)","v":0}]
[null,null,null,null,null,null,null,null,null,null,null,null,0,{"$f":"IF(M74>0,M74*-1,-1000)","v":-1000},0,null,0,-1000,0]
[null,null,null,null,null,null,null,null,null,null,null,null,0,{"$f":"IF(M75>0,M75*-1,-1000)","v":-1000},0,null,0,-1000,0]
[null,null,null,null,null,null,null,null,null,null,null,null,0,{"$f":"IF(M76>0,M76*-1,-1000)","v":-1000},0,null,0,-1000,0]
[null,null,null,null,null,null,null,null,null,null,null,null,0,{"$f":"IF(M77>0,M77*-1,-1000)","v":-1000},0,null,0,-1000,0]
[null,null,null,null,null,null,null,null,null,null,null,null,0,-1000,0,null,0,-1000,0]
[null,null,null,null,null,null,null,null,null,null,null,null,0,-1000,0,null,0,-1000,0]
[null,null,null,null,null,null,null,null,null,null,null,null,0,{"$f":"IF(M80>0,M80*-1,-1000)","v":-1000},0,null,0,-1000,0]
[null,null,null,null,null,null,null,null,null,null,null,null,0,{"$f":"IF(M81>0,M81*-1,-1000)","v":-1000},0,null,0,-1000,0]
[null,null,null,null,null,null,null,null,null,null,null,null,0,{"$f":"IF(M82>0,M82*-1,-1000)","v":-1000},0,null,0,-1000,0]
[null,null,null,null,null,null,null,null,null,null,null,null,0,-1000,0,null,0,-1000,0]
[null,null,null,null,null,null,null,null,null,null,null,null,0,-1000,0,null,0,-1000,0]
[null,null,null,null,null,null,null,null,null,null,null,null,0,-1000,0,null,0,-1000,0]
[null,null,null,null,null,null,null,null,null,null,null,null,0,-1000,0,null,0,-1000,0]
[null,null,null,null,null,null,null,null,null,null,null,null,0,-1000,0,null,0,-1000,0]
[null,null,null,null,null,null,null,null,null,null,null,null,0,-1000,0,null,0,-1000,0]
[null,null,null,null,null,null,null,null,null,null,null,null,0,-1000,0,null,0,-1000,0]
[null,null,null,null,null,null,null,null,null,null,null,null,0,{"$f":"IF(M90>0,M90*-1,-1000)","v":-1000},0,null,0,-1000,0]
[null,null,null,null,null,null,null,null,null,null,null,null,0,-1000,0,null,0,-1000,0]
[null,null,null,null,null,null,null,null,null,null,null,null,0,-1000,0,null,0,-1000,0]
[null,null,null,null,null,null,null,null,null,null,null,null,0,-1000,0,null,0,-1000,0]
[null,null,null,null,null,null,null,null,null,null,null,null,0,-1000,0,null,0,-1000,0]
[null,null,null,null,null,null,null,null,null,null,null,null,0,{"$f":"IF(M95>0,M95*-1,-1000)","v":-1000},0,null,0,-1000,0]
[null,null,null,null,null,null,null,null,null,null,null,null,0,-1000,0,null,0,-1000,0]
[null,null,null,null,null,null,null,null,null,null,null,null,0,-1000,0,null,0,-1000,0]
[null,null,null,null,null,null,null,null,null,null,null,null,0,-1000,0,null,0,-1000,0]
[null,null,null,null,null,null,null,null,null,null,null,null,0,-1000,0,null,0,-1000,0]
[null,null,null,null,null,null,null,null,null,null,null,null,0,-1000,0,null,0,-1000,0]
[null,null,null,null,null,null,null,null,null,null,null,null,0,-1000,0,null,0,-1000,0]
[null,null,null,null,null,null,null,null,null,null,null,null,0,-1000,0,null,0,-1000,0]
[null,null,null,null,null,null,null,null,null,null,null,null,0,-1000,0,null,0,-1000,0]
[null,null,null,null,null,null,null,null,null,null,null,null,0,-1000,0,null,0,-1000,0]
[null,null,null,null,null,null,null,null,null,null,null,null,0,-1000,0,null,0,-1000,0]
[null,null,null,null,null,null,null,null,null,null,null,null,0,-1000,0,null,0,-1000,0]
[null,null,null,null,null,null,null,null,null,null,null,null,0,-1000,0,null,0,-1000,0]
[null,null,null,null,null,null,null,null,null,null,null,null,0,-1000,0,null,0,-1000,0]
[null,null,null,null,null,null,null,null,null,null,null,null,0,-1000,0,null,0,-1000,0]
[null,null,null,null,null,null,null,null,null,null,null,null,0,-1000,0,null,0,-1000,0]
[null,null,null,null,null,null,null,null,null,null,null,null,0,-1000,0,null,0,-1000,0]
[null,null,null,null,null,null,null,null,null,null,null,null,0,-1000,0,null,0,-1000,0]
[null,null,null,null,null,null,null,null,null,null,null,null,0,-1000,0,null,0,-1000,0]
[null,null,null,null,null,null,null,null,null,null,null,null,0,-1000,0,null,0,-1000,0]
[null,null,null,null,null,null,null,null,null,null,null,null,0,-1000,0,null,0,-1000,0]
[null,null,null,null,null,null,null,null,null,null,null,null,0,-1000,0,null,0,-1000,0]
[null,null,null,null,null,null,null,null,null,null,null,null,0,-1000,0,null,0,-1000,0]
[null,null,null,null,null,null,null,null,null,null,null,null,0,-1000,0,null,0,-1000,0]
[null,null,null,null,null,null,null,null,null,null,null,null,0,-1000,0,null,0,-1000,0]
[null,null,null,null,null,null,null,null,null,null,null,null,0,-1000,0,null,0,-1000,0]
[null,null,null,null,null,null,null,null,null,null,null,null,0,-1000,0,null,0,-1000,0]
[null,null,null,null,null,null,null,null,null,null,null,null,0,-1000,0,null,0,-1000,0]
[null,null,null,null,null,null,null,null,null,null,null,null,0,-1000,0,null,0,-1000,0]
[null,null,null,null,null,null,null,null,null,null,null,null,0,-1000,0,null,0,-1000,0]
[null,null,null,null,null,null,null,null,null,null,null,null,0,-1000,0,null,0,-1000,0]
[null,null,null,null,null,null,null,null,null,null,null,null,0,-1000,0,null,0,-1000,0]
[null,null,null,null,null,null,null,null,null,null,null,null,0,-1000,0,null,0,-1000,0]
[null,null,null,null,null,null,null,null,null,null,null,null,0,-1000,0,null,0,-1000,0]
[null,null,null,null,null,null,null,null,null,null,null,null,0,-1000,0,null,0,-1000,0]
[null,null,null,null,null,null,null,null,null,null,null,null,0,-1000,0,null,0,-1000,0]
[null,null,null,null,null,null,null,null,null,null,null,null,0,-1000,0,null,0,-1000,0]
[null,null,null,null,null,null,null,null,null,null,null,null,0,-1000,0,null,0,-1000,0]
[null,null,null,null,null,null,null,null,null,null,null,null,0,-1000,0,null,0,-1000,0]
[null,null,null,null,null,null,null,null,null,null,null,null,0,-1000,0,null,0,-1000,0]
[null,null,null,null,null,null,null,null,null,null,null,null,0,-1000,0,null,0,-1000,0]
[null,null,null,null,null,null,null,null,null,null,null,null,0,-1000,0,null,0,-1000,0]
[null,null,null,null,null,null,null,null,null,null,null,null,{"$f":"(G137*$G$4+H137*$H$4+I137*$I$4+J137*$J$4+K137*$K$4+L137*$L$4)","v":0},-1000,{"$f":"IF(M137>0,RANK(N137,N:N),0)","v":0},null,{"$f":"IF((G137*$G$4+H137*$H$4+I137*$I$4+J137*$J$4+K137*$K$4+L137*$L$4)>0,(G137*$G$4+H137*$H$4+I137*$I$4+J137*$J$4+K137*$K$4+L137*$L$4)/(IF(G137>0,1*$G$4,0)+IF(H137>0,1*$H$4,0)+IF(I137>0,1*$I$4,0)+IF(J137>0,1*$J$4,0)+IF(K137>0,1*$K$4,0)+IF(L137>0,1*$L$4,0)),0)","v":0},-1000,{"$f":"IF(Q137>0,RANK(R137,R:R),0)","v":0}]
[null,null,null,null,null,null,null,null,null,null,null,null,0,-1000,0,null,0,-1000,0]
[null,null,null,null,null,null,null,null,null,null,null,null,0,-1000,0,null,0,-1000,0]
[null,null,null,null,null,null,null,null,null,null,null,null,0,-1000,0,null,0,-1000,0]
[null,null,null,null,null,null,null,null,null,null,null,null,0,-1000,0,null,0,-1000,0]
[null,null,null,null,null,null,null,null,null,null,null,null,0,-1000,0,null,0,-1000,0]
[null,null,null,null,null,null,null,null,null,null,null,null,0,-1000,0,null,0,-1000,0]
[null,null,null,null,null,null,null,null,null,null,null,null,0,-1000,0,null,0,-1000,0]
[null,null,null,null,null,null,null,null,null,null,null,null,0,-1000,0,null,0,-1000,0]
[null,null,null,null,null,null,null,null,null,null,null,null,0,-1000,0,null,0,-1000,0]
[null,null,null,null,null,null,null,null,null,null,null,null,0,-1000,0,null,0,-1000,0]
[null,null,null,null,null,null,null,null,null,null,null,null,0,-1000,0,null,0,-1000,0]
[null,null,null,null,null,null,null,null,null,null,null,null,0,-1000,0,null,0,-1000,0]

{"sheet":"WDM-SEN","index":1,"n_rows":149,"n_cols":19,"rows_kept":149,"cut":false,"hidden":false,"merged":[[6,16,6,17]]}
["DSKD  69. Deutsche Meisterschaft und 19. Europameisterschaft 2017 Mettingen  ESKD"]
["  DM - Wertungsläufe in der SENIOR - Klasse  "]
["10 Endlauf-Teilnehmer",null,null,null,null,null,null,null,null,null,null,null,null,null,null,null,null,null,"Bestzeit"]
["Wird der Lauf gewertet?   dann 0 oder 1 eintragen",null,null,null,null,null,0,1,1,1,1,0,null,null,null,null,null,null,"in Vorläufen"]
[null,null,null,null,"Bestzeit je Lauf",null,{"$f":"MIN(G9:G149)","v":36.85},36.86,36.67,36.630000000000003,36.56,200,null,null,null,null,null,null,{"$f":"MIN((IF(G4=1,G5,99)),        (IF(H4=1,H5,99)),   (IF(I4=1,I5,99)),  (IF(J4=1,J5,99)), (IF(K4=1,K5,99)),  (IF(L4=1,L5,99))       )","v":36.56}]
[null,null,null,null,"Mittelwert je Lauf",null,{"$f":"IF(G5>0,AVERAGE(G9:G149),0)","v":37.129666666666665},37.198571428571427,37.028571428571418,36.923214285714273,36.862857142857145,200]
["Start\nNummer","Gruppe","startet","Name","Vorname","Verein","Lauf 1","Lauf 2","Lauf 3","Lauf 4","Lauf 5","Lauf 6","Summe der gewerteten Läufe",null,"Platz",null,"Mittelwert",null,"Platz"]
[]
[407,"SEN",null,"Meyer","Henry","Jugendclub Mettinger SK-Derby",36.85,36.86,36.840000000000003,36.75,36.56,null,{"$f":"(G9*$G$4+H9*$H$4+I9*$I$4+J9*$J$4+K9*$K$4+L9*$L$4)","v":147.01},{"$f":"IF(M9>0,M9*-1,-1000)","v":-147.01},{"$f":"IF(M9>0,RANK(N9,N:N),0)","v":1},null,{"$f":"IF((G9*$G$4+H9*$H$4+I9*$I$4+J9*$J$4+K9*$K$4+L9*$L$4)>0,(G9*$G$4+H9*$H$4+I9*$I$4+J9*$J$4+K9*$K$4+L9*$L$4)/(IF(G9>0,1*$G$4,0)+IF(H9>0,1*$H$4,0)+IF(I9>0,1*$I$4,0)+IF(J9>0,1*$J$4,0)+IF(K9>0,1*$K$4,0)+IF(L9>0,1*$L$4,0)),0)","v":36.752499999999998},{"$f":"IF(Q9>0,Q9*-1,-1000)","v":-36.752499999999998},{"$f":"IF(Q9>0,RANK(R9,R:R),0)","v":1}]
[415,"SEN",null,"Freudenstein ","Rieke","Jugendclub Mettinger SK-Derby",36.979999999999997,36.909999999999997,36.81,36.729999999999997,36.729999999999997,null,147.17999999999998,-147.17999999999998,2,null,36.794999999999995,-36.794999999999995,2]
[426,"SEN",null,"Reuscher","Sanja","Joker-Team Berlin",36.99,37.1,36.67,36.86,36.78,null,147.41000000000003,-147.41000000000003,3,null,36.852500000000006,-36.852500000000006,3]
[428,"SEN",null,"Förster","Maurice","Eifeler-Seifenkistenfreunde Simmerath",37.03,37.04,36.86,36.85,36.69,null,147.44,-147.44,4,null,36.86,-36.86,4]
[409,"SEN",null,"Reinstein","Marie","MSVg Gerolzhofen",37.159999999999997,37.14,36.89,36.64,36.770000000000003,null,147.44,-147.44,4,null,36.86,-36.86,4]
[410,"SEN",null,"Hoebertz","Max Ole","Power Crew Berlin",37.03,37.08,36.9,36.71,36.76,null,147.44999999999999,-147.44999999999999,6,null,36.862499999999997,-36.862499999999997,6]
[427,"SEN",null,"Lammers ","Laura","ConAction Köln",37.08,37.07,36.93,36.78,36.67,null,147.44999999999999,-147.44999999999999,6,null,36.862499999999997,-36.862499999999997,6]
[423,"SEN",null,"Gößling","Jule","Jugendclub Mettinger SK-Derby",37.020000000000003,37.21,36.97,36.630000000000003,36.729999999999997,null,147.54,-147.54,8,null,36.884999999999998,-36.884999999999998,8]
[401,"SEN",null,"Meyer","Johann","Jugendclub Mettinger SK-Derby",37.01,37.119999999999997,36.94,36.799999999999997,36.69,null,147.55000000000001,-147.55000000000001,9,null,36.887500000000003,-36.887500000000003,9]
[420,"SEN",null,"Schrüfer","Stella","Seifenkistenfreunde Nürnberg",36.94,37.07,36.97,36.869999999999997,36.64,null,147.55000000000001,-147.55000000000001,9,null,36.887500000000003,-36.887500000000003,9]
[425,"SEN",null,"Kerner","Vanessa","SK-Verband Baden-Württemberg",36.950000000000003,37.14,36.799999999999997,36.909999999999997,36.799999999999997,null,147.64999999999998,-147.64999999999998,11,null,36.912499999999994,-36.912499999999994,11]
[404,"SEN",null,"Lampe","Pia","Jugendclub Mettinger SK-Derby",36.94,37.17,36.96,36.9,36.770000000000003,null,147.80000000000001,-147.80000000000001,12,null,36.950000000000003,-36.950000000000003,12]
[413,"SEN",null,"Lutterbach","Roman","Eifeler-Seifenkistenfreunde Simmerath",37.159999999999997,37.18,36.909999999999997,36.86,36.880000000000003,null,147.83000000000001,-147.83000000000001,13,null,36.957500000000003,-36.957500000000003,13]
[417,"SEN",null,"Krebs","Luca","Roadrunners Dreieich",37.15,37.26,36.950000000000003,36.880000000000003,36.83,null,147.92000000000002,-147.92000000000002,14,null,36.980000000000004,-36.980000000000004,14]
[429,"SEN",null,"Sonneborn","Ina","Seifenkistengruppe Stromberg",37.01,37.1,37,37.01,36.86,null,147.96999999999997,-147.96999999999997,15,null,36.992499999999993,-36.992499999999993,15]
[430,"SEN",null,"Zaruba","Max","Jugendclub Mettinger SK-Derby",36.97,36.99,37.08,37.049999999999997,36.86,null,147.97999999999999,-147.97999999999999,16,null,36.994999999999997,-36.994999999999997,16]
[419,"SEN",null,"Becker","Robin","Immer auf Achse Bergkamen",37.14,37.270000000000003,37.03,36.94,36.78,null,148.02000000000001,-148.02000000000001,17,null,37.005000000000003,-37.005000000000003,17]
[411,"SEN",null,"Hollweck","Annika","MSVg Gerolzhofen",37.119999999999997,37.31,37,36.93,36.840000000000003,null,148.08000000000001,-148.08000000000001,18,null,37.020000000000003,-37.020000000000003,18]
[416,"SEN",null,"Klimpel","Benedikt","SK-Verband Baden-Württemberg",37.159999999999997,37.159999999999997,37.1,36.950000000000003,36.880000000000003,null,148.09,-148.09,19,null,37.022500000000001,-37.022500000000001,19]
[421,"SEN",null,"Keßling","Sophie","Jugendclub Mettinger SK-Derby",37.24,37.229999999999997,37.130000000000003,36.85,36.950000000000003,null,148.16000000000003,-148.16000000000003,20,null,37.040000000000006,-37.040000000000006,20]
[422,"SEN",null,"Neuhaus","Robin","Jugendclub Mettinger SK-Derby",37.26,37.340000000000003,37.03,36.93,36.909999999999997,null,148.21,-148.21,21,null,37.052500000000002,-37.052500000000002,21]
[405,"SEN",null,"Lutterbach","Eric","Eifeler-Seifenkistenfreunde Simmerath",37.18,37.19,37.15,36.97,36.97,null,148.28,-148.28,22,null,37.07,-37.07,22]
[412,"SEN",null,"Salewski","Lena","SKK Moselflitzer Klüsserath",37.17,37.28,37.159999999999997,37.04,37,null,148.47999999999999,-148.47999999999999,23,null,37.119999999999997,-37.119999999999997,23]
[418,"SEN",null,"Reuscher","Silas","Joker-Team Berlin",37.380000000000003,37.33,37.130000000000003,37,37.03,null,148.49,-148.49,24,null,37.122500000000002,-37.122500000000002,24]
[403,"SEN",null,"Ricker","Sarah","Berkel Raser Billerbeck",37.21,37.42,37.299999999999997,37.15,37.07,null,148.94,-148.94,25,null,37.234999999999999,-37.234999999999999,25]
[424,"SEN",null,"Brandelik","Wiebke","SK-Verband Baden-Württemberg",37.46,37.47,37.36,37.159999999999997,37.200000000000003,null,149.19,-149.19,26,null,37.297499999999999,-37.297499999999999,26]
[414,"SEN",null,"Adam","Alexander","Familiennetzwerk Hanau",37.51,37.51,37.31,37.229999999999997,37.22,null,149.26999999999998,-149.26999999999998,27,null,37.317499999999995,-37.317499999999995,27]
[402,"SEN",null,"Braun","Kerstin","MSVg Gerolzhofen",37.5,37.61,37.619999999999997,37.47,37.29,null,149.98999999999998,-149.98999999999998,28,null,37.497499999999995,-37.497499999999995,28]
[408,"SEN",null,"Steinberg","Kimberly","Berkel Raser Billerbeck",37.29,null,null,null,null,200,0,-1000,0,null,0,-1000,0]
[406,"SEN",null,"Wetter","Stefanie","Berkel Raser Billerbeck",37,null,null,null,null,200,0,-1000,0,null,0,-1000,0]
[431,"SEN",null,null,null,null,null,null,null,null,null,null,0,-1000,0,null,0,-1000,0]
[432,"SEN",null,null,null,null,null,null,null,null,null,null,0,-1000,0,null,0,-1000,0]
[433,"SEN",null,null,null,null,null,null,null,null,null,null,0,-1000,0,null,0,-1000,0]
[null,null,null,null,null,null,null,null,null,null,null,null,0,-1000,0,null,0,-1000,0]
[null,null,null,null,null,null,null,null,null,null,null,null,0,-1000,0,null,0,-1000,0]
[null,null,null,null,null,null,null,null,null,null,null,null,0,-1000,0,null,0,-1000,0]
[null,null,null,null,null,null,null,null,null,null,null,null,0,-1000,0,null,0,-1000,0]
[null,null,null,null,null,null,null,null,null,null,null,null,0,-1000,0,null,0,-1000,0]
[null,null,null,null,null,null,null,null,null,null,null,null,0,-1000,0,null,0,-1000,0]
[null,null,null,null,null,null,null,null,null,null,null,null,0,-1000,0,null,0,-1000,0]
[null,null,null,null,null,null,null,null,null,null,null,null,0,-1000,0,null,0,-1000,0]
[null,null,null,null,null,null,null,null,null,null,null,null,0,-1000,0,null,0,-1000,0]
[null,null,null,null,null,null,null,null,null,null,null,null,0,-1000,0,null,0,-1000,0]
[null,null,null,null,null,null,null,null,null,null,null,null,0,-1000,0,null,0,-1000,0]
[null,null,null,null,null,null,null,null,null,null,null,null,0,-1000,0,null,0,-1000,0]
[null,null,null,null,null,null,null,null,null,null,null,null,0,-1000,0,null,0,-1000,0]
[null,null,null,null,null,null,null,null,null,null,null,null,0,-1000,0,null,0,-1000,0]
[null,null,null,null,null,null,null,null,null,null,null,null,0,-1000,0,null,0,-1000,0]
[null,null,null,null,null,null,null,null,null,null,null,null,0,-1000,0,null,0,-1000,0]
[null,null,null,null,null,null,null,null,null,null,null,null,0,-1000,0,null,0,-1000,0]
[null,null,null,null,null,null,null,null,null,null,null,null,0,-1000,0,null,0,-1000,0]
[null,null,null,null,null,null,null,null,null,null,null,null,0,-1000,0,null,0,-1000,0]
[null,null,null,null,null,null,null,null,null,null,null,null,0,-1000,0,null,0,-1000,0]
[null,null,null,null,null,null,null,null,null,null,null,null,0,-1000,0,null,0,-1000,0]
[null,null,null,null,null,null,null,null,null,null,null,null,0,-1000,0,null,0,-1000,0]
[null,null,null,null,null,null,null,null,null,null,null,null,0,-1000,0,null,0,-1000,0]
[null,null,null,null,null,null,null,null,null,null,null,null,0,-1000,0,null,0,-1000,0]
[null,null,null,null,null,null,null,null,null,null,null,null,0,-1000,0,null,0,-1000,0]
[null,null,null,null,null,null,null,null,null,null,null,null,0,-1000,0,null,0,-1000,0]
[null,null,null,null,null,null,null,null,null,null,null,null,0,-1000,0,null,0,-1000,0]
[null,null,null,null,null,null,null,null,null,null,null,null,0,-1000,0,null,0,-1000,0]
[null,null,null,null,null,null,null,null,null,null,null,null,0,-1000,0,null,0,-1000,0]
[null,null,null,null,null,null,null,null,null,null,null,null,0,{"$f":"IF(M71>0,M71*-1,-1000)","v":-1000},0,null,0,-1000,0]
[null,null,null,null,null,null,null,null,null,null,null,null,0,{"$f":"IF(M72>0,M72*-1,-1000)","v":-1000},0,null,0,-1000,0]
[null,null,null,null,null,null,null,null,null,null,null,null,{"$f":"(G73*$G$4+H73*$H$4+I73*$I$4+J73*$J$4+K73*$K$4+L73*$L$4)","v":0},{"$f":"IF(M73>0,M73*-1,-1000)","v":-1000},{"$f":"IF(M73>0,RANK(N73,N:N),0)","v":0},null,{"$f":"IF((G73*$G$4+H73*$H$4+I73*$I$4+J73*$J$4+K73*$K$4+L73*$L$4)>0,(G73*$G$4+H73*$H$4+I73*$I$4+J73*$J$4+K73*$K$4+L73*$L$4)/(IF(G73>0,1*$G$4,0)+IF(H73>0,1*$H$4,0)+IF(I73>0,1*$I$4,0)+IF(J73>0,1*$J$4,0)+IF(K73>0,1*$K$4,0)+IF(L73>0,1*$L$4,0)),0)","v":0},{"$f":"IF(Q73>0,Q73*-1,-1000)","v":-1000},{"$f":"IF(Q73>0,RANK(R73,R:R),0)","v":0}]
[null,null,null,null,null,null,null,null,null,null,null,null,0,{"$f":"IF(M74>0,M74*-1,-1000)","v":-1000},0,null,0,-1000,0]
[null,null,null,null,null,null,null,null,null,null,null,null,0,{"$f":"IF(M75>0,M75*-1,-1000)","v":-1000},0,null,0,-1000,0]
[null,null,null,null,null,null,null,null,null,null,null,null,0,{"$f":"IF(M76>0,M76*-1,-1000)","v":-1000},0,null,0,-1000,0]
[null,null,null,null,null,null,null,null,null,null,null,null,0,{"$f":"IF(M77>0,M77*-1,-1000)","v":-1000},0,null,0,-1000,0]
[null,null,null,null,null,null,null,null,null,null,null,null,0,-1000,0,null,0,-1000,0]
[null,null,null,null,null,null,null,null,null,null,null,null,0,-1000,0,null,0,-1000,0]
[null,null,null,null,null,null,null,null,null,null,null,null,0,{"$f":"IF(M80>0,M80*-1,-1000)","v":-1000},0,null,0,-1000,0]
[null,null,null,null,null,null,null,null,null,null,null,null,0,{"$f":"IF(M81>0,M81*-1,-1000)","v":-1000},0,null,0,-1000,0]
[null,null,null,null,null,null,null,null,null,null,null,null,0,{"$f":"IF(M82>0,M82*-1,-1000)","v":-1000},0,null,0,-1000,0]
[null,null,null,null,null,null,null,null,null,null,null,null,0,-1000,0,null,0,-1000,0]
[null,null,null,null,null,null,null,null,null,null,null,null,0,-1000,0,null,0,-1000,0]
[null,null,null,null,null,null,null,null,null,null,null,null,0,-1000,0,null,0,-1000,0]
[null,null,null,null,null,null,null,null,null,null,null,null,0,-1000,0,null,0,-1000,0]
[null,null,null,null,null,null,null,null,null,null,null,null,0,-1000,0,null,0,-1000,0]
[null,null,null,null,null,null,null,null,null,null,null,null,0,-1000,0,null,0,-1000,0]
[null,null,null,null,null,null,null,null,null,null,null,null,0,-1000,0,null,0,-1000,0]
[null,null,null,null,null,null,null,null,null,null,null,null,0,{"$f":"IF(M90>0,M90*-1,-1000)","v":-1000},0,null,0,-1000,0]
[null,null,null,null,null,null,null,null,null,null,null,null,0,-1000,0,null,0,-1000,0]
[null,null,null,null,null,null,null,null,null,null,null,null,0,-1000,0,null,0,-1000,0]
[null,null,null,null,null,null,null,null,null,null,null,null,0,-1000,0,null,0,-1000,0]
[null,null,null,null,null,null,null,null,null,null,null,null,0,-1000,0,null,0,-1000,0]
[null,null,null,null,null,null,null,null,null,null,null,null,0,{"$f":"IF(M95>0,M95*-1,-1000)","v":-1000},0,null,0,-1000,0]
[null,null,null,null,null,null,null,null,null,null,null,null,0,-1000,0,null,0,-1000,0]
[null,null,null,null,null,null,null,null,null,null,null,null,0,-1000,0,null,0,-1000,0]
[null,null,null,null,null,null,null,null,null,null,null,null,0,-1000,0,null,0,-1000,0]
[null,null,null,null,null,null,null,null,null,null,null,null,0,-1000,0,null,0,-1000,0]
[null,null,null,null,null,null,null,null,null,null,null,null,0,-1000,0,null,0,-1000,0]
[null,null,null,null,null,null,null,null,null,null,null,null,0,-1000,0,null,0,-1000,0]
[null,null,null,null,null,null,null,null,null,null,null,null,0,-1000,0,null,0,-1000,0]
[null,null,null,null,null,null,null,null,null,null,null,null,0,-1000,0,null,0,-1000,0]
[null,null,null,null,null,null,null,null,null,null,null,null,0,-1000,0,null,0,-1000,0]
[null,null,null,null,null,null,null,null,null,null,null,null,0,-1000,0,null,0,-1000,0]
[null,null,null,null,null,null,null,null,null,null,null,null,0,-1000,0,null,0,-1000,0]
[null,null,null,null,null,null,null,null,null,null,null,null,0,-1000,0,null,0,-1000,0]
[null,null,null,null,null,null,null,null,null,null,null,null,0,-1000,0,null,0,-1000,0]
[null,null,null,null,null,null,null,null,null,null,null,null,0,-1000,0,null,0,-1000,0]
[null,null,null,null,null,null,null,null,null,null,null,null,0,-1000,0,null,0,-1000,0]
[null,null,null,null,null,null,null,null,null,null,null,null,0,-1000,0,null,0,-1000,0]
[null,null,null,null,null,null,null,null,null,null,null,null,0,-1000,0,null,0,-1000,0]
[null,null,null,null,null,null,null,null,null,null,null,null,0,-1000,0,null,0,-1000,0]
[null,null,null,null,null,null,null,null,null,null,null,null,0,-1000,0,null,0,-1000,0]
[null,null,null,null,null,null,null,null,null,null,null,null,0,-1000,0,null,0,-1000,0]
[null,null,null,null,null,null,null,null,null,null,null,null,0,-1000,0,null,0,-1000,0]
[null,null,null,null,null,null,null,null,null,null,null,null,0,-1000,0,null,0,-1000,0]
[null,null,null,null,null,null,null,null,null,null,null,null,0,-1000,0,null,0,-1000,0]
[null,null,null,null,null,null,null,null,null,null,null,null,0,-1000,0,null,0,-1000,0]
[null,null,null,null,null,null,null,null,null,null,null,null,0,-1000,0,null,0,-1000,0]
[null,null,null,null,null,null,null,null,null,null,null,null,0,-1000,0,null,0,-1000,0]
[null,null,null,null,null,null,null,null,null,null,null,null,0,-1000,0,null,0,-1000,0]
[null,null,null,null,null,null,null,null,null,null,null,null,0,-1000,0,null,0,-1000,0]
[null,null,null,null,null,null,null,null,null,null,null,null,0,-1000,0,null,0,-1000,0]
[null,null,null,null,null,null,null,null,null,null,null,null,0,-1000,0,null,0,-1000,0]
[null,null,null,null,null,null,null,null,null,null,null,null,0,-1000,0,null,0,-1000,0]
[null,null,null,null,null,null,null,null,null,null,null,null,0,-1000,0,null,0,-1000,0]
[null,null,null,null,null,null,null,null,null,null,null,null,0,-1000,0,null,0,-1000,0]
[null,null,null,null,null,null,null,null,null,null,null,null,0,-1000,0,null,0,-1000,0]
[null,null,null,null,null,null,null,null,null,null,null,null,0,-1000,0,null,0,-1000,0]
[null,null,null,null,null,null,null,null,null,null,null,null,0,-1000,0,null,0,-1000,0]
[null,null,null,null,null,null,null,null,null,null,null,null,0,-1000,0,null,0,-1000,0]
[null,null,null,null,null,null,null,null,null,null,null,null,0,-1000,0,null,0,-1000,0]
[null,null,null,null,null,null,null,null,null,null,null,null,0,-1000,0,null,0,-1000,0]
[null,null,null,null,null,null,null,null,null,null,null,null,0,-1000,0,null,0,-1000,0]
[null,null,null,null,null,null,null,null,null,null,null,null,0,-1000,0,null,0,-1000,0]
[null,null,null,null,null,null,null,null,null,null,null,null,{"$f":"(G137*$G$4+H137*$H$4+I137*$I$4+J137*$J$4+K137*$K$4+L137*$L$4)","v":0},-1000,{"$f":"IF(M137>0,RANK(N137,N:N),0)","v":0},null,{"$f":"IF((G137*$G$4+H137*$H$4+I137*$I$4+J137*$J$4+K137*$K$4+L137*$L$4)>0,(G137*$G$4+H137*$H$4+I137*$I$4+J137*$J$4+K137*$K$4+L137*$L$4)/(IF(G137>0,1*$G$4,0)+IF(H137>0,1*$H$4,0)+IF(I137>0,1*$I$4,0)+IF(J137>0,1*$J$4,0)+IF(K137>0,1*$K$4,0)+IF(L137>0,1*$L$4,0)),0)","v":0},-1000,{"$f":"IF(Q137>0,RANK(R137,R:R),0)","v":0}]
[null,null,null,null,null,null,null,null,null,null,null,null,0,-1000,0,null,0,-1000,0]
[null,null,null,null,null,null,null,null,null,null,null,null,0,-1000,0,null,0,-1000,0]
[null,null,null,null,null,null,null,null,null,null,null,null,0,-1000,0,null,0,-1000,0]
[null,null,null,null,null,null,null,null,null,null,null,null,0,-1000,0,null,0,-1000,0]
[null,null,null,null,null,null,null,null,null,null,null,null,0,-1000,0,null,0,-1000,0]
[null,null,null,null,null,null,null,null,null,null,null,null,0,-1000,0,null,0,-1000,0]
[null,null,null,null,null,null,null,null,null,null,null,null,0,-1000,0,null,0,-1000,0]
[null,null,null,null,null,null,null,null,null,null,null,null,0,-1000,0,null,0,-1000,0]
[null,null,null,null,null,null,null,null,null,null,null,null,0,-1000,0,null,0,-1000,0]
[null,null,null,null,null,null,null,null,null,null,null,null,0,-1000,0,null,0,-1000,0]
[null,null,null,null,null,null,null,null,null,null,null,null,0,-1000,0,null,0,-1000,0]
[null,null,null,null,null,null,null,null,null,null,null,null,0,-1000,0,null,0,-1000,0]

{"sheet":"WDM-XL","index":2,"n_rows":149,"n_cols":19,"rows_kept":149,"cut":false,"hidden":false,"merged":[[6,16,6,17]]}
["DSKD  69. Deutsche Meisterschaft und 19. Europameisterschaft 2017 Mettingen  ESKD"]
["DM - Wertungsläufe in der Elite XL - Klasse"]
["4 Endlauf-Teilnehmer",null,null,null,null,null,null,null,null,null,null,null,null,null,null,null,null,null,"Bestzeit"]
["Wird der Lauf gewertet?   dann 0 oder 1 eintragen",null,null,null,null,null,0,1,1,1,1,1,null,null,null,null,null,null,"in Vorläufen"]
[null,null,null,null,"Bestzeit je Lauf",null,{"$f":"MIN(G9:G149)","v":36.68},36.67,36.83,36.68,36.83,0,null,null,null,null,null,null,{"$f":"MIN((IF(G4=1,G5,99)),        (IF(H4=1,H5,99)),   (IF(I4=1,I5,99)),  (IF(J4=1,J5,99)), (IF(K4=1,K5,99)),  (IF(L4=1,L5,99))       )","v":0}]
[null,null,null,null,"Mittelwert je Lauf",null,{"$f":"IF(G5>0,AVERAGE(G9:G149),0)","v":37.095833333333339},37.085833333333333,37.176666666666662,37.05833333333333,37.207500000000003,0]
["Start\nNummer","Gruppe","startet","Name","Vorname","Verein","Lauf 1","Lauf 2","Lauf 3","Lauf 4","Lauf 5","Lauf 6","Summe der gewerteten Läufe",null,"Platz",null,"Mittelwert",null,"Platz"]
[]
[213,"Elite XL",null,"Leismann","Dominik","Jugendclub Mettinger SK-Derby",null,null,null,null,null,null,{"$f":"(G9*$G$4+H9*$H$4+I9*$I$4+J9*$J$4+K9*$K$4+L9*$L$4)","v":0},{"$f":"IF(M9>0,M9*-1,-1000)","v":-1000},{"$f":"IF(M9>0,RANK(N9,N:N),0)","v":0},null,{"$f":"IF((G9*$G$4+H9*$H$4+I9*$I$4+J9*$J$4+K9*$K$4+L9*$L$4)>0,(G9*$G$4+H9*$H$4+I9*$I$4+J9*$J$4+K9*$K$4+L9*$L$4)/(IF(G9>0,1*$G$4,0)+IF(H9>0,1*$H$4,0)+IF(I9>0,1*$I$4,0)+IF(J9>0,1*$J$4,0)+IF(K9>0,1*$K$4,0)+IF(L9>0,1*$L$4,0)),0)","v":0},{"$f":"IF(Q9>0,Q9*-1,-1000)","v":-1000},{"$f":"IF(Q9>0,RANK(R9,R:R),0)","v":0}]
[210,"Elite XL",null,"Strohmaier","Sebastian","SV Losaurach",36.68,36.67,36.83,36.68,36.83,null,147.01,-147.01,1,null,36.752499999999998,-36.752499999999998,1]
[205,"Elite XL",null,"Braun","Armin","MSVg Gerolzhofen",36.89,36.85,36.9,36.840000000000003,36.96,null,147.55000000000001,-147.55000000000001,2,null,36.887500000000003,-36.887500000000003,2]
[202,"Elite XL",null,"Schmidt","Marvin","Friesenflitzer Varel",36.86,36.93,36.92,36.729999999999997,37.03,null,147.60999999999999,-147.60999999999999,3,null,36.902499999999996,-36.902499999999996,3]
[206,"Elite XL",null,"Schlösser","Timon","Seifenkistengruppe Stromberg",37.130000000000003,36.97,37.119999999999997,37.020000000000003,37.22,null,148.33000000000001,-148.33000000000001,4,null,37.082500000000003,-37.082500000000003,4]
[212,"Elite XL",null,"Ricker","Jana-Lena","Berkel Raser Billerbeck",37.119999999999997,37.090000000000003,37.22,37.06,37.090000000000003,null,148.46,-148.46,5,null,37.115000000000002,-37.115000000000002,5]
[201,"Elite XL",null,"Herberth","Laura","SK-Verband Baden-Württemberg",37.049999999999997,37.299999999999997,37.11,37.03,37.25,null,148.69,-148.69,6,null,37.172499999999999,-37.172499999999999,6]
[203,"Elite XL",null,"Reinicke","Tim","Power Crew Berlin",37.24,37.07,37.270000000000003,37.130000000000003,37.380000000000003,null,148.85,-148.85,7,null,37.212499999999999,-37.212499999999999,7]
[207,"Elite XL",null,"Herberth","Yannick","SK-Verband Baden-Württemberg",37.25,37.200000000000003,37.21,37.130000000000003,37.36,null,148.89999999999998,-148.89999999999998,8,null,37.224999999999994,-37.224999999999994,8]
[209,"Elite XL",null,"Nießen","Nicolas","Eifeler-Seifenkistenfreunde Simmerath",37.03,37.200000000000003,37.26,37.229999999999997,37.31,null,149,-149,9,null,37.25,-37.25,9]
[208,"Elite XL",null,"Marx","Fabian","ConAction Köln",37.31,37.19,37.36,37.229999999999997,37.24,null,149.02000000000001,-149.02000000000001,10,null,37.255000000000003,-37.255000000000003,10]
[204,"Elite XL",null,"Fischer","Moritz","Joker-Team Berlin",37.28,37.159999999999997,37.479999999999997,37.159999999999997,37.479999999999997,null,149.27999999999997,-149.27999999999997,11,null,37.319999999999993,-37.319999999999993,11]
[211,"Elite XL",null,"Elges","Erik","Seifenkistengruppe Stromberg",37.31,37.4,37.44,37.46,37.340000000000003,null,149.64000000000001,-149.64000000000001,12,null,37.410000000000004,-37.410000000000004,12]
[null,null,null,null,null,null,null,null,null,null,null,null,0,-1000,0,null,0,-1000,0]
[null,null,null,null,null,null,null,null,null,null,null,null,0,-1000,0,null,0,-1000,0]
[null,null,null,null,null,null,null,null,null,null,null,null,0,-1000,0,null,0,-1000,0]
[null,null,null,null,null,null,null,null,null,null,null,null,0,{"$f":"IF(M25>0,M25*-1,-1000)","v":-1000},0,null,0,-1000,0]
[null,null,null,null,null,null,null,null,null,null,null,null,0,{"$f":"IF(M26>0,M26*-1,-1000)","v":-1000},0,null,0,-1000,0]
[null,null,null,null,null,null,null,null,null,null,null,null,0,{"$f":"IF(M27>0,M27*-1,-1000)","v":-1000},0,null,0,-1000,0]
[null,null,null,null,null,null,null,null,null,null,null,null,0,-1000,0,null,0,-1000,0]
[null,null,null,null,null,null,null,null,null,null,null,null,0,-1000,0,null,0,-1000,0]
[null,null,null,null,null,null,null,null,null,null,null,null,0,-1000,0,null,0,-1000,0]
[null,null,null,null,null,null,null,null,null,null,null,null,0,-1000,0,null,0,-1000,0]
[null,null,null,null,null,null,null,null,null,null,null,null,0,-1000,0,null,0,-1000,0]
[null,null,null,null,null,null,null,null,null,null,null,null,0,-1000,0,null,0,-1000,0]
[null,null,null,null,null,null,null,null,null,null,null,null,0,-1000,0,null,0,-1000,0]
[null,null,null,null,null,null,null,null,null,null,null,null,0,-1000,0,null,0,-1000,0]
[null,null,null,null,null,null,null,null,null,null,null,null,0,{"$f":"IF(M36>0,M36*-1,-1000)","v":-1000},0,null,0,-1000,0]
[null,null,null,null,null,null,null,null,null,null,null,null,0,{"$f":"IF(M37>0,M37*-1,-1000)","v":-1000},0,null,0,-1000,0]
[null,null,null,null,null,null,null,null,null,null,null,null,0,{"$f":"IF(M38>0,M38*-1,-1000)","v":-1000},0,null,0,-1000,0]
[null,null,null,null,null,null,null,null,null,null,null,null,0,{"$f":"IF(M39>0,M39*-1,-1000)","v":-1000},0,null,0,-1000,0]
[null,null,null,null,null,null,null,null,null,null,null,null,0,{"$f":"IF(M40>0,M40*-1,-1000)","v":-1000},0,null,0,-1000,0]
[null,null,null,null,null,null,null,null,null,null,null,null,0,-1000,0,null,0,-1000,0]
[null,null,null,null,null,null,null,null,null,null,null,null,0,{"$f":"IF(M42>0,M42*-1,-1000)","v":-1000},0,null,0,-1000,0]
[null,null,null,null,null,null,null,null,null,null,null,null,0,{"$f":"IF(M43>0,M43*-1,-1000)","v":-1000},0,null,0,-1000,0]
[null,null,null,null,null,null,null,null,null,null,null,null,0,-1000,0,null,0,-1000,0]
[null,null,null,null,null,null,null,null,null,null,null,null,0,-1000,0,null,0,-1000,0]
[null,null,null,null,null,null,null,null,null,null,null,null,0,-1000,0,null,0,-1000,0]
[null,null,null,null,null,null,null,null,null,null,null,null,0,-1000,0,null,0,-1000,0]
[null,null,null,null,null,null,null,null,null,null,null,null,0,-1000,0,null,0,-1000,0]
[null,null,null,null,null,null,null,null,null,null,null,null,0,-1000,0,null,0,-1000,0]
[null,null,null,null,null,null,null,null,null,null,null,null,0,-1000,0,null,0,-1000,0]
[null,null,null,null,null,null,null,null,null,null,null,null,0,-1000,0,null,0,-1000,0]
[null,null,null,null,null,null,null,null,null,null,null,null,0,-1000,0,null,0,-1000,0]
[null,null,null,null,null,null,null,null,null,null,null,null,0,-1000,0,null,0,-1000,0]
[null,null,null,null,null,null,null,null,null,null,null,null,0,-1000,0,null,0,-1000,0]
[null,null,null,null,null,null,null,null,null,null,null,null,0,-1000,0,null,0,-1000,0]
[null,null,null,null,null,null,null,null,null,null,null,null,0,-1000,0,null,0,-1000,0]
[null,null,null,null,null,null,null,null,null,null,null,null,0,-1000,0,null,0,-1000,0]
[null,null,null,null,null,null,null,null,null,null,null,null,0,-1000,0,null,0,-1000,0]
[null,null,null,null,null,null,null,null,null,null,null,null,0,-1000,0,null,0,-1000,0]
[null,null,null,null,null,null,null,null,null,null,null,null,0,-1000,0,null,0,-1000,0]
[null,null,null,null,null,null,null,null,null,null,null,null,0,-1000,0,null,0,-1000,0]
[null,null,null,null,null,null,null,null,null,null,null,null,0,-1000,0,null,0,-1000,0]
[null,null,null,null,null,null,null,null,null,null,null,null,0,-1000,0,null,0,-1000,0]
[null,null,null,null,null,null,null,null,null,null,null,null,0,-1000,0,null,0,-1000,0]
[null,null,null,null,null,null,null,null,null,null,null,null,0,-1000,0,null,0,-1000,0]
[null,null,null,null,null,null,null,null,null,null,null,null,0,-1000,0,null,0,-1000,0]
[null,null,null,null,null,null,null,null,null,null,null,null,0,-1000,0,null,0,-1000,0]
[null,null,null,null,null,null,null,null,null,null,null,null,0,-1000,0,null,0,-1000,0]
[null,null,null,null,null,null,null,null,null,null,null,null,0,-1000,0,null,0,-1000,0]
[null,null,null,null,null,null,null,null,null,null,null,null,0,-1000,0,null,0,-1000,0]
[null,null,null,null,null,null,null,null,null,null,null,null,0,{"$f":"IF(M71>0,M71*-1,-1000)","v":-1000},0,null,0,-1000,0]
[null,null,null,null,null,null,null,null,null,null,null,null,0,{"$f":"IF(M72>0,M72*-1,-1000)","v":-1000},0,null,0,-1000,0]
[null,null,null,null,null,null,null,null,null,null,null,null,{"$f":"(G73*$G$4+H73*$H$4+I73*$I$4+J73*$J$4+K73*$K$4+L73*$L$4)","v":0},{"$f":"IF(M73>0,M73*-1,-1000)","v":-1000},{"$f":"IF(M73>0,RANK(N73,N:N),0)","v":0},null,{"$f":"IF((G73*$G$4+H73*$H$4+I73*$I$4+J73*$J$4+K73*$K$4+L73*$L$4)>0,(G73*$G$4+H73*$H$4+I73*$I$4+J73*$J$4+K73*$K$4+L73*$L$4)/(IF(G73>0,1*$G$4,0)+IF(H73>0,1*$H$4,0)+IF(I73>0,1*$I$4,0)+IF(J73>0,1*$J$4,0)+IF(K73>0,1*$K$4,0)+IF(L73>0,1*$L$4,0)),0)","v":0},{"$f":"IF(Q73>0,Q73*-1,-1000)","v":-1000},{"$f":"IF(Q73>0,RANK(R73,R:R),0)","v":0}]
[null,null,null,null,null,null,null,null,null,null,null,null,0,{"$f":"IF(M74>0,M74*-1,-1000)","v":-1000},0,null,0,-1000,0]
[null,null,null,null,null,null,null,null,null,null,null,null,0,{"$f":"IF(M75>0,M75*-1,-1000)","v":-1000},0,null,0,-1000,0]
[null,null,null,null,null,null,null,null,null,null,null,null,0,{"$f":"IF(M76>0,M76*-1,-1000)","v":-1000},0,null,0,-1000,0]
[null,null,null,null,null,null,null,null,null,null,null,null,0,{"$f":"IF(M77>0,M77*-1,-1000)","v":-1000},0,null,0,-1000,0]
[null,null,null,null,null,null,null,null,null,null,null,null,0,-1000,0,null,0,-1000,0]
[null,null,null,null,null,null,null,null,null,null,null,null,0,-1000,0,null,0,-1000,0]
[null,null,null,null,null,null,null,null,null,null,null,null,0,{"$f":"IF(M80>0,M80*-1,-1000)","v":-1000},0,null,0,-1000,0]
[null,null,null,null,null,null,null,null,null,null,null,null,0,{"$f":"IF(M81>0,M81*-1,-1000)","v":-1000},0,null,0,-1000,0]
[null,null,null,null,null,null,null,null,null,null,null,null,0,{"$f":"IF(M82>0,M82*-1,-1000)","v":-1000},0,null,0,-1000,0]
[null,null,null,null,null,null,null,null,null,null,null,null,0,-1000,0,null,0,-1000,0]
[null,null,null,null,null,null,null,null,null,null,null,null,0,-1000,0,null,0,-1000,0]
[null,null,null,null,null,null,null,null,null,null,null,null,0,-1000,0,null,0,-1000,0]
[null,null,null,null,null,null,null,null,null,null,null,null,0,-1000,0,null,0,-1000,0]
[null,null,null,null,null,null,null,null,null,null,null,null,0,-1000,0,null,0,-1000,0]
[null,null,null,null,null,null,null,null,null,null,null,null,0,-1000,0,null,0,-1000,0]
[null,null,null,null,null,null,null,null,null,null,null,null,0,-1000,0,null,0,-1000,0]
[null,null,null,null,null,null,null,null,null,null,null,null,0,{"$f":"IF(M90>0,M90*-1,-1000)","v":-1000},0,null,0,-1000,0]
[null,null,null,null,null,null,null,null,null,null,null,null,0,-1000,0,null,0,-1000,0]
[null,null,null,null,null,null,null,null,null,null,null,null,0,-1000,0,null,0,-1000,0]
[null,null,null,null,null,null,null,null,null,null,null,null,0,-1000,0,null,0,-1000,0]
[null,null,null,null,null,null,null,null,null,null,null,null,0,-1000,0,null,0,-1000,0]
[null,null,null,null,null,null,null,null,null,null,null,null,0,{"$f":"IF(M95>0,M95*-1,-1000)","v":-1000},0,null,0,-1000,0]
[null,null,null,null,null,null,null,null,null,null,null,null,0,-1000,0,null,0,-1000,0]
[null,null,null,null,null,null,null,null,null,null,null,null,0,-1000,0,null,0,-1000,0]
[null,null,null,null,null,null,null,null,null,null,null,null,0,-1000,0,null,0,-1000,0]
[null,null,null,null,null,null,null,null,null,null,null,null,0,-1000,0,null,0,-1000,0]
[null,null,null,null,null,null,null,null,null,null,null,null,0,-1000,0,null,0,-1000,0]
[null,null,null,null,null,null,null,null,null,null,null,null,0,-1000,0,null,0,-1000,0]
[null,null,null,null,null,null,null,null,null,null,null,null,0,-1000,0,null,0,-1000,0]
[null,null,null,null,null,null,null,null,null,null,null,null,0,-1000,0,null,0,-1000,0]
[null,null,null,null,null,null,null,null,null,null,null,null,0,-1000,0,null,0,-1000,0]
[null,null,null,null,null,null,null,null,null,null,null,null,0,-1000,0,null,0,-1000,0]
[null,null,null,null,null,null,null,null,null,null,null,null,0,-1000,0,null,0,-1000,0]
[null,null,null,null,null,null,null,null,null,null,null,null,0,-1000,0,null,0,-1000,0]
[null,null,null,null,null,null,null,null,null,null,null,null,0,-1000,0,null,0,-1000,0]
[null,null,null,null,null,null,null,null,null,null,null,null,0,-1000,0,null,0,-1000,0]
[null,null,null,null,null,null,null,null,null,null,null,null,0,-1000,0,null,0,-1000,0]
[null,null,null,null,null,null,null,null,null,null,null,null,0,-1000,0,null,0,-1000,0]
[null,null,null,null,null,null,null,null,null,null,null,null,0,-1000,0,null,0,-1000,0]
[null,null,null,null,null,null,null,null,null,null,null,null,0,-1000,0,null,0,-1000,0]
[null,null,null,null,null,null,null,null,null,null,null,null,0,-1000,0,null,0,-1000,0]
[null,null,null,null,null,null,null,null,null,null,null,null,0,-1000,0,null,0,-1000,0]
[null,null,null,null,null,null,null,null,null,null,null,null,0,-1000,0,null,0,-1000,0]
[null,null,null,null,null,null,null,null,null,null,null,null,0,-1000,0,null,0,-1000,0]
[null,null,null,null,null,null,null,null,null,null,null,null,0,-1000,0,null,0,-1000,0]
[null,null,null,null,null,null,null,null,null,null,null,null,0,-1000,0,null,0,-1000,0]
[null,null,null,null,null,null,null,null,null,null,null,null,0,-1000,0,null,0,-1000,0]
[null,null,null,null,null,null,null,null,null,null,null,null,0,-1000,0,null,0,-1000,0]
[null,null,null,null,null,null,null,null,null,null,null,null,0,-1000,0,null,0,-1000,0]
[null,null,null,null,null,null,null,null,null,null,null,null,0,-1000,0,null,0,-1000,0]
[null,null,null,null,null,null,null,null,null,null,null,null,0,-1000,0,null,0,-1000,0]
[null,null,null,null,null,null,null,null,null,null,null,null,0,-1000,0,null,0,-1000,0]
[null,null,null,null,null,null,null,null,null,null,null,null,0,-1000,0,null,0,-1000,0]
[null,null,null,null,null,null,null,null,null,null,null,null,0,-1000,0,null,0,-1000,0]
[null,null,null,null,null,null,null,null,null,null,null,null,0,-1000,0,null,0,-1000,0]
[null,null,null,null,null,null,null,null,null,null,null,null,0,-1000,0,null,0,-1000,0]
[null,null,null,null,null,null,null,null,null,null,null,null,0,-1000,0,null,0,-1000,0]
[null,null,null,null,null,null,null,null,null,null,null,null,0,-1000,0,null,0,-1000,0]
[null,null,null,null,null,null,null,null,null,null,null,null,0,-1000,0,null,0,-1000,0]
[null,null,null,null,null,null,null,null,null,null,null,null,0,-1000,0,null,0,-1000,0]
[null,null,null,null,null,null,null,null,null,null,null,null,0,-1000,0,null,0,-1000,0]
[null,null,null,null,null,null,null,null,null,null,null,null,0,-1000,0,null,0,-1000,0]
[null,null,null,null,null,null,null,null,null,null,null,null,0,-1000,0,null,0,-1000,0]
[null,null,null,null,null,null,null,null,null,null,null,null,{"$f":"(G137*$G$4+H137*$H$4+I137*$I$4+J137*$J$4+K137*$K$4+L137*$L$4)","v":0},-1000,{"$f":"IF(M137>0,RANK(N137,N:N),0)","v":0},null,{"$f":"IF((G137*$G$4+H137*$H$4+I137*$I$4+J137*$J$4+K137*$K$4+L137*$L$4)>0,(G137*$G$4+H137*$H$4+I137*$I$4+J137*$J$4+K137*$K$4+L137*$L$4)/(IF(G137>0,1*$G$4,0)+IF(H137>0,1*$H$4,0)+IF(I137>0,1*$I$4,0)+IF(J137>0,1*$J$4,0)+IF(K137>0,1*$K$4,0)+IF(L137>0,1*$L$4,0)),0)","v":0},-1000,{"$f":"IF(Q137>0,RANK(R137,R:R),0)","v":0}]
[null,null,null,null,null,null,null,null,null,null,null,null,0,-1000,0,null,0,-1000,0]
[null,null,null,null,null,null,null,null,null,null,null,null,0,-1000,0,null,0,-1000,0]
[null,null,null,null,null,null,null,null,null,null,null,null,0,-1000,0,null,0,-1000,0]
[null,null,null,null,null,null,null,null,null,null,null,null,0,-1000,0,null,0,-1000,0]
[null,null,null,null,null,null,null,null,null,null,null,null,0,-1000,0,null,0,-1000,0]
[null,null,null,null,null,null,null,null,null,null,null,null,0,-1000,0,null,0,-1000,0]
[null,null,null,null,null,null,null,null,null,null,null,null,0,-1000,0,null,0,-1000,0]
[null,null,null,null,null,null,null,null,null,null,null,null,0,-1000,0,null,0,-1000,0]
[null,null,null,null,null,null,null,null,null,null,null,null,0,-1000,0,null,0,-1000,0]
[null,null,null,null,null,null,null,null,null,null,null,null,0,-1000,0,null,0,-1000,0]
[null,null,null,null,null,null,null,null,null,null,null,null,0,-1000,0,null,0,-1000,0]
[null,null,null,null,null,null,null,null,null,null,null,null,0,-1000,0,null,0,-1000,0]

{"sheet":"WDM-XL18","index":3,"n_rows":149,"n_cols":19,"rows_kept":149,"cut":false,"hidden":false,"merged":[[6,16,6,17]]}
["DSKD  69. Deutsche Meisterschaft und 19. Europameisterschaft 2017 Mettingen  ESKD"]
["DM - Wertungsläufe in der XL Ü18 - Klasse"]
["6 Endlauf-Teilnehmer",null,null,null,null,null,null,null,null,null,null,null,null,null,null,null,null,null,"Bestzeit"]
["Wird der Lauf gewertet?   dann 0 oder 1 eintragen",null,null,null,null,null,0,1,1,1,1,1,null,null,null,null,null,null,"in Vorläufen"]
[null,null,null,null,"Bestzeit je Lauf",null,{"$f":"MIN(G9:G149)","v":36.58},36.72,36.53,36.69,36.79,100,null,null,null,null,null,null,{"$f":"MIN((IF(G4=1,G5,99)),        (IF(H4=1,H5,99)),   (IF(I4=1,I5,99)),  (IF(J4=1,J5,99)), (IF(K4=1,K5,99)),  (IF(L4=1,L5,99))       )","v":36.53}]
[null,null,null,null,"Mittelwert je Lauf",null,{"$f":"IF(G5>0,AVERAGE(G9:G149),0)","v":36.940526315789477},36.994736842105262,36.88058823529412,36.915263157894742,37.020526315789475,100]
["Start\nNummer","Gruppe","startet","Name","Vorname","Verein","Lauf 1","Lauf 2","Lauf 3","Lauf 4","Lauf 5","Lauf 6","Summe der gewerteten Läufe",null,"Platz",null,"Mittelwert",null,"Platz"]
[]
[313,"Ü18",null,"Rohls","Sebastian","Seifenkistengruppe Stromberg",36.58,36.72,36.53,36.69,36.840000000000003,null,{"$f":"(G9*$G$4+H9*$H$4+I9*$I$4+J9*$J$4+K9*$K$4+L9*$L$4)","v":146.78},{"$f":"IF(M9>0,M9*-1,-1000)","v":-146.78},{"$f":"IF(M9>0,RANK(N9,N:N),0)","v":1},null,{"$f":"IF((G9*$G$4+H9*$H$4+I9*$I$4+J9*$J$4+K9*$K$4+L9*$L$4)>0,(G9*$G$4+H9*$H$4+I9*$I$4+J9*$J$4+K9*$K$4+L9*$L$4)/(IF(G9>0,1*$G$4,0)+IF(H9>0,1*$H$4,0)+IF(I9>0,1*$I$4,0)+IF(J9>0,1*$J$4,0)+IF(K9>0,1*$K$4,0)+IF(L9>0,1*$L$4,0)),0)","v":36.695},{"$f":"IF(Q9>0,Q9*-1,-1000)","v":-36.695},{"$f":"IF(Q9>0,RANK(R9,R:R),0)","v":1}]
[304,"Ü18",null,"Lange","Florian","Jugendclub Mettinger SK-Derby",36.67,36.78,36.69,36.74,36.79,null,147,-147,2,null,36.75,-36.75,2]
[305,"Ü18",null,"Voß","Marie-Charlotte","Immer auf Achse Bergkamen",36.86,36.770000000000003,36.71,36.69,36.85,null,147.02000000000001,-147.02000000000001,3,null,36.755000000000003,-36.755000000000003,3]
[306,"Ü18",null,"Isaac","Marvin","Eifeler-Seifenkistenfreunde Simmerath",36.75,36.770000000000003,36.700000000000003,36.74,36.869999999999997,null,147.08000000000001,-147.08000000000001,4,null,36.770000000000003,-36.770000000000003,4]
[316,"Ü18",null,"Bontjes","Sabine","Power Crew Berlin",36.840000000000003,36.83,36.85,36.74,36.950000000000003,null,147.37,-147.37,5,null,36.842500000000001,-36.842500000000001,5]
[312,"Ü18",null,"Hollunder","Christina","Berkel Raser Billerbeck",36.619999999999997,36.869999999999997,36.880000000000003,36.799999999999997,36.9,null,147.44999999999999,-147.44999999999999,6,null,36.862499999999997,-36.862499999999997,6]
[315,"Ü18",null,"Schmidt","Imke","Friesenflitzer Varel",36.770000000000003,36.93,36.799999999999997,36.85,36.89,null,147.46999999999997,-147.46999999999997,7,null,36.867499999999993,-36.867499999999993,7]
[302,"Ü18",null,"Wetter","Sebastian","Berkel Raser Billerbeck",36.93,36.92,36.92,36.79,36.909999999999997,null,147.54,-147.54,8,null,36.884999999999998,-36.884999999999998,8]
[314,"Ü18",null,"Wettendorf","Kathrin","Seifenkistengruppe Stromberg",36.86,36.9,36.869999999999997,36.85,37.049999999999997,null,147.67000000000002,-147.67000000000002,9,null,36.917500000000004,-36.917500000000004,9]
[310,"Ü18",null,"Schröer","Sabrina","Jugendclub Mettinger SK-Derby",36.78,36.99,36.799999999999997,37.01,37.01,null,147.80999999999997,-147.80999999999997,10,null,36.952499999999993,-36.952499999999993,10]
[303,"Ü18",null,"Gudlowski","Svea","Joker-Team Berlin ",36.94,37.03,37.01,36.9,37.049999999999997,null,147.99,-147.99,11,null,36.997500000000002,-36.997500000000002,11]
[319,"Ü18",null,"Leismann","Dominik","Jugendclub Mettinger SK-Derby",37.01,36.96,37.049999999999997,37,37.03,null,148.04,-148.04,12,null,37.01,-37.01,12]
[309,"Ü18",null,"Schneider","Ingo","Joker-Team Berlin ",36.950000000000003,37.06,37,37.04,37.17,null,148.26999999999998,-148.26999999999998,13,null,37.067499999999995,-37.067499999999995,13]
[307,"Ü18",null,"Kelch","Maria","Immer auf Achse Bergkamen",36.99,37.14,36.950000000000003,37.159999999999997,37.08,null,148.32999999999998,-148.32999999999998,14,null,37.082499999999996,-37.082499999999996,14]
[308,"Ü18",null,"Leismann","Pascal","SV Losaurach",36.99,37.08,37.03,37.15,37.07,null,148.32999999999998,-148.32999999999998,14,null,37.082499999999996,-37.082499999999996,14]
[311,"Ü18",null,"Ricker","Kristina","Berkel Raser Billerbeck",36.9,37.15,37.090000000000003,36.979999999999997,37.28,null,148.5,-148.5,16,null,37.125,-37.125,16]
[318,"Ü18","EM","Nicolescu","Bogdan","Rumänien",37.119999999999997,37.130000000000003,null,37.090000000000003,37.270000000000003,100,211.49,-211.49,17,null,52.872500000000002,-52.872500000000002,18]
[317,"Ü18","EM","Bataljevs","Maris","Lettland",38.19,37.79,null,37.18,37.369999999999997,100,212.34,-212.34,18,null,53.085000000000001,-53.085000000000001,19]
[301,"Ü18","EM","Loo van","Julian","Belgien",37.119999999999997,37.08,37.090000000000003,36.99,37.01,100,248.17,-248.17,19,null,49.634,-49.634,17]
[null,null,null,null,null,null,null,null,null,null,null,null,0,-1000,0,null,0,-1000,0]
[null,null,null,null,null,null,null,null,null,null,null,null,0,-1000,0,null,0,-1000,0]
[null,null,null,null,null,null,null,null,null,null,null,null,0,-1000,0,null,0,-1000,0]
[null,null,null,null,null,null,null,null,null,null,null,null,0,-1000,0,null,0,-1000,0]
[null,null,null,null,null,null,null,null,null,null,null,null,0,-1000,0,null,0,-1000,0]
[null,null,null,null,null,null,null,null,null,null,null,null,0,-1000,0,null,0,-1000,0]
[null,null,null,null,null,null,null,null,null,null,null,null,0,-1000,0,null,0,-1000,0]
[null,null,null,null,null,null,null,null,null,null,null,null,0,-1000,0,null,0,-1000,0]
[null,null,null,null,null,null,null,null,null,null,null,null,0,{"$f":"IF(M36>0,M36*-1,-1000)","v":-1000},0,null,0,-1000,0]
[null,null,null,null,null,null,null,null,null,null,null,null,0,{"$f":"IF(M37>0,M37*-1,-1000)","v":-1000},0,null,0,-1000,0]
[null,null,null,null,null,null,null,null,null,null,null,null,0,{"$f":"IF(M38>0,M38*-1,-1000)","v":-1000},0,null,0,-1000,0]
[null,null,null,null,null,null,null,null,null,null,null,null,0,{"$f":"IF(M39>0,M39*-1,-1000)","v":-1000},0,null,0,-1000,0]
[null,null,null,null,null,null,null,null,null,null,null,null,0,{"$f":"IF(M40>0,M40*-1,-1000)","v":-1000},0,null,0,-1000,0]
[null,null,null,null,null,null,null,null,null,null,null,null,0,-1000,0,null,0,-1000,0]
[null,null,null,null,null,null,null,null,null,null,null,null,0,{"$f":"IF(M42>0,M42*-1,-1000)","v":-1000},0,null,0,-1000,0]
[null,null,null,null,null,null,null,null,null,null,null,null,0,{"$f":"IF(M43>0,M43*-1,-1000)","v":-1000},0,null,0,-1000,0]
[null,null,null,null,null,null,null,null,null,null,null,null,0,-1000,0,null,0,-1000,0]
[null,null,null,null,null,null,null,null,null,null,null,null,0,-1000,0,null,0,-1000,0]
[null,null,null,null,null,null,null,null,null,null,null,null,0,-1000,0,null,0,-1000,0]
[null,null,null,null,null,null,null,null,null,null,null,null,0,-1000,0,null,0,-1000,0]
[null,null,null,null,null,null,null,null,null,null,null,null,0,-1000,0,null,0,-1000,0]
[null,null,null,null,null,null,null,null,null,null,null,null,0,-1000,0,null,0,-1000,0]
[null,null,null,null,null,null,null,null,null,null,null,null,0,-1000,0,null,0,-1000,0]
[null,null,null,null,null,null,null,null,null,null,null,null,0,-1000,0,null,0,-1000,0]
[null,null,null,null,null,null,null,null,null,null,null,null,0,-1000,0,null,0,-1000,0]
[null,null,null,null,null,null,null,null,null,null,null,null,0,-1000,0,null,0,-1000,0]
[null,null,null,null,null,null,null,null,null,null,null,null,0,-1000,0,null,0,-1000,0]
[null,null,null,null,null,null,null,null,null,null,null,null,0,-1000,0,null,0,-1000,0]
[null,null,null,null,null,null,null,null,null,null,null,null,0,-1000,0,null,0,-1000,0]
[null,null,null,null,null,null,null,null,null,null,null,null,0,-1000,0,null,0,-1000,0]
[null,null,null,null,null,null,null,null,null,null,null,null,0,-1000,0,null,0,-1000,0]
[null,null,null,null,null,null,null,null,null,null,null,null,0,-1000,0,null,0,-1000,0]
[null,null,null,null,null,null,null,null,null,null,null,null,0,-1000,0,null,0,-1000,0]
[null,null,null,null,null,null,null,null,null,null,null,null,0,-1000,0,null,0,-1000,0]
[null,null,null,null,null,null,null,null,null,null,null,null,0,-1000,0,null,0,-1000,0]
[null,null,null,null,null,null,null,null,null,null,null,null,0,-1000,0,null,0,-1000,0]
[null,null,null,null,null,null,null,null,null,null,null,null,0,-1000,0,null,0,-1000,0]
[null,null,null,null,null,null,null,null,null,null,null,null,0,-1000,0,null,0,-1000,0]
[null,null,null,null,null,null,null,null,null,null,null,null,0,-1000,0,null,0,-1000,0]
[null,null,null,null,null,null,null,null,null,null,null,null,0,-1000,0,null,0,-1000,0]
[null,null,null,null,null,null,null,null,null,null,null,null,0,-1000,0,null,0,-1000,0]
[null,null,null,null,null,null,null,null,null,null,null,null,0,-1000,0,null,0,-1000,0]
[null,null,null,null,null,null,null,null,null,null,null,null,0,-1000,0,null,0,-1000,0]
[null,null,null,null,null,null,null,null,null,null,null,null,0,{"$f":"IF(M71>0,M71*-1,-1000)","v":-1000},0,null,0,-1000,0]
[null,null,null,null,null,null,null,null,null,null,null,null,0,{"$f":"IF(M72>0,M72*-1,-1000)","v":-1000},0,null,0,-1000,0]
[null,null,null,null,null,null,null,null,null,null,null,null,{"$f":"(G73*$G$4+H73*$H$4+I73*$I$4+J73*$J$4+K73*$K$4+L73*$L$4)","v":0},{"$f":"IF(M73>0,M73*-1,-1000)","v":-1000},{"$f":"IF(M73>0,RANK(N73,N:N),0)","v":0},null,{"$f":"IF((G73*$G$4+H73*$H$4+I73*$I$4+J73*$J$4+K73*$K$4+L73*$L$4)>0,(G73*$G$4+H73*$H$4+I73*$I$4+J73*$J$4+K73*$K$4+L73*$L$4)/(IF(G73>0,1*$G$4,0)+IF(H73>0,1*$H$4,0)+IF(I73>0,1*$I$4,0)+IF(J73>0,1*$J$4,0)+IF(K73>0,1*$K$4,0)+IF(L73>0,1*$L$4,0)),0)","v":0},{"$f":"IF(Q73>0,Q73*-1,-1000)","v":-1000},{"$f":"IF(Q73>0,RANK(R73,R:R),0)","v":0}]
[null,null,null,null,null,null,null,null,null,null,null,null,0,{"$f":"IF(M74>0,M74*-1,-1000)","v":-1000},0,null,0,-1000,0]
[null,null,null,null,null,null,null,null,null,null,null,null,0,{"$f":"IF(M75>0,M75*-1,-1000)","v":-1000},0,null,0,-1000,0]
[null,null,null,null,null,null,null,null,null,null,null,null,0,{"$f":"IF(M76>0,M76*-1,-1000)","v":-1000},0,null,0,-1000,0]
[null,null,null,null,null,null,null,null,null,null,null,null,0,{"$f":"IF(M77>0,M77*-1,-1000)","v":-1000},0,null,0,-1000,0]
[null,null,null,null,null,null,null,null,null,null,null,null,0,-1000,0,null,0,-1000,0]
[null,null,null,null,null,null,null,null,null,null,null,null,0,-1000,0,null,0,-1000,0]
[null,null,null,null,null,null,null,null,null,null,null,null,0,{"$f":"IF(M80>0,M80*-1,-1000)","v":-1000},0,null,0,-1000,0]
[null,null,null,null,null,null,null,null,null,null,null,null,0,{"$f":"IF(M81>0,M81*-1,-1000)","v":-1000},0,null,0,-1000,0]
[null,null,null,null,null,null,null,null,null,null,null,null,0,{"$f":"IF(M82>0,M82*-1,-1000)","v":-1000},0,null,0,-1000,0]
[null,null,null,null,null,null,null,null,null,null,null,null,0,-1000,0,null,0,-1000,0]
[null,null,null,null,null,null,null,null,null,null,null,null,0,-1000,0,null,0,-1000,0]
[null,null,null,null,null,null,null,null,null,null,null,null,0,-1000,0,null,0,-1000,0]
[null,null,null,null,null,null,null,null,null,null,null,null,0,-1000,0,null,0,-1000,0]
[null,null,null,null,null,null,null,null,null,null,null,null,0,-1000,0,null,0,-1000,0]
[null,null,null,null,null,null,null,null,null,null,null,null,0,-1000,0,null,0,-1000,0]
[null,null,null,null,null,null,null,null,null,null,null,null,0,-1000,0,null,0,-1000,0]
[null,null,null,null,null,null,null,null,null,null,null,null,0,{"$f":"IF(M90>0,M90*-1,-1000)","v":-1000},0,null,0,-1000,0]
[null,null,null,null,null,null,null,null,null,null,null,null,0,-1000,0,null,0,-1000,0]
[null,null,null,null,null,null,null,null,null,null,null,null,0,-1000,0,null,0,-1000,0]
[null,null,null,null,null,null,null,null,null,null,null,null,0,-1000,0,null,0,-1000,0]
[null,null,null,null,null,null,null,null,null,null,null,null,0,-1000,0,null,0,-1000,0]
[null,null,null,null,null,null,null,null,null,null,null,null,0,{"$f":"IF(M95>0,M95*-1,-1000)","v":-1000},0,null,0,-1000,0]
[null,null,null,null,null,null,null,null,null,null,null,null,0,-1000,0,null,0,-1000,0]
[null,null,null,null,null,null,null,null,null,null,null,null,0,-1000,0,null,0,-1000,0]
[null,null,null,null,null,null,null,null,null,null,null,null,0,-1000,0,null,0,-1000,0]
[null,null,null,null,null,null,null,null,null,null,null,null,0,-1000,0,null,0,-1000,0]
[null,null,null,null,null,null,null,null,null,null,null,null,0,-1000,0,null,0,-1000,0]
[null,null,null,null,null,null,null,null,null,null,null,null,0,-1000,0,null,0,-1000,0]
[null,null,null,null,null,null,null,null,null,null,null,null,0,-1000,0,null,0,-1000,0]
[null,null,null,null,null,null,null,null,null,null,null,null,0,-1000,0,null,0,-1000,0]
[null,null,null,null,null,null,null,null,null,null,null,null,0,-1000,0,null,0,-1000,0]
[null,null,null,null,null,null,null,null,null,null,null,null,0,-1000,0,null,0,-1000,0]
[null,null,null,null,null,null,null,null,null,null,null,null,0,-1000,0,null,0,-1000,0]
[null,null,null,null,null,null,null,null,null,null,null,null,0,-1000,0,null,0,-1000,0]
[null,null,null,null,null,null,null,null,null,null,null,null,0,-1000,0,null,0,-1000,0]
[null,null,null,null,null,null,null,null,null,null,null,null,0,-1000,0,null,0,-1000,0]
[null,null,null,null,null,null,null,null,null,null,null,null,0,-1000,0,null,0,-1000,0]
[null,null,null,null,null,null,null,null,null,null,null,null,0,-1000,0,null,0,-1000,0]
[null,null,null,null,null,null,null,null,null,null,null,null,0,-1000,0,null,0,-1000,0]
[null,null,null,null,null,null,null,null,null,null,null,null,0,-1000,0,null,0,-1000,0]
[null,null,null,null,null,null,null,null,null,null,null,null,0,-1000,0,null,0,-1000,0]
[null,null,null,null,null,null,null,null,null,null,null,null,0,-1000,0,null,0,-1000,0]
[null,null,null,null,null,null,null,null,null,null,null,null,0,-1000,0,null,0,-1000,0]
[null,null,null,null,null,null,null,null,null,null,null,null,0,-1000,0,null,0,-1000,0]
[null,null,null,null,null,null,null,null,null,null,null,null,0,-1000,0,null,0,-1000,0]
[null,null,null,null,null,null,null,null,null,null,null,null,0,-1000,0,null,0,-1000,0]
[null,null,null,null,null,null,null,null,null,null,null,null,0,-1000,0,null,0,-1000,0]
[null,null,null,null,null,null,null,null,null,null,null,null,0,-1000,0,null,0,-1000,0]
[null,null,null,null,null,null,null,null,null,null,null,null,0,-1000,0,null,0,-1000,0]
[null,null,null,null,null,null,null,null,null,null,null,null,0,-1000,0,null,0,-1000,0]
[null,null,null,null,null,null,null,null,null,null,null,null,0,-1000,0,null,0,-1000,0]
[null,null,null,null,null,null,null,null,null,null,null,null,0,-1000,0,null,0,-1000,0]
[null,null,null,null,null,null,null,null,null,null,null,null,0,-1000,0,null,0,-1000,0]
[null,null,null,null,null,null,null,null,null,null,null,null,0,-1000,0,null,0,-1000,0]
[null,null,null,null,null,null,null,null,null,null,null,null,0,-1000,0,null,0,-1000,0]
[null,null,null,null,null,null,null,null,null,null,null,null,0,-1000,0,null,0,-1000,0]
[null,null,null,null,null,null,null,null,null,null,null,null,0,-1000,0,null,0,-1000,0]
[null,null,null,null,null,null,null,null,null,null,null,null,0,-1000,0,null,0,-1000,0]
[null,null,null,null,null,null,null,null,null,null,null,null,0,-1000,0,null,0,-1000,0]
[null,null,null,null,null,null,null,null,null,null,null,null,0,-1000,0,null,0,-1000,0]
[null,null,null,null,null,null,null,null,null,null,null,null,0,-1000,0,null,0,-1000,0]
[null,null,null,null,null,null,null,null,null,null,null,null,0,-1000,0,null,0,-1000,0]
[null,null,null,null,null,null,null,null,null,null,null,null,0,-1000,0,null,0,-1000,0]
[null,null,null,null,null,null,null,null,null,null,null,null,{"$f":"(G137*$G$4+H137*$H$4+I137*$I$4+J137*$J$4+K137*$K$4+L137*$L$4)","v":0},-1000,{"$f":"IF(M137>0,RANK(N137,N:N),0)","v":0},null,{"$f":"IF((G137*$G$4+H137*$H$4+I137*$I$4+J137*$J$4+K137*$K$4+L137*$L$4)>0,(G137*$G$4+H137*$H$4+I137*$I$4+J137*$J$4+K137*$K$4+L137*$L$4)/(IF(G137>0,1*$G$4,0)+IF(H137>0,1*$H$4,0)+IF(I137>0,1*$I$4,0)+IF(J137>0,1*$J$4,0)+IF(K137>0,1*$K$4,0)+IF(L137>0,1*$L$4,0)),0)","v":0},-1000,{"$f":"IF(Q137>0,RANK(R137,R:R),0)","v":0}]
[null,null,null,null,null,null,null,null,null,null,null,null,0,-1000,0,null,0,-1000,0]
[null,null,null,null,null,null,null,null,null,null,null,null,0,-1000,0,null,0,-1000,0]
[null,null,null,null,null,null,null,null,null,null,null,null,0,-1000,0,null,0,-1000,0]
[null,null,null,null,null,null,null,null,null,null,null,null,0,-1000,0,null,0,-1000,0]
[null,null,null,null,null,null,null,null,null,null,null,null,0,-1000,0,null,0,-1000,0]
[null,null,null,null,null,null,null,null,null,null,null,null,0,-1000,0,null,0,-1000,0]
[null,null,null,null,null,null,null,null,null,null,null,null,0,-1000,0,null,0,-1000,0]
[null,null,null,null,null,null,null,null,null,null,null,null,0,-1000,0,null,0,-1000,0]
[null,null,null,null,null,null,null,null,null,null,null,null,0,-1000,0,null,0,-1000,0]
[null,null,null,null,null,null,null,null,null,null,null,null,0,-1000,0,null,0,-1000,0]
[null,null,null,null,null,null,null,null,null,null,null,null,0,-1000,0,null,0,-1000,0]
[null,null,null,null,null,null,null,null,null,null,null,null,0,-1000,0,null,0,-1000,0]

{"sheet":"WDMOpen","index":4,"n_rows":202,"n_cols":15,"rows_kept":202,"cut":false,"hidden":false,"merged":[]}
["DSKD  69. Deutsche Meisterschaft und 19. Europameisterschaft 2017 Mettingen  ESKD"]
["  DM - Wertungsläufe in der DSKD-Open - Klasse  "]
["4 Endlauf-Teilnehmer"]
[null,null,null,null,null,null,0,1,1,1,1,0,1]
["Bestzeit je Lauf",null,null,null,null,null,{"$f":"MIN(G9:G202)","v":37.15},36.590000000000003,36.32,36,35.97,0,0]
[]
["Start\nNummer","Gruppe","startet","Name","Vorname","Verein","Lauf 1","Lauf 2","Lauf 3","Lauf 4","Lauf 5","Lauf 6","Summe",null,"Platz"]
[]
[507,"Open",null,"Hollweck","Laura","MSVg Gerolzhofen",39.659999999999997,39.270000000000003,39.35,38.909999999999997,39.36,null,{"$f":"IF($G$4=1,\nIF(H9>1,(ABS(G9-H9)),0)+\nIF(I9>1,(ABS(G9-I9)),0)+\nIF(J9>1,(ABS(G9-J9)),0)+\nIF(K9>1,(ABS(G9-K9)),0)+\nIF(L9>1,(ABS(G9-L9)),0),\n\nIF(I9>1,(ABS(H9-I9)),0)+\nIF(J9>1,(ABS(H9-J9)),0)+\nIF(K9>1,(ABS(H9-K9)),0) )","v":0.53000000000000114},{"$f":"IF(M9>0,M9*-1,-1000)","v":-0.53000000000000114},{"$f":"IF(M9>0,RANK(N9,N:N),0)","v":1}]
[510,"Open",null,"Ricker","Andreas","Berkel Raser Billerbeck",41.57,41.01,40.450000000000003,40.880000000000003,40.78,null,0.91999999999998749,-0.91999999999998749,2]
[505,"Open",null,"Ohla","Thorben","SKK Moselflitzer Klüsserath",37.5,37.46,37.340000000000003,36.94,36.99,null,1.1099999999999994,-1.1099999999999994,3]
[512,"Open",null,"Schmidt","Michael","Friesenflitzer Varel",37.86,37.64,37.159999999999997,37.31,37.26,null,1.1900000000000048,-1.1900000000000048,4]
[515,"Open",null,"Crook","Florian","Jugendclub Mettinger SK-Derby",38.42,38.159999999999997,37.89,37.67,37.64,null,1.2799999999999869,-1.2799999999999869,5]
[501,"Open",null,"Feinauer","Louis","SV Losaurach",38.64,38.82,38.729999999999997,38.020000000000003,38.380000000000003,null,1.3299999999999983,-1.3299999999999983,6]
[504,"Open",null,"Wetter","Sabrina","Berkel Raser Billerbeck",37.74,37.950000000000003,37.65,37.369999999999997,37.36,null,1.4700000000000131,-1.4700000000000131,7]
[508,"Open",null,"Schleuß","Susan","SK-Verband Baden-Württemberg",37.15,36.590000000000003,36.32,36,35.97,null,1.4800000000000111,-1.4800000000000111,8]
[509,"Open",null,"Klimpel","Corinna","Power Crew Berlin",38.21,37.82,37.22,37.22,37.200000000000003,null,1.8200000000000003,-1.8200000000000003,9]
[502,"Open",null,"Pahlings","Anna","ConAction Köln",39.57,39.619999999999997,39.57,38.840000000000003,38.619999999999997,null,1.8299999999999912,-1.8299999999999912,10]
[503,"Open",null,"Pahlings","Kai","ConAction Köln",39.409999999999997,39.96,39.9,39.090000000000003,39.04,null,1.8500000000000014,-1.8500000000000014,11]
[506,"Open",null,"Pahlings","Iris","ConAction Köln",40.17,40.32,39.76,38.82,38.72,null,3.6600000000000037,-3.6600000000000037,12]
[513,"Open",null,"Gerigk-Lorenz","Frank","Flotte Kisten Overath",null,null,null,null,null,null,0,-1000,0]
[514,"Open",null,"Gaidosch","Udo","Flotte Kisten Overath",null,null,null,null,null,null,0,-1000,0]
[511,"Open",null,"Schneider","Gabriele","Joker-Team Berlin ",47.9,47.12,45.36,44.88,45.27,null,5.8499999999999872,-5.8499999999999872,13]
[516,null,null,null,null,null,null,null,null,null,null,null,0,-1000,0]
[517,null,null,null,null,null,null,null,null,null,null,null,0,-1000,0]
[518,null,null,null,null,null,null,null,null,null,null,null,0,-1000,0]
[null,null,null,null,null,null,null,null,null,null,null,null,0,-1000,0]
[null,null,null,null,null,null,null,null,null,null,null,null,0,-1000,0]
[null,null,null,null,null,null,null,null,null,null,null,null,0,-1000,0]
[null,null,null,null,null,null,null,null,null,null,null,null,0,-1000,0]
[null,null,null,null,null,null,null,null,null,null,null,null,0,-1000,0]
[null,null,null,null,null,null,null,null,null,null,null,null,0,-1000,0]
[null,null,null,null,null,null,null,null,null,null,null,null,0,-1000,0]
[null,null,null,null,null,null,null,null,null,null,null,null,0,-1000,0]
[null,null,null,null,null,null,null,null,null,null,null,null,0,-1000,0]
[null,null,null,null,null,null,null,null,null,null,null,null,0,-1000,0]
[null,null,null,null,null,null,null,null,null,null,null,null,0,-1000,0]
[null,null,null,null,null,null,null,null,null,null,null,null,0,-1000,0]
[null,null,null,null,null,null,null,null,null,null,null,null,0,-1000,0]
[null,null,null,null,null,null,null,null,null,null,null,null,0,-1000,0]
[null,null,null,null,null,null,null,null,null,null,null,null,0,-1000,0]
[null,null,null,null,null,null,null,null,null,null,null,null,0,-1000,0]
[null,null,null,null,null,null,null,null,null,null,null,null,0,-1000,0]
[null,null,null,null,null,null,null,null,null,null,null,null,0,-1000,0]
[null,null,null,null,null,null,null,null,null,null,null,null,0,-1000,0]
[null,null,null,null,null,null,null,null,null,null,null,null,0,-1000,0]
[null,null,null,null,null,null,null,null,null,null,null,null,0,-1000,0]
[null,null,null,null,null,null,null,null,null,null,null,null,0,-1000,0]
[null,null,null,null,null,null,null,null,null,null,null,null,0,-1000,0]
[null,null,null,null,null,null,null,null,null,null,null,null,0,-1000,0]
[null,null,null,null,null,null,null,null,null,null,null,null,0,-1000,0]
[null,null,null,null,null,null,null,null,null,null,null,null,0,-1000,0]
[null,null,null,null,null,null,null,null,null,null,null,null,0,-1000,0]
[null,null,null,null,null,null,null,null,null,null,null,null,0,-1000,0]
[null,null,null,null,null,null,null,null,null,null,null,null,0,-1000,0]
[null,null,null,null,null,null,null,null,null,null,null,null,0,-1000,0]
[null,null,null,null,null,null,null,null,null,null,null,null,0,-1000,0]
[null,null,null,null,null,null,null,null,null,null,null,null,0,-1000,0]
[null,null,null,null,null,null,null,null,null,null,null,null,0,-1000,0]
[null,null,null,null,null,null,null,null,null,null,null,null,0,-1000,0]
[null,null,null,null,null,null,null,null,null,null,null,null,0,-1000,0]
[null,null,null,null,null,null,null,null,null,null,null,null,0,-1000,0]
[null,null,null,null,null,null,null,null,null,null,null,null,0,-1000,0]
[null,null,null,null,null,null,null,null,null,null,null,null,0,-1000,0]
[null,null,null,null,null,null,null,null,null,null,null,null,0,-1000,0]
[null,null,null,null,null,null,null,null,null,null,null,null,0,-1000,0]
[null,null,null,null,null,null,null,null,null,null,null,null,0,-1000,0]
[null,null,null,null,null,null,null,null,null,null,null,null,0,-1000,0]
[null,null,null,null,null,null,null,null,null,null,null,null,0,-1000,0]
[null,null,null,null,null,null,null,null,null,null,null,null,0,-1000,0]
[null,null,null,null,null,null,null,null,null,null,null,null,0,-1000,0]
[null,null,null,null,null,null,null,null,null,null,null,null,0,-1000,0]
[null,null,null,null,null,null,null,null,null,null,null,null,{"$f":"IF($G$4=1,\nIF(H73>1,(ABS(G73-H73)),0)+\nIF(I73>1,(ABS(G73-I73)),0)+\nIF(J73>1,(ABS(G73-J73)),0)+\nIF(K73>1,(ABS(G73-K73)),0)+\nIF(L73>1,(ABS(G73-L73)),0),\n\nIF(I73>1,(ABS(H73-I73)),0)+\nIF(J73>1,(ABS(H73-J73)),0)+\nIF(K73>1,(ABS(H73-K73)),0) )","v":0},{"$f":"IF(M73>0,M73*-1,-1000)","v":-1000},{"$f":"IF(M73>0,RANK(N73,N:N),0)","v":0}]
[null,null,null,null,null,null,null,null,null,null,null,null,0,-1000,0]
[null,null,null,null,null,null,null,null,null,null,null,null,0,-1000,0]
[null,null,null,null,null,null,null,null,null,null,null,null,0,-1000,0]
[null,null,null,null,null,null,null,null,null,null,null,null,0,-1000,0]
[null,null,null,null,null,null,null,null,null,null,null,null,0,-1000,0]
[null,null,null,null,null,null,null,null,null,null,null,null,0,-1000,0]
[null,null,null,null,null,null,null,null,null,null,null,null,0,-1000,0]
[null,null,null,null,null,null,null,null,null,null,null,null,0,-1000,0]
[null,null,null,null,null,null,null,null,null,null,null,null,0,-1000,0]
[null,null,null,null,null,null,null,null,null,null,null,null,0,-1000,0]
[null,null,null,null,null,null,null,null,null,null,null,null,0,-1000,0]
[null,null,null,null,null,null,null,null,null,null,null,null,0,-1000,0]
[null,null,null,null,null,null,null,null,null,null,null,null,0,-1000,0]
[null,null,null,null,null,null,null,null,null,null,null,null,0,-1000,0]
[null,null,null,null,null,null,null,null,null,null,null,null,0,-1000,0]
[null,null,null,null,null,null,null,null,null,null,null,null,0,-1000,0]
[null,null,null,null,null,null,null,null,null,null,null,null,0,-1000,0]
[null,null,null,null,null,null,null,null,null,null,null,null,0,-1000,0]
[null,null,null,null,null,null,null,null,null,null,null,null,0,-1000,0]
[null,null,null,null,null,null,null,null,null,null,null,null,0,-1000,0]
[null,null,null,null,null,null,null,null,null,null,null,null,0,-1000,0]
[null,null,null,null,null,null,null,null,null,null,null,null,0,-1000,0]
[null,null,null,null,null,null,null,null,null,null,null,null,0,-1000,0]
[null,null,null,null,null,null,null,null,null,null,null,null,0,-1000,0]
[null,null,null,null,null,null,null,null,null,null,null,null,0,-1000,0]
[null,null,null,null,null,null,null,null,null,null,null,null,0,-1000,0]
[null,null,null,null,null,null,null,null,null,null,null,null,0,-1000,0]
[null,null,null,null,null,null,null,null,null,null,null,null,0,-1000,0]
[null,null,null,null,null,null,null,null,null,null,null,null,0,-1000,0]
[null,null,null,null,null,null,null,null,null,null,null,null,0,-1000,0]
[null,null,null,null,null,null,null,null,null,null,null,null,0,-1000,0]
[null,null,null,null,null,null,null,null,null,null,null,null,0,-1000,0]
[null,null,null,null,null,null,null,null,null,null,null,null,0,-1000,0]
[null,null,null,null,null,null,null,null,null,null,null,null,0,-1000,0]
[null,null,null,null,null,null,null,null,null,null,null,null,0,-1000,0]
[null,null,null,null,null,null,null,null,null,null,null,null,0,-1000,0]
[null,null,null,null,null,null,null,null,null,null,null,null,0,-1000,0]
[null,null,null,null,null,null,null,null,null,null,null,null,0,-1000,0]
[null,null,null,null,null,null,null,null,null,null,null,null,0,-1000,0]
[null,null,null,null,null,null,null,null,null,null,null,null,0,-1000,0]
[null,null,null,null,null,null,null,null,null,null,null,null,0,-1000,0]
[null,null,null,null,null,null,null,null,null,null,null,null,0,-1000,0]
[null,null,null,null,null,null,null,null,null,null,null,null,0,-1000,0]
[null,null,null,null,null,null,null,null,null,null,null,null,0,-1000,0]
[null,null,null,null,null,null,null,null,null,null,null,null,0,-1000,0]
[null,null,null,null,null,null,null,null,null,null,null,null,0,-1000,0]
[null,null,null,null,null,null,null,null,null,null,null,null,0,-1000,0]
[null,null,null,null,null,null,null,null,null,null,null,null,0,-1000,0]
[null,null,null,null,null,null,null,null,null,null,null,null,0,-1000,0]
[null,null,null,null,null,null,null,null,null,null,null,null,0,-1000,0]
[null,null,null,null,null,null,null,null,null,null,null,null,0,-1000,0]
[null,null,null,null,null,null,null,null,null,null,null,null,0,-1000,0]
[null,null,null,null,null,null,null,null,null,null,null,null,0,-1000,0]
[null,null,null,null,null,null,null,null,null,null,null,null,0,-1000,0]
[null,null,null,null,null,null,null,null,null,null,null,null,0,-1000,0]
[null,null,null,null,null,null,null,null,null,null,null,null,0,-1000,0]
[null,null,null,null,null,null,null,null,null,null,null,null,0,-1000,0]
[null,null,null,null,null,null,null,null,null,null,null,null,0,-1000,0]
[null,null,null,null,null,null,null,null,null,null,null,null,0,-1000,0]
[null,null,null,null,null,null,null,null,null,null,null,null,0,-1000,0]
[null,null,null,null,null,null,null,null,null,null,null,null,0,-1000,0]
[null,null,null,null,null,null,null,null,null,null,null,null,0,-1000,0]
[null,null,null,null,null,null,null,null,null,null,null,null,0,-1000,0]
[null,null,null,null,null,null,null,null,null,null,null,null,{"$f":"IF($G$4=1,\nIF(H137>1,(ABS(G137-H137)),0)+\nIF(I137>1,(ABS(G137-I137)),0)+\nIF(J137>1,(ABS(G137-J137)),0)+\nIF(K137>1,(ABS(G137-K137)),0)+\nIF(L137>1,(ABS(G137-L137)),0),\n\nIF(I137>1,(ABS(H137-I137)),0)+\nIF(J137>1,(ABS(H137-J137)),0)+\nIF(K137>1,(ABS(H137-K137)),0) )","v":0},{"$f":"IF(M137>0,M137*-1,-1000)","v":-1000},{"$f":"IF(M137>0,RANK(N137,N:N),0)","v":0}]
[null,null,null,null,null,null,null,null,null,null,null,null,0,-1000,0]
[null,null,null,null,null,null,null,null,null,null,null,null,0,-1000,0]
[null,null,null,null,null,null,null,null,null,null,null,null,0,-1000,0]
[null,null,null,null,null,null,null,null,null,null,null,null,0,-1000,0]
[null,null,null,null,null,null,null,null,null,null,null,null,0,-1000,0]
[null,null,null,null,null,null,null,null,null,null,null,null,0,-1000,0]
[null,null,null,null,null,null,null,null,null,null,null,null,0,-1000,0]
[null,null,null,null,null,null,null,null,null,null,null,null,0,-1000,0]
[null,null,null,null,null,null,null,null,null,null,null,null,0,-1000,0]
[null,null,null,null,null,null,null,null,null,null,null,null,0,-1000,0]
[null,null,null,null,null,null,null,null,null,null,null,null,0,-1000,0]
[null,null,null,null,null,null,null,null,null,null,null,null,0,-1000,0]
[null,null,null,null,null,null,null,null,null,null,null,null,0,-1000,0]
[null,null,null,null,null,null,null,null,null,null,null,null,0,-1000,0]
[null,null,null,null,null,null,null,null,null,null,null,null,0,-1000,0]
[null,null,null,null,null,null,null,null,null,null,null,null,0,-1000,0]
[null,null,null,null,null,null,null,null,null,null,null,null,0,-1000,0]
[null,null,null,null,null,null,null,null,null,null,null,null,0,-1000,0]
[null,null,null,null,null,null,null,null,null,null,null,null,0,-1000,0]
[null,null,null,null,null,null,null,null,null,null,null,null,0,-1000,0]
[null,null,null,null,null,null,null,null,null,null,null,null,0,-1000,0]
[null,null,null,null,null,null,null,null,null,null,null,null,0,-1000,0]
[null,null,null,null,null,null,null,null,null,null,null,null,0,-1000,0]
[null,null,null,null,null,null,null,null,null,null,null,null,0,-1000,0]
[null,null,null,null,null,null,null,null,null,null,null,null,0,-1000,0]
[null,null,null,null,null,null,null,null,null,null,null,null,0,-1000,0]
[null,null,null,null,null,null,null,null,null,null,null,null,0,-1000,0]
[null,null,null,null,null,null,null,null,null,null,null,null,0,-1000,0]
[null,null,null,null,null,null,null,null,null,null,null,null,0,-1000,0]
[null,null,null,null,null,null,null,null,null,null,null,null,0,-1000,0]
[null,null,null,null,null,null,null,null,null,null,null,null,0,-1000,0]
[null,null,null,null,null,null,null,null,null,null,null,null,0,-1000,0]
[null,null,null,null,null,null,null,null,null,null,null,null,0,-1000,0]
[null,null,null,null,null,null,null,null,null,null,null,null,0,-1000,0]
[null,null,null,null,null,null,null,null,null,null,null,null,0,-1000,0]
[null,null,null,null,null,null,null,null,null,null,null,null,0,-1000,0]
[null,null,null,null,null,null,null,null,null,null,null,null,0,-1000,0]
[null,null,null,null,null,null,null,null,null,null,null,null,0,-1000,0]
[null,null,null,null,null,null,null,null,null,null,null,null,0,-1000,0]
[null,null,null,null,null,null,null,null,null,null,null,null,0,-1000,0]
[null,null,null,null,null,null,null,null,null,null,null,null,0,-1000,0]
[null,null,null,null,null,null,null,null,null,null,null,null,0,-1000,0]
[null,null,null,null,null,null,null,null,null,null,null,null,0,-1000,0]
[null,null,null,null,null,null,null,null,null,null,null,null,0,-1000,0]
[null,null,null,null,null,null,null,null,null,null,null,null,0,-1000,0]
[null,null,null,null,null,null,null,null,null,null,null,null,0,-1000,0]
[null,null,null,null,null,null,null,null,null,null,null,null,0,-1000,0]
[null,null,null,null,null,null,null,null,null,null,null,null,0,-1000,0]
[null,null,null,null,null,null,null,null,null,null,null,null,0,-1000,0]
[null,null,null,null,null,null,null,null,null,null,null,null,0,-1000,0]
[null,null,null,null,null,null,null,null,null,null,null,null,0,-1000,0]
[null,null,null,null,null,null,null,null,null,null,null,null,0,-1000,0]
[null,null,null,null,null,null,null,null,null,null,null,null,0,-1000,0]
[null,null,null,null,null,null,null,null,null,null,null,null,0,-1000,0]
[null,null,null,null,null,null,null,null,null,null,null,null,0,-1000,0]
[null,null,null,null,null,null,null,null,null,null,null,null,0,-1000,0]
[null,null,null,null,null,null,null,null,null,null,null,null,0,-1000,0]
[null,null,null,null,null,null,null,null,null,null,null,null,0,-1000,0]
[null,null,null,null,null,null,null,null,null,null,null,null,0,-1000,0]
[null,null,null,null,null,null,null,null,null,null,null,null,0,-1000,0]
[null,null,null,null,null,null,null,null,null,null,null,null,0,-1000,0]
[null,null,null,null,null,null,null,null,null,null,null,null,0,-1000,0]
[null,null,null,null,null,null,null,null,null,null,null,null,0,-1000,0]
[null,null,null,null,null,null,null,null,null,null,null,null,{"$f":"IF($G$4=1,\nIF(H201>1,(ABS(G201-H201)),0)+\nIF(I201>1,(ABS(G201-I201)),0)+\nIF(J201>1,(ABS(G201-J201)),0)+\nIF(K201>1,(ABS(G201-K201)),0)+\nIF(L201>1,(ABS(G201-L201)),0),\n\nIF(I201>1,(ABS(H201-I201)),0)+\nIF(J201>1,(ABS(H201-J201)),0)+\nIF(K201>1,(ABS(H201-K201)),0) )","v":0},{"$f":"IF(M201>0,M201*-1,-1000)","v":-1000},{"$f":"IF(M201>0,RANK(N201,N:N),0)","v":0}]
[null,null,null,null,null,null,null,null,null,null,null,null,0,-1000,0]

{"sheet":"EDM-JUN","index":5,"n_rows":149,"n_cols":19,"rows_kept":149,"cut":false,"hidden":false,"merged":[[6,16,6,17]]}
["DSKD  69. Deutsche Meisterschaft und 19. Europameisterschaft 2017 Mettingen  ESKD"]
["DM - Endläufe in der JUNIOR - Klasse"]
[null,null,null,null,null,null,null,null,null,null,null,null,null,null,null,null,null,null,"Bestzeit"]
["Wird der Lauf gewertet?   dann 0 oder 1 eintragen",null,null,null,null,null,1,1,1,1,1,1,null,null,null,null,null,null,"in Vorläufen"]
[null,null,null,null,"Bestzeit je Lauf",null,{"$f":"MIN(G9:G149)","v":37.99},38.119999999999997,37.99,38.26,0,0,null,null,null,null,null,null,{"$f":"MIN((IF(G4=1,G5,99)),        (IF(H4=1,H5,99)),   (IF(I4=1,I5,99)),  (IF(J4=1,J5,99)), (IF(K4=1,K5,99)),  (IF(L4=1,L5,99))       )","v":0}]
[null,null,null,null,"Mittelwert je Lauf",null,{"$f":"IF(G5>0,AVERAGE(G9:G149),0)","v":38.381999999999998},38.302999999999997,38.427,38.523000000000003,0,0]
["Start\nNummer","Gruppe","startet","Name","Vorname","Verein","Lauf 1","Lauf 2","Lauf 3","Lauf 4","Lauf 5","Lauf 6","Summe der gewerteten Läufe",null,"Platz",null,"Mittelwert",null,"Platz"]
[]
[124,"JUN",null,"Meyhoff","Moritz","Jugendclub Mettinger SK-Derby",37.99,38.119999999999997,37.99,38.26,null,null,{"$f":"(G9*$G$4+H9*$H$4+I9*$I$4+J9*$J$4+K9*$K$4+L9*$L$4)","v":152.35999999999999},{"$f":"IF(M9>0,M9*-1,-1000)","v":-152.35999999999999},{"$f":"IF(M9>0,RANK(N9,N:N),0)","v":1},null,{"$f":"IF((G9*$G$4+H9*$H$4+I9*$I$4+J9*$J$4+K9*$K$4+L9*$L$4)>0,(G9*$G$4+H9*$H$4+I9*$I$4+J9*$J$4+K9*$K$4+L9*$L$4)/(IF(G9>0,1*$G$4,0)+IF(H9>0,1*$H$4,0)+IF(I9>0,1*$I$4,0)+IF(J9>0,1*$J$4,0)+IF(K9>0,1*$K$4,0)+IF(L9>0,1*$L$4,0)),0)","v":38.089999999999996},{"$f":"IF(Q9>0,Q9*-1,-1000)","v":-38.089999999999996},{"$f":"IF(Q9>0,RANK(R9,R:R),0)","v":1}]
[121,"JUN",null,"Plath","Marvin","Jugendclub Mettinger SK-Derby",38.450000000000003,38.229999999999997,38.33,38.29,null,null,153.30000000000001,-153.30000000000001,2,null,38.325000000000003,-38.325000000000003,2]
[113,"JUN",null,"Paschedag","Mia","Seifenkistengruppe Stromberg",38.28,38.229999999999997,38.369999999999997,38.43,null,null,153.31,-153.31,3,null,38.327500000000001,-38.327500000000001,3]
[106,"JUN",null,"Klimpel","Beatrice","Power Crew Berlin",38.47,38.159999999999997,38.46,38.4,null,null,153.49,-153.49,4,null,38.372500000000002,-38.372500000000002,4]
[104,"JUN",null,"Freudenstein","Romy","Jugendclub Mettinger SK-Derby",38.44,38.28,38.43,38.590000000000003,null,null,153.74,-153.74,5,null,38.435000000000002,-38.435000000000002,5]
[120,"JUN",null,"Reinstein","Carlos","MSVg Gerolzhofen",38.53,38.36,38.46,38.450000000000003,null,null,153.80000000000001,-153.80000000000001,6,null,38.450000000000003,-38.450000000000003,6]
[114,"JUN",null,"Lampe","Ida","Jugendclub Mettinger SK-Derby",38.479999999999997,38.369999999999997,38.44,38.57,null,null,153.85999999999999,-153.85999999999999,7,null,38.464999999999996,-38.464999999999996,7]
[127,"JUN",null,"Schleuß","Melina","Power Crew Berlin",38.32,38.28,38.64,38.659999999999997,null,null,153.89999999999998,-153.89999999999998,8,null,38.474999999999994,-38.474999999999994,8]
[112,"JUN",null,"Klein","Mika","SKK Moselflitzer Klüsserath",38.44,38.409999999999997,38.46,38.590000000000003,null,null,153.9,-153.9,9,null,38.475000000000001,-38.475000000000001,9]
[111,"JUN",null,"Bednarski","Maximilian","Jugendclub Mettinger SK-Derby",38.42,38.590000000000003,38.69,38.99,null,null,154.69,-154.69,10,null,38.672499999999999,-38.672499999999999,10]
[null,null,null,null,null,null,null,null,null,null,null,null,0,-1000,0,null,0,-1000,0]
[null,null,null,null,null,null,null,null,null,null,null,null,0,-1000,0,null,0,-1000,0]
[null,null,null,null,null,null,null,null,null,null,null,null,0,-1000,0,null,0,-1000,0]
[null,null,null,null,null,null,null,null,null,null,null,null,0,-1000,0,null,0,-1000,0]
[null,null,null,null,null,null,null,null,null,null,null,null,0,-1000,0,null,0,-1000,0]
[null,null,null,null,null,null,null,null,null,null,null,null,0,-1000,0,null,0,-1000,0]
[null,null,null,null,null,null,null,null,null,null,null,null,0,{"$f":"IF(M25>0,M25*-1,-1000)","v":-1000},0,null,0,-1000,0]
[null,null,null,null,null,null,null,null,null,null,null,null,0,{"$f":"IF(M26>0,M26*-1,-1000)","v":-1000},0,null,0,-1000,0]
[null,null,null,null,null,null,null,null,null,null,null,null,0,{"$f":"IF(M27>0,M27*-1,-1000)","v":-1000},0,null,0,-1000,0]
[null,null,null,null,null,null,null,null,null,null,null,null,0,-1000,0,null,0,-1000,0]
[null,null,null,null,null,null,null,null,null,null,null,null,0,-1000,0,null,0,-1000,0]
[null,null,null,null,null,null,null,null,null,null,null,null,0,-1000,0,null,0,-1000,0]
[null,null,null,null,null,null,null,null,null,null,null,null,0,-1000,0,null,0,-1000,0]
[null,null,null,null,null,null,null,null,null,null,null,null,0,-1000,0,null,0,-1000,0]
[null,null,null,null,null,null,null,null,null,null,null,null,0,-1000,0,null,0,-1000,0]
[null,null,null,null,null,null,null,null,null,null,null,null,0,-1000,0,null,0,-1000,0]
[null,null,null,null,null,null,null,null,null,null,null,null,0,-1000,0,null,0,-1000,0]
[null,null,null,null,null,null,null,null,null,null,null,null,0,{"$f":"IF(M36>0,M36*-1,-1000)","v":-1000},0,null,0,-1000,0]
[null,null,null,null,null,null,null,null,null,null,null,null,0,{"$f":"IF(M37>0,M37*-1,-1000)","v":-1000},0,null,0,-1000,0]
[null,null,null,null,null,null,null,null,null,null,null,null,0,{"$f":"IF(M38>0,M38*-1,-1000)","v":-1000},0,null,0,-1000,0]
[null,null,null,null,null,null,null,null,null,null,null,null,0,{"$f":"IF(M39>0,M39*-1,-1000)","v":-1000},0,null,0,-1000,0]
[null,null,null,null,null,null,null,null,null,null,null,null,0,{"$f":"IF(M40>0,M40*-1,-1000)","v":-1000},0,null,0,-1000,0]
[null,null,null,null,null,null,null,null,null,null,null,null,0,-1000,0,null,0,-1000,0]
[null,null,null,null,null,null,null,null,null,null,null,null,0,{"$f":"IF(M42>0,M42*-1,-1000)","v":-1000},0,null,0,-1000,0]
[null,null,null,null,null,null,null,null,null,null,null,null,0,{"$f":"IF(M43>0,M43*-1,-1000)","v":-1000},0,null,0,-1000,0]
[null,null,null,null,null,null,null,null,null,null,null,null,0,-1000,0,null,0,-1000,0]
[null,null,null,null,null,null,null,null,null,null,null,null,0,-1000,0,null,0,-1000,0]
[null,null,null,null,null,null,null,null,null,null,null,null,0,-1000,0,null,0,-1000,0]
[null,null,null,null,null,null,null,null,null,null,null,null,0,-1000,0,null,0,-1000,0]
[null,null,null,null,null,null,null,null,null,null,null,null,0,-1000,0,null,0,-1000,0]
[null,null,null,null,null,null,null,null,null,null,null,null,0,-1000,0,null,0,-1000,0]
[null,null,null,null,null,null,null,null,null,null,null,null,0,-1000,0,null,0,-1000,0]
[null,null,null,null,null,null,null,null,null,null,null,null,0,-1000,0,null,0,-1000,0]
[null,null,null,null,null,null,null,null,null,null,null,null,0,-1000,0,null,0,-1000,0]
[null,null,null,null,null,null,null,null,null,null,null,null,0,-1000,0,null,0,-1000,0]
[null,null,null,null,null,null,null,null,null,null,null,null,0,-1000,0,null,0,-1000,0]
[null,null,null,null,null,null,null,null,null,null,null,null,0,-1000,0,null,0,-1000,0]
[null,null,null,null,null,null,null,null,null,null,null,null,0,-1000,0,null,0,-1000,0]
[null,null,null,null,null,null,null,null,null,null,null,null,0,-1000,0,null,0,-1000,0]
[null,null,null,null,null,null,null,null,null,null,null,null,0,-1000,0,null,0,-1000,0]
[null,null,null,null,null,null,null,null,null,null,null,null,0,-1000,0,null,0,-1000,0]
[null,null,null,null,null,null,null,null,null,null,null,null,0,-1000,0,null,0,-1000,0]
[null,null,null,null,null,null,null,null,null,null,null,null,0,-1000,0,null,0,-1000,0]
[null,null,null,null,null,null,null,null,null,null,null,null,0,-1000,0,null,0,-1000,0]
[null,null,null,null,null,null,null,null,null,null,null,null,0,-1000,0,null,0,-1000,0]
[null,null,null,null,null,null,null,null,null,null,null,null,0,-1000,0,null,0,-1000,0]
[null,null,null,null,null,null,null,null,null,null,null,null,0,-1000,0,null,0,-1000,0]
[null,null,null,null,null,null,null,null,null,null,null,null,0,-1000,0,null,0,-1000,0]
[null,null,null,null,null,null,null,null,null,null,null,null,0,-1000,0,null,0,-1000,0]
[null,null,null,null,null,null,null,null,null,null,null,null,0,-1000,0,null,0,-1000,0]
[null,null,null,null,null,null,null,null,null,null,null,null,0,-1000,0,null,0,-1000,0]
[null,null,null,null,null,null,null,null,null,null,null,null,0,-1000,0,null,0,-1000,0]
[null,null,null,null,null,null,null,null,null,null,null,null,0,{"$f":"IF(M71>0,M71*-1,-1000)","v":-1000},0,null,0,-1000,0]
[null,null,null,null,null,null,null,null,null,null,null,null,0,{"$f":"IF(M72>0,M72*-1,-1000)","v":-1000},0,null,0,-1000,0]
[null,null,null,null,null,null,null,null,null,null,null,null,{"$f":"(G73*$G$4+H73*$H$4+I73*$I$4+J73*$J$4+K73*$K$4+L73*$L$4)","v":0},{"$f":"IF(M73>0,M73*-1,-1000)","v":-1000},{"$f":"IF(M73>0,RANK(N73,N:N),0)","v":0},null,{"$f":"IF((G73*$G$4+H73*$H$4+I73*$I$4+J73*$J$4+K73*$K$4+L73*$L$4)>0,(G73*$G$4+H73*$H$4+I73*$I$4+J73*$J$4+K73*$K$4+L73*$L$4)/(IF(G73>0,1*$G$4,0)+IF(H73>0,1*$H$4,0)+IF(I73>0,1*$I$4,0)+IF(J73>0,1*$J$4,0)+IF(K73>0,1*$K$4,0)+IF(L73>0,1*$L$4,0)),0)","v":0},{"$f":"IF(Q73>0,Q73*-1,-1000)","v":-1000},{"$f":"IF(Q73>0,RANK(R73,R:R),0)","v":0}]
[null,null,null,null,null,null,null,null,null,null,null,null,0,{"$f":"IF(M74>0,M74*-1,-1000)","v":-1000},0,null,0,-1000,0]
[null,null,null,null,null,null,null,null,null,null,null,null,0,{"$f":"IF(M75>0,M75*-1,-1000)","v":-1000},0,null,0,-1000,0]
[null,null,null,null,null,null,null,null,null,null,null,null,0,{"$f":"IF(M76>0,M76*-1,-1000)","v":-1000},0,null,0,-1000,0]
[null,null,null,null,null,null,null,null,null,null,null,null,0,{"$f":"IF(M77>0,M77*-1,-1000)","v":-1000},0,null,0,-1000,0]
[null,null,null,null,null,null,null,null,null,null,null,null,0,-1000,0,null,0,-1000,0]
[null,null,null,null,null,null,null,null,null,null,null,null,0,-1000,0,null,0,-1000,0]
[null,null,null,null,null,null,null,null,null,null,null,null,0,{"$f":"IF(M80>0,M80*-1,-1000)","v":-1000},0,null,0,-1000,0]
[null,null,null,null,null,null,null,null,null,null,null,null,0,{"$f":"IF(M81>0,M81*-1,-1000)","v":-1000},0,null,0,-1000,0]
[null,null,null,null,null,null,null,null,null,null,null,null,0,{"$f":"IF(M82>0,M82*-1,-1000)","v":-1000},0,null,0,-1000,0]
[null,null,null,null,null,null,null,null,null,null,null,null,0,-1000,0,null,0,-1000,0]
[null,null,null,null,null,null,null,null,null,null,null,null,0,-1000,0,null,0,-1000,0]
[null,null,null,null,null,null,null,null,null,null,null,null,0,-1000,0,null,0,-1000,0]
[null,null,null,null,null,null,null,null,null,null,null,null,0,-1000,0,null,0,-1000,0]
[null,null,null,null,null,null,null,null,null,null,null,null,0,-1000,0,null,0,-1000,0]
[null,null,null,null,null,null,null,null,null,null,null,null,0,-1000,0,null,0,-1000,0]
[null,null,null,null,null,null,null,null,null,null,null,null,0,-1000,0,null,0,-1000,0]
[null,null,null,null,null,null,null,null,null,null,null,null,0,{"$f":"IF(M90>0,M90*-1,-1000)","v":-1000},0,null,0,-1000,0]
[null,null,null,null,null,null,null,null,null,null,null,null,0,-1000,0,null,0,-1000,0]
[null,null,null,null,null,null,null,null,null,null,null,null,0,-1000,0,null,0,-1000,0]
[null,null,null,null,null,null,null,null,null,null,null,null,0,-1000,0,null,0,-1000,0]
[null,null,null,null,null,null,null,null,null,null,null,null,0,-1000,0,null,0,-1000,0]
[null,null,null,null,null,null,null,null,null,null,null,null,0,{"$f":"IF(M95>0,M95*-1,-1000)","v":-1000},0,null,0,-1000,0]
[null,null,null,null,null,null,null,null,null,null,null,null,0,-1000,0,null,0,-1000,0]
[null,null,null,null,null,null,null,null,null,null,null,null,0,-1000,0,null,0,-1000,0]
[null,null,null,null,null,null,null,null,null,null,null,null,0,-1000,0,null,0,-1000,0]
[null,null,null,null,null,null,null,null,null,null,null,null,0,-1000,0,null,0,-1000,0]
[null,null,null,null,null,null,null,null,null,null,null,null,0,-1000,0,null,0,-1000,0]
[null,null,null,null,null,null,null,null,null,null,null,null,0,-1000,0,null,0,-1000,0]
[null,null,null,null,null,null,null,null,null,null,null,null,0,-1000,0,null,0,-1000,0]
[null,null,null,null,null,null,null,null,null,null,null,null,0,-1000,0,null,0,-1000,0]
[null,null,null,null,null,null,null,null,null,null,null,null,0,-1000,0,null,0,-1000,0]
[null,null,null,null,null,null,null,null,null,null,null,null,0,-1000,0,null,0,-1000,0]
[null,null,null,null,null,null,null,null,null,null,null,null,0,-1000,0,null,0,-1000,0]
[null,null,null,null,null,null,null,null,null,null,null,null,0,-1000,0,null,0,-1000,0]
[null,null,null,null,null,null,null,null,null,null,null,null,0,-1000,0,null,0,-1000,0]
[null,null,null,null,null,null,null,null,null,null,null,null,0,-1000,0,null,0,-1000,0]
[null,null,null,null,null,null,null,null,null,null,null,null,0,-1000,0,null,0,-1000,0]
[null,null,null,null,null,null,null,null,null,null,null,null,0,-1000,0,null,0,-1000,0]
[null,null,null,null,null,null,null,null,null,null,null,null,0,-1000,0,null,0,-1000,0]
[null,null,null,null,null,null,null,null,null,null,null,null,0,-1000,0,null,0,-1000,0]
[null,null,null,null,null,null,null,null,null,null,null,null,0,-1000,0,null,0,-1000,0]
[null,null,null,null,null,null,null,null,null,null,null,null,0,-1000,0,null,0,-1000,0]
[null,null,null,null,null,null,null,null,null,null,null,null,0,-1000,0,null,0,-1000,0]
[null,null,null,null,null,null,null,null,null,null,null,null,0,-1000,0,null,0,-1000,0]
[null,null,null,null,null,null,null,null,null,null,null,null,0,-1000,0,null,0,-1000,0]
[null,null,null,null,null,null,null,null,null,null,null,null,0,-1000,0,null,0,-1000,0]
[null,null,null,null,null,null,null,null,null,null,null,null,0,-1000,0,null,0,-1000,0]
[null,null,null,null,null,null,null,null,null,null,null,null,0,-1000,0,null,0,-1000,0]
[null,null,null,null,null,null,null,null,null,null,null,null,0,-1000,0,null,0,-1000,0]
[null,null,null,null,null,null,null,null,null,null,null,null,0,-1000,0,null,0,-1000,0]
[null,null,null,null,null,null,null,null,null,null,null,null,0,-1000,0,null,0,-1000,0]
[null,null,null,null,null,null,null,null,null,null,null,null,0,-1000,0,null,0,-1000,0]
[null,null,null,null,null,null,null,null,null,null,null,null,0,-1000,0,null,0,-1000,0]
[null,null,null,null,null,null,null,null,null,null,null,null,0,-1000,0,null,0,-1000,0]
[null,null,null,null,null,null,null,null,null,null,null,null,0,-1000,0,null,0,-1000,0]
[null,null,null,null,null,null,null,null,null,null,null,null,0,-1000,0,null,0,-1000,0]
[null,null,null,null,null,null,null,null,null,null,null,null,0,-1000,0,null,0,-1000,0]
[null,null,null,null,null,null,null,null,null,null,null,null,0,-1000,0,null,0,-1000,0]
[null,null,null,null,null,null,null,null,null,null,null,null,0,-1000,0,null,0,-1000,0]
[null,null,null,null,null,null,null,null,null,null,null,null,0,-1000,0,null,0,-1000,0]
[null,null,null,null,null,null,null,null,null,null,null,null,0,-1000,0,null,0,-1000,0]
[null,null,null,null,null,null,null,null,null,null,null,null,0,-1000,0,null,0,-1000,0]
[null,null,null,null,null,null,null,null,null,null,null,null,0,-1000,0,null,0,-1000,0]
[null,null,null,null,null,null,null,null,null,null,null,null,{"$f":"(G137*$G$4+H137*$H$4+I137*$I$4+J137*$J$4+K137*$K$4+L137*$L$4)","v":0},-1000,{"$f":"IF(M137>0,RANK(N137,N:N),0)","v":0},null,{"$f":"IF((G137*$G$4+H137*$H$4+I137*$I$4+J137*$J$4+K137*$K$4+L137*$L$4)>0,(G137*$G$4+H137*$H$4+I137*$I$4+J137*$J$4+K137*$K$4+L137*$L$4)/(IF(G137>0,1*$G$4,0)+IF(H137>0,1*$H$4,0)+IF(I137>0,1*$I$4,0)+IF(J137>0,1*$J$4,0)+IF(K137>0,1*$K$4,0)+IF(L137>0,1*$L$4,0)),0)","v":0},-1000,{"$f":"IF(Q137>0,RANK(R137,R:R),0)","v":0}]
[null,null,null,null,null,null,null,null,null,null,null,null,0,-1000,0,null,0,-1000,0]
[null,null,null,null,null,null,null,null,null,null,null,null,0,-1000,0,null,0,-1000,0]
[null,null,null,null,null,null,null,null,null,null,null,null,0,-1000,0,null,0,-1000,0]
[null,null,null,null,null,null,null,null,null,null,null,null,0,-1000,0,null,0,-1000,0]
[null,null,null,null,null,null,null,null,null,null,null,null,0,-1000,0,null,0,-1000,0]
[null,null,null,null,null,null,null,null,null,null,null,null,0,-1000,0,null,0,-1000,0]
[null,null,null,null,null,null,null,null,null,null,null,null,0,-1000,0,null,0,-1000,0]
[null,null,null,null,null,null,null,null,null,null,null,null,0,-1000,0,null,0,-1000,0]
[null,null,null,null,null,null,null,null,null,null,null,null,0,-1000,0,null,0,-1000,0]
[null,null,null,null,null,null,null,null,null,null,null,null,0,-1000,0,null,0,-1000,0]
[null,null,null,null,null,null,null,null,null,null,null,null,0,-1000,0,null,0,-1000,0]
[null,null,null,null,null,null,null,null,null,null,null,null,0,-1000,0,null,0,-1000,0]

{"sheet":"EDM-SEN","index":6,"n_rows":149,"n_cols":19,"rows_kept":149,"cut":false,"hidden":false,"merged":[[6,16,6,17]]}
["DSKD  69. Deutsche Meisterschaft und 19. Europameisterschaft 2017 Mettingen  ESKD"]
["DM - Endläufe in der SENIOR - Klasse"]
[null,null,null,null,null,null,null,null,null,null,null,null,null,null,null,null,null,null,"Bestzeit"]
["Wird der Lauf gewertet?   dann 0 oder 1 eintragen",null,null,null,null,null,1,1,1,1,1,0,null,null,null,null,null,null,"in Vorläufen"]
[null,null,null,null,"Bestzeit je Lauf",null,{"$f":"MIN(G9:G149)","v":36.79},36.85,36.81,36.630000000000003,0,0,null,null,null,null,null,null,{"$f":"MIN((IF(G4=1,G5,99)),        (IF(H4=1,H5,99)),   (IF(I4=1,I5,99)),  (IF(J4=1,J5,99)), (IF(K4=1,K5,99)),  (IF(L4=1,L5,99))       )","v":0}]
[null,null,null,null,"Mittelwert je Lauf",null,{"$f":"IF(G5>0,AVERAGE(G9:G149),0)","v":36.940999999999995},36.977000000000004,36.936999999999998,36.810999999999993,0,0]
["Start\nNummer","Gruppe","startet","Name","Vorname","Verein","Lauf 1","Lauf 2","Lauf 3","Lauf 4","Lauf 5","Lauf 6","Summe der gewerteten Läufe",null,"Platz",null,"Mittelwert",null,"Platz"]
[]
[407,"SEN",null,"Meyer","Henry","Jugendclub Mettinger SK-Derby",36.79,36.85,36.81,36.68,null,null,{"$f":"(G9*$G$4+H9*$H$4+I9*$I$4+J9*$J$4+K9*$K$4+L9*$L$4)","v":147.13},{"$f":"IF(M9>0,M9*-1,-1000)","v":-147.13},{"$f":"IF(M9>0,RANK(N9,N:N),0)","v":1},null,{"$f":"IF((G9*$G$4+H9*$H$4+I9*$I$4+J9*$J$4+K9*$K$4+L9*$L$4)>0,(G9*$G$4+H9*$H$4+I9*$I$4+J9*$J$4+K9*$K$4+L9*$L$4)/(IF(G9>0,1*$G$4,0)+IF(H9>0,1*$H$4,0)+IF(I9>0,1*$I$4,0)+IF(J9>0,1*$J$4,0)+IF(K9>0,1*$K$4,0)+IF(L9>0,1*$L$4,0)),0)","v":36.782499999999999},{"$f":"IF(Q9>0,Q9*-1,-1000)","v":-36.782499999999999},{"$f":"IF(Q9>0,RANK(R9,R:R),0)","v":1}]
[415,"SEN",null,"Freudenstein ","Rieke","Jugendclub Mettinger SK-Derby",36.880000000000003,36.880000000000003,36.83,36.89,null,null,147.48000000000002,-147.48000000000002,2,null,36.870000000000005,-36.870000000000005,2]
[401,"SEN",null,"Meyer","Johann","Jugendclub Mettinger SK-Derby",37,36.93,36.93,36.630000000000003,null,null,147.49,-147.49,3,null,36.872500000000002,-36.872500000000002,3]
[410,"SEN",null,"Hoebertz","Max Ole","Power Crew Berlin",36.909999999999997,36.9,36.92,36.869999999999997,null,null,147.6,-147.6,4,null,36.9,-36.9,4]
[428,"SEN",null,"Förster","Maurice","Eifeler-Seifenkistenfreunde Simmerath",36.82,37.08,36.950000000000003,36.83,null,null,147.68,-147.68,5,null,36.92,-36.92,5]
[409,"SEN",null,"Reinstein","Marie","MSVg Gerolzhofen",36.950000000000003,36.97,36.83,36.950000000000003,null,null,147.69999999999999,-147.69999999999999,6,null,36.924999999999997,-36.924999999999997,6]
[423,"SEN",null,"Gößling","Jule","Jugendclub Mettinger SK-Derby",36.97,36.97,37.130000000000003,36.770000000000003,null,null,147.84,-147.84,7,null,36.96,-36.96,7]
[427,"SEN",null,"Lammers ","Laura","ConAction Köln",36.97,37.03,37.08,36.770000000000003,null,null,147.85,-147.85,8,null,36.962499999999999,-36.962499999999999,8]
[420,"SEN",null,"Schrüfer","Stella","Seifenkistenfreunde Nürnberg",37.06,37.1,36.979999999999997,36.799999999999997,null,null,147.94,-147.94,9,null,36.984999999999999,-36.984999999999999,9]
[426,"SEN",null,"Reuscher","Sanja","Joker-Team Berlin",37.06,37.06,36.909999999999997,36.92,null,null,147.94999999999999,-147.94999999999999,10,null,36.987499999999997,-36.987499999999997,10]
[null,null,null,null,null,null,null,null,null,null,null,null,0,-1000,0,null,0,-1000,0]
[null,null,null,null,null,null,null,null,null,null,null,null,0,-1000,0,null,0,-1000,0]
[null,null,null,null,null,null,null,null,null,null,null,null,0,-1000,0,null,0,-1000,0]
[null,null,null,null,null,null,null,null,null,null,null,null,0,-1000,0,null,0,-1000,0]
[null,null,null,null,null,null,null,null,null,null,null,null,0,-1000,0,null,0,-1000,0]
[null,null,null,null,null,null,null,null,null,null,null,null,0,-1000,0,null,0,-1000,0]
[null,null,null,null,null,null,null,null,null,null,null,null,0,{"$f":"IF(M25>0,M25*-1,-1000)","v":-1000},0,null,0,-1000,0]
[null,null,null,null,null,null,null,null,null,null,null,null,0,{"$f":"IF(M26>0,M26*-1,-1000)","v":-1000},0,null,0,-1000,0]
[null,null,null,null,null,null,null,null,null,null,null,null,0,{"$f":"IF(M27>0,M27*-1,-1000)","v":-1000},0,null,0,-1000,0]
[null,null,null,null,null,null,null,null,null,null,null,null,0,-1000,0,null,0,-1000,0]
[null,null,null,null,null,null,null,null,null,null,null,null,0,-1000,0,null,0,-1000,0]
[null,null,null,null,null,null,null,null,null,null,null,null,0,-1000,0,null,0,-1000,0]
[null,null,null,null,null,null,null,null,null,null,null,null,0,-1000,0,null,0,-1000,0]
[null,null,null,null,null,null,null,null,null,null,null,null,0,-1000,0,null,0,-1000,0]
[null,null,null,null,null,null,null,null,null,null,null,null,0,-1000,0,null,0,-1000,0]
[null,null,null,null,null,null,null,null,null,null,null,null,0,-1000,0,null,0,-1000,0]
[null,null,null,null,null,null,null,null,null,null,null,null,0,-1000,0,null,0,-1000,0]
[null,null,null,null,null,null,null,null,null,null,null,null,0,{"$f":"IF(M36>0,M36*-1,-1000)","v":-1000},0,null,0,-1000,0]
[null,null,null,null,null,null,null,null,null,null,null,null,0,{"$f":"IF(M37>0,M37*-1,-1000)","v":-1000},0,null,0,-1000,0]
[null,null,null,null,null,null,null,null,null,null,null,null,0,{"$f":"IF(M38>0,M38*-1,-1000)","v":-1000},0,null,0,-1000,0]
[null,null,null,null,null,null,null,null,null,null,null,null,0,{"$f":"IF(M39>0,M39*-1,-1000)","v":-1000},0,null,0,-1000,0]
[null,null,null,null,null,null,null,null,null,null,null,null,0,{"$f":"IF(M40>0,M40*-1,-1000)","v":-1000},0,null,0,-1000,0]
[null,null,null,null,null,null,null,null,null,null,null,null,0,-1000,0,null,0,-1000,0]
[null,null,null,null,null,null,null,null,null,null,null,null,0,{"$f":"IF(M42>0,M42*-1,-1000)","v":-1000},0,null,0,-1000,0]
[null,null,null,null,null,null,null,null,null,null,null,null,0,{"$f":"IF(M43>0,M43*-1,-1000)","v":-1000},0,null,0,-1000,0]
[null,null,null,null,null,null,null,null,null,null,null,null,0,-1000,0,null,0,-1000,0]
[null,null,null,null,null,null,null,null,null,null,null,null,0,-1000,0,null,0,-1000,0]
[null,null,null,null,null,null,null,null,null,null,null,null,0,-1000,0,null,0,-1000,0]
[null,null,null,null,null,null,null,null,null,null,null,null,0,-1000,0,null,0,-1000,0]
[null,null,null,null,null,null,null,null,null,null,null,null,0,-1000,0,null,0,-1000,0]
[null,null,null,null,null,null,null,null,null,null,null,null,0,-1000,0,null,0,-1000,0]
[null,null,null,null,null,null,null,null,null,null,null,null,0,-1000,0,null,0,-1000,0]
[null,null,null,null,null,null,null,null,null,null,null,null,0,-1000,0,null,0,-1000,0]
[null,null,null,null,null,null,null,null,null,null,null,null,0,-1000,0,null,0,-1000,0]
[null,null,null,null,null,null,null,null,null,null,null,null,0,-1000,0,null,0,-1000,0]
[null,null,null,null,null,null,null,null,null,null,null,null,0,-1000,0,null,0,-1000,0]
[null,null,null,null,null,null,null,null,null,null,null,null,0,-1000,0,null,0,-1000,0]
[null,null,null,null,null,null,null,null,null,null,null,null,0,-1000,0,null,0,-1000,0]
[null,null,null,null,null,null,null,null,null,null,null,null,0,-1000,0,null,0,-1000,0]
[null,null,null,null,null,null,null,null,null,null,null,null,0,-1000,0,null,0,-1000,0]
[null,null,null,null,null,null,null,null,null,null,null,null,0,-1000,0,null,0,-1000,0]
[null,null,null,null,null,null,null,null,null,null,null,null,0,-1000,0,null,0,-1000,0]
[null,null,null,null,null,null,null,null,null,null,null,null,0,-1000,0,null,0,-1000,0]
[null,null,null,null,null,null,null,null,null,null,null,null,0,-1000,0,null,0,-1000,0]
[null,null,null,null,null,null,null,null,null,null,null,null,0,-1000,0,null,0,-1000,0]
[null,null,null,null,null,null,null,null,null,null,null,null,0,-1000,0,null,0,-1000,0]
[null,null,null,null,null,null,null,null,null,null,null,null,0,-1000,0,null,0,-1000,0]
[null,null,null,null,null,null,null,null,null,null,null,null,0,-1000,0,null,0,-1000,0]
[null,null,null,null,null,null,null,null,null,null,null,null,0,-1000,0,null,0,-1000,0]
[null,null,null,null,null,null,null,null,null,null,null,null,0,-1000,0,null,0,-1000,0]
[null,null,null,null,null,null,null,null,null,null,null,null,0,-1000,0,null,0,-1000,0]
[null,null,null,null,null,null,null,null,null,null,null,null,0,-1000,0,null,0,-1000,0]
[null,null,null,null,null,null,null,null,null,null,null,null,0,{"$f":"IF(M71>0,M71*-1,-1000)","v":-1000},0,null,0,-1000,0]
[null,null,null,null,null,null,null,null,null,null,null,null,0,{"$f":"IF(M72>0,M72*-1,-1000)","v":-1000},0,null,0,-1000,0]
[null,null,null,null,null,null,null,null,null,null,null,null,{"$f":"(G73*$G$4+H73*$H$4+I73*$I$4+J73*$J$4+K73*$K$4+L73*$L$4)","v":0},{"$f":"IF(M73>0,M73*-1,-1000)","v":-1000},{"$f":"IF(M73>0,RANK(N73,N:N),0)","v":0},null,{"$f":"IF((G73*$G$4+H73*$H$4+I73*$I$4+J73*$J$4+K73*$K$4+L73*$L$4)>0,(G73*$G$4+H73*$H$4+I73*$I$4+J73*$J$4+K73*$K$4+L73*$L$4)/(IF(G73>0,1*$G$4,0)+IF(H73>0,1*$H$4,0)+IF(I73>0,1*$I$4,0)+IF(J73>0,1*$J$4,0)+IF(K73>0,1*$K$4,0)+IF(L73>0,1*$L$4,0)),0)","v":0},{"$f":"IF(Q73>0,Q73*-1,-1000)","v":-1000},{"$f":"IF(Q73>0,RANK(R73,R:R),0)","v":0}]
[null,null,null,null,null,null,null,null,null,null,null,null,0,{"$f":"IF(M74>0,M74*-1,-1000)","v":-1000},0,null,0,-1000,0]
[null,null,null,null,null,null,null,null,null,null,null,null,0,{"$f":"IF(M75>0,M75*-1,-1000)","v":-1000},0,null,0,-1000,0]
[null,null,null,null,null,null,null,null,null,null,null,null,0,{"$f":"IF(M76>0,M76*-1,-1000)","v":-1000},0,null,0,-1000,0]
[null,null,null,null,null,null,null,null,null,null,null,null,0,{"$f":"IF(M77>0,M77*-1,-1000)","v":-1000},0,null,0,-1000,0]
[null,null,null,null,null,null,null,null,null,null,null,null,0,-1000,0,null,0,-1000,0]
[null,null,null,null,null,null,null,null,null,null,null,null,0,-1000,0,null,0,-1000,0]
[null,null,null,null,null,null,null,null,null,null,null,null,0,{"$f":"IF(M80>0,M80*-1,-1000)","v":-1000},0,null,0,-1000,0]
[null,null,null,null,null,null,null,null,null,null,null,null,0,{"$f":"IF(M81>0,M81*-1,-1000)","v":-1000},0,null,0,-1000,0]
[null,null,null,null,null,null,null,null,null,null,null,null,0,{"$f":"IF(M82>0,M82*-1,-1000)","v":-1000},0,null,0,-1000,0]
[null,null,null,null,null,null,null,null,null,null,null,null,0,-1000,0,null,0,-1000,0]
[null,null,null,null,null,null,null,null,null,null,null,null,0,-1000,0,null,0,-1000,0]
[null,null,null,null,null,null,null,null,null,null,null,null,0,-1000,0,null,0,-1000,0]
[null,null,null,null,null,null,null,null,null,null,null,null,0,-1000,0,null,0,-1000,0]
[null,null,null,null,null,null,null,null,null,null,null,null,0,-1000,0,null,0,-1000,0]
[null,null,null,null,null,null,null,null,null,null,null,null,0,-1000,0,null,0,-1000,0]
[null,null,null,null,null,null,null,null,null,null,null,null,0,-1000,0,null,0,-1000,0]
[null,null,null,null,null,null,null,null,null,null,null,null,0,{"$f":"IF(M90>0,M90*-1,-1000)","v":-1000},0,null,0,-1000,0]
[null,null,null,null,null,null,null,null,null,null,null,null,0,-1000,0,null,0,-1000,0]
[null,null,null,null,null,null,null,null,null,null,null,null,0,-1000,0,null,0,-1000,0]
[null,null,null,null,null,null,null,null,null,null,null,null,0,-1000,0,null,0,-1000,0]
[null,null,null,null,null,null,null,null,null,null,null,null,0,-1000,0,null,0,-1000,0]
[null,null,null,null,null,null,null,null,null,null,null,null,0,{"$f":"IF(M95>0,M95*-1,-1000)","v":-1000},0,null,0,-1000,0]
[null,null,null,null,null,null,null,null,null,null,null,null,0,-1000,0,null,0,-1000,0]
[null,null,null,null,null,null,null,null,null,null,null,null,0,-1000,0,null,0,-1000,0]
[null,null,null,null,null,null,null,null,null,null,null,null,0,-1000,0,null,0,-1000,0]
[null,null,null,null,null,null,null,null,null,null,null,null,0,-1000,0,null,0,-1000,0]
[null,null,null,null,null,null,null,null,null,null,null,null,0,-1000,0,null,0,-1000,0]
[null,null,null,null,null,null,null,null,null,null,null,null,0,-1000,0,null,0,-1000,0]
[null,null,null,null,null,null,null,null,null,null,null,null,0,-1000,0,null,0,-1000,0]
[null,null,null,null,null,null,null,null,null,null,null,null,0,-1000,0,null,0,-1000,0]
[null,null,null,null,null,null,null,null,null,null,null,null,0,-1000,0,null,0,-1000,0]
[null,null,null,null,null,null,null,null,null,null,null,null,0,-1000,0,null,0,-1000,0]
[null,null,null,null,null,null,null,null,null,null,null,null,0,-1000,0,null,0,-1000,0]
[null,null,null,null,null,null,null,null,null,null,null,null,0,-1000,0,null,0,-1000,0]
[null,null,null,null,null,null,null,null,null,null,null,null,0,-1000,0,null,0,-1000,0]
[null,null,null,null,null,null,null,null,null,null,null,null,0,-1000,0,null,0,-1000,0]
[null,null,null,null,null,null,null,null,null,null,null,null,0,-1000,0,null,0,-1000,0]
[null,null,null,null,null,null,null,null,null,null,null,null,0,-1000,0,null,0,-1000,0]
[null,null,null,null,null,null,null,null,null,null,null,null,0,-1000,0,null,0,-1000,0]
[null,null,null,null,null,null,null,null,null,null,null,null,0,-1000,0,null,0,-1000,0]
[null,null,null,null,null,null,null,null,null,null,null,null,0,-1000,0,null,0,-1000,0]
[null,null,null,null,null,null,null,null,null,null,null,null,0,-1000,0,null,0,-1000,0]
[null,null,null,null,null,null,null,null,null,null,null,null,0,-1000,0,null,0,-1000,0]
[null,null,null,null,null,null,null,null,null,null,null,null,0,-1000,0,null,0,-1000,0]
[null,null,null,null,null,null,null,null,null,null,null,null,0,-1000,0,null,0,-1000,0]
[null,null,null,null,null,null,null,null,null,null,null,null,0,-1000,0,null,0,-1000,0]
[null,null,null,null,null,null,null,null,null,null,null,null,0,-1000,0,null,0,-1000,0]
[null,null,null,null,null,null,null,null,null,null,null,null,0,-1000,0,null,0,-1000,0]
[null,null,null,null,null,null,null,null,null,null,null,null,0,-1000,0,null,0,-1000,0]
[null,null,null,null,null,null,null,null,null,null,null,null,0,-1000,0,null,0,-1000,0]
[null,null,null,null,null,null,null,null,null,null,null,null,0,-1000,0,null,0,-1000,0]
[null,null,null,null,null,null,null,null,null,null,null,null,0,-1000,0,null,0,-1000,0]
[null,null,null,null,null,null,null,null,null,null,null,null,0,-1000,0,null,0,-1000,0]
[null,null,null,null,null,null,null,null,null,null,null,null,0,-1000,0,null,0,-1000,0]
[null,null,null,null,null,null,null,null,null,null,null,null,0,-1000,0,null,0,-1000,0]
[null,null,null,null,null,null,null,null,null,null,null,null,0,-1000,0,null,0,-1000,0]
[null,null,null,null,null,null,null,null,null,null,null,null,0,-1000,0,null,0,-1000,0]
[null,null,null,null,null,null,null,null,null,null,null,null,0,-1000,0,null,0,-1000,0]
[null,null,null,null,null,null,null,null,null,null,null,null,0,-1000,0,null,0,-1000,0]
[null,null,null,null,null,null,null,null,null,null,null,null,0,-1000,0,null,0,-1000,0]
[null,null,null,null,null,null,null,null,null,null,null,null,0,-1000,0,null,0,-1000,0]
[null,null,null,null,null,null,null,null,null,null,null,null,0,-1000,0,null,0,-1000,0]
[null,null,null,null,null,null,null,null,null,null,null,null,0,-1000,0,null,0,-1000,0]
[null,null,null,null,null,null,null,null,null,null,null,null,{"$f":"(G137*$G$4+H137*$H$4+I137*$I$4+J137*$J$4+K137*$K$4+L137*$L$4)","v":0},-1000,{"$f":"IF(M137>0,RANK(N137,N:N),0)","v":0},null,{"$f":"IF((G137*$G$4+H137*$H$4+I137*$I$4+J137*$J$4+K137*$K$4+L137*$L$4)>0,(G137*$G$4+H137*$H$4+I137*$I$4+J137*$J$4+K137*$K$4+L137*$L$4)/(IF(G137>0,1*$G$4,0)+IF(H137>0,1*$H$4,0)+IF(I137>0,1*$I$4,0)+IF(J137>0,1*$J$4,0)+IF(K137>0,1*$K$4,0)+IF(L137>0,1*$L$4,0)),0)","v":0},-1000,{"$f":"IF(Q137>0,RANK(R137,R:R),0)","v":0}]
[null,null,null,null,null,null,null,null,null,null,null,null,0,-1000,0,null,0,-1000,0]
[null,null,null,null,null,null,null,null,null,null,null,null,0,-1000,0,null,0,-1000,0]
[null,null,null,null,null,null,null,null,null,null,null,null,0,-1000,0,null,0,-1000,0]
[null,null,null,null,null,null,null,null,null,null,null,null,0,-1000,0,null,0,-1000,0]
[null,null,null,null,null,null,null,null,null,null,null,null,0,-1000,0,null,0,-1000,0]
[null,null,null,null,null,null,null,null,null,null,null,null,0,-1000,0,null,0,-1000,0]
[null,null,null,null,null,null,null,null,null,null,null,null,0,-1000,0,null,0,-1000,0]
[null,null,null,null,null,null,null,null,null,null,null,null,0,-1000,0,null,0,-1000,0]
[null,null,null,null,null,null,null,null,null,null,null,null,0,-1000,0,null,0,-1000,0]
[null,null,null,null,null,null,null,null,null,null,null,null,0,-1000,0,null,0,-1000,0]
[null,null,null,null,null,null,null,null,null,null,null,null,0,-1000,0,null,0,-1000,0]
[null,null,null,null,null,null,null,null,null,null,null,null,0,-1000,0,null,0,-1000,0]

{"sheet":"EDM-XL","index":7,"n_rows":149,"n_cols":19,"rows_kept":149,"cut":false,"hidden":false,"merged":[[6,16,6,17]]}
["DSKD  69. Deutsche Meisterschaft und 19. Europameisterschaft 2017 Mettingen  ESKD"]
["DM - Endläufe in der Elite XL  - Klasse"]
[null,null,null,null,null,null,null,null,null,null,null,null,null,null,null,null,null,null,"Bestzeit"]
["Wird der Lauf gewertet?   dann 0 oder 1 eintragen",null,null,null,null,null,1,1,1,1,1,1,null,null,null,null,null,null,"in Vorläufen"]
[null,null,null,null,"Bestzeit je Lauf",null,{"$f":"MIN(G9:G149)","v":36.880000000000003},36.869999999999997,36.950000000000003,37.01,0,0,null,null,null,null,null,null,{"$f":"MIN((IF(G4=1,G5,99)),        (IF(H4=1,H5,99)),   (IF(I4=1,I5,99)),  (IF(J4=1,J5,99)), (IF(K4=1,K5,99)),  (IF(L4=1,L5,99))       )","v":0}]
[null,null,null,null,"Mittelwert je Lauf",null,{"$f":"IF(G5>0,AVERAGE(G9:G149),0)","v":37.015000000000001},37.032499999999999,37.050000000000004,37.127499999999998,0,0]
["Start\nNummer","Gruppe","startet","Name","Vorname","Verein","Lauf 1","Lauf 2","Lauf 3","Lauf 4","Lauf 5","Lauf 6","Summe der gewerteten Läufe",null,"Platz",null,"Mittelwert",null,"Platz"]
[]
[210,"Elite XL",null,"Strohmaier","Sebastian","SV Losaurach",36.880000000000003,36.869999999999997,36.950000000000003,37.01,null,null,{"$f":"(G9*$G$4+H9*$H$4+I9*$I$4+J9*$J$4+K9*$K$4+L9*$L$4)","v":147.71},{"$f":"IF(M9>0,M9*-1,-1000)","v":-147.71},{"$f":"IF(M9>0,RANK(N9,N:N),0)","v":1},null,{"$f":"IF((G9*$G$4+H9*$H$4+I9*$I$4+J9*$J$4+K9*$K$4+L9*$L$4)>0,(G9*$G$4+H9*$H$4+I9*$I$4+J9*$J$4+K9*$K$4+L9*$L$4)/(IF(G9>0,1*$G$4,0)+IF(H9>0,1*$H$4,0)+IF(I9>0,1*$I$4,0)+IF(J9>0,1*$J$4,0)+IF(K9>0,1*$K$4,0)+IF(L9>0,1*$L$4,0)),0)","v":36.927500000000002},{"$f":"IF(Q9>0,Q9*-1,-1000)","v":-36.927500000000002},{"$f":"IF(Q9>0,RANK(R9,R:R),0)","v":1}]
[205,"Elite XL",null,"Braun","Armin","MSVg Gerolzhofen",37.07,36.93,37.090000000000003,37.090000000000003,null,null,{"$f":"(G10*$G$4+H10*$H$4+I10*$I$4+J10*$J$4+K10*$K$4+L10*$L$4)","v":148.18},{"$f":"IF(M10>0,M10*-1,-1000)","v":-148.18},{"$f":"IF(M10>0,RANK(N10,N:N),0)","v":2},null,{"$f":"IF((G10*$G$4+H10*$H$4+I10*$I$4+J10*$J$4+K10*$K$4+L10*$L$4)>0,(G10*$G$4+H10*$H$4+I10*$I$4+J10*$J$4+K10*$K$4+L10*$L$4)/(IF(G10>0,1*$G$4,0)+IF(H10>0,1*$H$4,0)+IF(I10>0,1*$I$4,0)+IF(J10>0,1*$J$4,0)+IF(K10>0,1*$K$4,0)+IF(L10>0,1*$L$4,0)),0)","v":37.045000000000002},{"$f":"IF(Q10>0,Q10*-1,-1000)","v":-37.045000000000002},{"$f":"IF(Q10>0,RANK(R10,R:R),0)","v":2}]
[202,"Elite XL",null,"Schmidt","Marvin","Friesenflitzer Varel",37.03,37.01,37.07,37.090000000000003,null,null,{"$f":"(G11*$G$4+H11*$H$4+I11*$I$4+J11*$J$4+K11*$K$4+L11*$L$4)","v":148.19999999999999},{"$f":"IF(M11>0,M11*-1,-1000)","v":-148.19999999999999},{"$f":"IF(M11>0,RANK(N11,N:N),0)","v":3},null,{"$f":"IF((G11*$G$4+H11*$H$4+I11*$I$4+J11*$J$4+K11*$K$4+L11*$L$4)>0,(G11*$G$4+H11*$H$4+I11*$I$4+J11*$J$4+K11*$K$4+L11*$L$4)/(IF(G11>0,1*$G$4,0)+IF(H11>0,1*$H$4,0)+IF(I11>0,1*$I$4,0)+IF(J11>0,1*$J$4,0)+IF(K11>0,1*$K$4,0)+IF(L11>0,1*$L$4,0)),0)","v":37.049999999999997},{"$f":"IF(Q11>0,Q11*-1,-1000)","v":-37.049999999999997},{"$f":"IF(Q11>0,RANK(R11,R:R),0)","v":3}]
[206,"Elite XL",null,"Schlösser","Timon","Seifenkistengruppe Stromberg",37.08,37.32,37.090000000000003,37.32,null,null,{"$f":"(G12*$G$4+H12*$H$4+I12*$I$4+J12*$J$4+K12*$K$4+L12*$L$4)","v":148.81},{"$f":"IF(M12>0,M12*-1,-1000)","v":-148.81},{"$f":"IF(M12>0,RANK(N12,N:N),0)","v":4},null,{"$f":"IF((G12*$G$4+H12*$H$4+I12*$I$4+J12*$J$4+K12*$K$4+L12*$L$4)>0,(G12*$G$4+H12*$H$4+I12*$I$4+J12*$J$4+K12*$K$4+L12*$L$4)/(IF(G12>0,1*$G$4,0)+IF(H12>0,1*$H$4,0)+IF(I12>0,1*$I$4,0)+IF(J12>0,1*$J$4,0)+IF(K12>0,1*$K$4,0)+IF(L12>0,1*$L$4,0)),0)","v":37.202500000000001},{"$f":"IF(Q12>0,Q12*-1,-1000)","v":-37.202500000000001},{"$f":"IF(Q12>0,RANK(R12,R:R),0)","v":4}]
[null,null,null,null,null,null,null,null,null,null,null,null,{"$f":"(G13*$G$4+H13*$H$4+I13*$I$4+J13*$J$4+K13*$K$4+L13*$L$4)","v":0},{"$f":"IF(M13>0,M13*-1,-1000)","v":-1000},{"$f":"IF(M13>0,RANK(N13,N:N),0)","v":0},null,{"$f":"IF((G13*$G$4+H13*$H$4+I13*$I$4+J13*$J$4+K13*$K$4+L13*$L$4)>0,(G13*$G$4+H13*$H$4+I13*$I$4+J13*$J$4+K13*$K$4+L13*$L$4)/(IF(G13>0,1*$G$4,0)+IF(H13>0,1*$H$4,0)+IF(I13>0,1*$I$4,0)+IF(J13>0,1*$J$4,0)+IF(K13>0,1*$K$4,0)+IF(L13>0,1*$L$4,0)),0)","v":0},{"$f":"IF(Q13>0,Q13*-1,-1000)","v":-1000},{"$f":"IF(Q13>0,RANK(R13,R:R),0)","v":0}]
[null,null,null,null,null,null,null,null,null,null,null,null,0,-1000,0,null,0,-1000,0]
[null,null,null,null,null,null,null,null,null,null,null,null,0,-1000,0,null,0,-1000,0]
[null,null,null,null,null,null,null,null,null,null,null,null,0,-1000,0,null,0,-1000,0]
[null,null,null,null,null,null,null,null,null,null,null,null,0,{"$f":"IF(M17>0,M17*-1,-1000)","v":-1000},0,null,0,-1000,0]
[null,null,null,null,null,null,null,null,null,null,null,null,0,{"$f":"IF(M18>0,M18*-1,-1000)","v":-1000},0,null,0,-1000,0]
[null,null,null,null,null,null,null,null,null,null,null,null,0,-1000,0,null,0,-1000,0]
[null,null,null,null,null,null,null,null,null,null,null,null,0,{"$f":"IF(M20>0,M20*-1,-1000)","v":-1000},0,null,0,-1000,0]
[null,null,null,null,null,null,null,null,null,null,null,null,0,{"$f":"IF(M21>0,M21*-1,-1000)","v":-1000},0,null,0,-1000,0]
[null,null,null,null,null,null,null,null,null,null,null,null,0,{"$f":"IF(M22>0,M22*-1,-1000)","v":-1000},0,null,0,-1000,0]
[null,null,null,null,null,null,null,null,null,null,null,null,0,{"$f":"IF(M23>0,M23*-1,-1000)","v":-1000},0,null,0,-1000,0]
[null,null,null,null,null,null,null,null,null,null,null,null,0,-1000,0,null,0,-1000,0]
[null,null,null,null,null,null,null,null,null,null,null,null,0,{"$f":"IF(M25>0,M25*-1,-1000)","v":-1000},0,null,0,-1000,0]
[null,null,null,null,null,null,null,null,null,null,null,null,0,{"$f":"IF(M26>0,M26*-1,-1000)","v":-1000},0,null,0,-1000,0]
[null,null,null,null,null,null,null,null,null,null,null,null,0,{"$f":"IF(M27>0,M27*-1,-1000)","v":-1000},0,null,0,-1000,0]
[null,null,null,null,null,null,null,null,null,null,null,null,0,-1000,0,null,0,-1000,0]
[null,null,null,null,null,null,null,null,null,null,null,null,0,-1000,0,null,0,-1000,0]
[null,null,null,null,null,null,null,null,null,null,null,null,0,-1000,0,null,0,-1000,0]
[null,null,null,null,null,null,null,null,null,null,null,null,0,-1000,0,null,0,-1000,0]
[null,null,null,null,null,null,null,null,null,null,null,null,0,-1000,0,null,0,-1000,0]
[null,null,null,null,null,null,null,null,null,null,null,null,0,-1000,0,null,0,-1000,0]
[null,null,null,null,null,null,null,null,null,null,null,null,0,-1000,0,null,0,-1000,0]
[null,null,null,null,null,null,null,null,null,null,null,null,0,-1000,0,null,0,-1000,0]
[null,null,null,null,null,null,null,null,null,null,null,null,0,{"$f":"IF(M36>0,M36*-1,-1000)","v":-1000},0,null,0,-1000,0]
[null,null,null,null,null,null,null,null,null,null,null,null,0,{"$f":"IF(M37>0,M37*-1,-1000)","v":-1000},0,null,0,-1000,0]
[null,null,null,null,null,null,null,null,null,null,null,null,0,{"$f":"IF(M38>0,M38*-1,-1000)","v":-1000},0,null,0,-1000,0]
[null,null,null,null,null,null,null,null,null,null,null,null,0,{"$f":"IF(M39>0,M39*-1,-1000)","v":-1000},0,null,0,-1000,0]
[null,null,null,null,null,null,null,null,null,null,null,null,0,{"$f":"IF(M40>0,M40*-1,-1000)","v":-1000},0,null,0,-1000,0]
[null,null,null,null,null,null,null,null,null,null,null,null,0,-1000,0,null,0,-1000,0]
[null,null,null,null,null,null,null,null,null,null,null,null,0,{"$f":"IF(M42>0,M42*-1,-1000)","v":-1000},0,null,0,-1000,0]
[null,null,null,null,null,null,null,null,null,null,null,null,0,{"$f":"IF(M43>0,M43*-1,-1000)","v":-1000},0,null,0,-1000,0]
[null,null,null,null,null,null,null,null,null,null,null,null,0,-1000,0,null,0,-1000,0]
[null,null,null,null,null,null,null,null,null,null,null,null,0,-1000,0,null,0,-1000,0]
[null,null,null,null,null,null,null,null,null,null,null,null,0,-1000,0,null,0,-1000,0]
[null,null,null,null,null,null,null,null,null,null,null,null,0,-1000,0,null,0,-1000,0]
[null,null,null,null,null,null,null,null,null,null,null,null,0,-1000,0,null,0,-1000,0]
[null,null,null,null,null,null,null,null,null,null,null,null,0,-1000,0,null,0,-1000,0]
[null,null,null,null,null,null,null,null,null,null,null,null,0,-1000,0,null,0,-1000,0]
[null,null,null,null,null,null,null,null,null,null,null,null,0,-1000,0,null,0,-1000,0]
[null,null,null,null,null,null,null,null,null,null,null,null,0,-1000,0,null,0,-1000,0]
[null,null,null,null,null,null,null,null,null,null,null,null,0,-1000,0,null,0,-1000,0]
[null,null,null,null,null,null,null,null,null,null,null,null,0,-1000,0,null,0,-1000,0]
[null,null,null,null,null,null,null,null,null,null,null,null,0,-1000,0,null,0,-1000,0]
[null,null,null,null,null,null,null,null,null,null,null,null,0,-1000,0,null,0,-1000,0]
[null,null,null,null,null,null,null,null,null,null,null,null,0,-1000,0,null,0,-1000,0]
[null,null,null,null,null,null,null,null,null,null,null,null,0,-1000,0,null,0,-1000,0]
[null,null,null,null,null,null,null,null,null,null,null,null,0,-1000,0,null,0,-1000,0]
[null,null,null,null,null,null,null,null,null,null,null,null,0,-1000,0,null,0,-1000,0]
[null,null,null,null,null,null,null,null,null,null,null,null,0,-1000,0,null,0,-1000,0]
[null,null,null,null,null,null,null,null,null,null,null,null,0,-1000,0,null,0,-1000,0]
[null,null,null,null,null,null,null,null,null,null,null,null,0,-1000,0,null,0,-1000,0]
[null,null,null,null,null,null,null,null,null,null,null,null,0,-1000,0,null,0,-1000,0]
[null,null,null,null,null,null,null,null,null,null,null,null,0,-1000,0,null,0,-1000,0]
[null,null,null,null,null,null,null,null,null,null,null,null,0,-1000,0,null,0,-1000,0]
[null,null,null,null,null,null,null,null,null,null,null,null,0,-1000,0,null,0,-1000,0]
[null,null,null,null,null,null,null,null,null,null,null,null,0,-1000,0,null,0,-1000,0]
[null,null,null,null,null,null,null,null,null,null,null,null,0,-1000,0,null,0,-1000,0]
[null,null,null,null,null,null,null,null,null,null,null,null,0,-1000,0,null,0,-1000,0]
[null,null,null,null,null,null,null,null,null,null,null,null,0,{"$f":"IF(M71>0,M71*-1,-1000)","v":-1000},0,null,0,-1000,0]
[null,null,null,null,null,null,null,null,null,null,null,null,0,{"$f":"IF(M72>0,M72*-1,-1000)","v":-1000},0,null,0,-1000,0]
[null,null,null,null,null,null,null,null,null,null,null,null,0,{"$f":"IF(M73>0,M73*-1,-1000)","v":-1000},0,null,0,-1000,0]
[null,null,null,null,null,null,null,null,null,null,null,null,0,{"$f":"IF(M74>0,M74*-1,-1000)","v":-1000},0,null,0,-1000,0]
[null,null,null,null,null,null,null,null,null,null,null,null,0,-1000,0,null,0,-1000,0]
[null,null,null,null,null,null,null,null,null,null,null,null,0,{"$f":"IF(M76>0,M76*-1,-1000)","v":-1000},0,null,0,-1000,0]
[null,null,null,null,null,null,null,null,null,null,null,null,{"$f":"(G77*$G$4+H77*$H$4+I77*$I$4+J77*$J$4+K77*$K$4+L77*$L$4)","v":0},{"$f":"IF(M77>0,M77*-1,-1000)","v":-1000},{"$f":"IF(M77>0,RANK(N77,N:N),0)","v":0},null,{"$f":"IF((G77*$G$4+H77*$H$4+I77*$I$4+J77*$J$4+K77*$K$4+L77*$L$4)>0,(G77*$G$4+H77*$H$4+I77*$I$4+J77*$J$4+K77*$K$4+L77*$L$4)/(IF(G77>0,1*$G$4,0)+IF(H77>0,1*$H$4,0)+IF(I77>0,1*$I$4,0)+IF(J77>0,1*$J$4,0)+IF(K77>0,1*$K$4,0)+IF(L77>0,1*$L$4,0)),0)","v":0},{"$f":"IF(Q77>0,Q77*-1,-1000)","v":-1000},{"$f":"IF(Q77>0,RANK(R77,R:R),0)","v":0}]
[null,null,null,null,null,null,null,null,null,null,null,null,0,-1000,0,null,0,-1000,0]
[null,null,null,null,null,null,null,null,null,null,null,null,0,-1000,0,null,0,-1000,0]
[null,null,null,null,null,null,null,null,null,null,null,null,0,{"$f":"IF(M80>0,M80*-1,-1000)","v":-1000},0,null,0,-1000,0]
[null,null,null,null,null,null,null,null,null,null,null,null,0,{"$f":"IF(M81>0,M81*-1,-1000)","v":-1000},0,null,0,-1000,0]
[null,null,null,null,null,null,null,null,null,null,null,null,0,{"$f":"IF(M82>0,M82*-1,-1000)","v":-1000},0,null,0,-1000,0]
[null,null,null,null,null,null,null,null,null,null,null,null,0,-1000,0,null,0,-1000,0]
[null,null,null,null,null,null,null,null,null,null,null,null,0,-1000,0,null,0,-1000,0]
[null,null,null,null,null,null,null,null,null,null,null,null,0,-1000,0,null,0,-1000,0]
[null,null,null,null,null,null,null,null,null,null,null,null,0,-1000,0,null,0,-1000,0]
[null,null,null,null,null,null,null,null,null,null,null,null,0,-1000,0,null,0,-1000,0]
[null,null,null,null,null,null,null,null,null,null,null,null,0,-1000,0,null,0,-1000,0]
[null,null,null,null,null,null,null,null,null,null,null,null,0,-1000,0,null,0,-1000,0]
[null,null,null,null,null,null,null,null,null,null,null,null,0,{"$f":"IF(M90>0,M90*-1,-1000)","v":-1000},0,null,0,-1000,0]
[null,null,null,null,null,null,null,null,null,null,null,null,0,-1000,0,null,0,-1000,0]
[null,null,null,null,null,null,null,null,null,null,null,null,0,-1000,0,null,0,-1000,0]
[null,null,null,null,null,null,null,null,null,null,null,null,0,-1000,0,null,0,-1000,0]
[null,null,null,null,null,null,null,null,null,null,null,null,0,-1000,0,null,0,-1000,0]
[null,null,null,null,null,null,null,null,null,null,null,null,0,{"$f":"IF(M95>0,M95*-1,-1000)","v":-1000},0,null,0,-1000,0]
[null,null,null,null,null,null,null,null,null,null,null,null,0,-1000,0,null,0,-1000,0]
[null,null,null,null,null,null,null,null,null,null,null,null,0,-1000,0,null,0,-1000,0]
[null,null,null,null,null,null,null,null,null,null,null,null,0,-1000,0,null,0,-1000,0]
[null,null,null,null,null,null,null,null,null,null,null,null,0,-1000,0,null,0,-1000,0]
[null,null,null,null,null,null,null,null,null,null,null,null,0,-1000,0,null,0,-1000,0]
[null,null,null,null,null,null,null,null,null,null,null,null,0,-1000,0,null,0,-1000,0]
[null,null,null,null,null,null,null,null,null,null,null,null,0,-1000,0,null,0,-1000,0]
[null,null,null,null,null,null,null,null,null,null,null,null,0,-1000,0,null,0,-1000,0]
[null,null,null,null,null,null,null,null,null,null,null,null,0,-1000,0,null,0,-1000,0]
[null,null,null,null,null,null,null,null,null,null,null,null,0,-1000,0,null,0,-1000,0]
[null,null,null,null,null,null,null,null,null,null,null,null,0,-1000,0,null,0,-1000,0]
[null,null,null,null,null,null,null,null,null,null,null,null,0,-1000,0,null,0,-1000,0]
[null,null,null,null,null,null,null,null,null,null,null,null,0,-1000,0,null,0,-1000,0]
[null,null,null,null,null,null,null,null,null,null,null,null,0,-1000,0,null,0,-1000,0]
[null,null,null,null,null,null,null,null,null,null,null,null,0,-1000,0,null,0,-1000,0]
[null,null,null,null,null,null,null,null,null,null,null,null,0,-1000,0,null,0,-1000,0]
[null,null,null,null,null,null,null,null,null,null,null,null,0,-1000,0,null,0,-1000,0]
[null,null,null,null,null,null,null,null,null,null,null,null,0,-1000,0,null,0,-1000,0]
[null,null,null,null,null,null,null,null,null,null,null,null,0,-1000,0,null,0,-1000,0]
[null,null,null,null,null,null,null,null,null,null,null,null,0,-1000,0,null,0,-1000,0]
[null,null,null,null,null,null,null,null,null,null,null,null,0,-1000,0,null,0,-1000,0]
[null,null,null,null,null,null,null,null,null,null,null,null,0,-1000,0,null,0,-1000,0]
[null,null,null,null,null,null,null,null,null,null,null,null,0,-1000,0,null,0,-1000,0]
[null,null,null,null,null,null,null,null,null,null,null,null,0,-1000,0,null,0,-1000,0]
[null,null,null,null,null,null,null,null,null,null,null,null,0,-1000,0,null,0,-1000,0]
[null,null,null,null,null,null,null,null,null,null,null,null,0,-1000,0,null,0,-1000,0]
[null,null,null,null,null,null,null,null,null,null,null,null,0,-1000,0,null,0,-1000,0]
[null,null,null,null,null,null,null,null,null,null,null,null,0,-1000,0,null,0,-1000,0]
[null,null,null,null,null,null,null,null,null,null,null,null,0,-1000,0,null,0,-1000,0]
[null,null,null,null,null,null,null,null,null,null,null,null,0,-1000,0,null,0,-1000,0]
[null,null,null,null,null,null,null,null,null,null,null,null,0,-1000,0,null,0,-1000,0]
[null,null,null,null,null,null,null,null,null,null,null,null,0,-1000,0,null,0,-1000,0]
[null,null,null,null,null,null,null,null,null,null,null,null,0,-1000,0,null,0,-1000,0]
[null,null,null,null,null,null,null,null,null,null,null,null,0,-1000,0,null,0,-1000,0]
[null,null,null,null,null,null,null,null,null,null,null,null,0,-1000,0,null,0,-1000,0]
[null,null,null,null,null,null,null,null,null,null,null,null,0,-1000,0,null,0,-1000,0]
[null,null,null,null,null,null,null,null,null,null,null,null,0,-1000,0,null,0,-1000,0]
[null,null,null,null,null,null,null,null,null,null,null,null,0,-1000,0,null,0,-1000,0]
[null,null,null,null,null,null,null,null,null,null,null,null,0,-1000,0,null,0,-1000,0]
[null,null,null,null,null,null,null,null,null,null,null,null,0,-1000,0,null,0,-1000,0]
[null,null,null,null,null,null,null,null,null,null,null,null,0,-1000,0,null,0,-1000,0]
[null,null,null,null,null,null,null,null,null,null,null,null,0,-1000,0,null,0,-1000,0]
[null,null,null,null,null,null,null,null,null,null,null,null,0,-1000,0,null,0,-1000,0]
[null,null,null,null,null,null,null,null,null,null,null,null,0,-1000,0,null,0,-1000,0]
[null,null,null,null,null,null,null,null,null,null,null,null,0,-1000,0,null,0,-1000,0]
[null,null,null,null,null,null,null,null,null,null,null,null,{"$f":"(G141*$G$4+H141*$H$4+I141*$I$4+J141*$J$4+K141*$K$4+L141*$L$4)","v":0},-1000,{"$f":"IF(M141>0,RANK(N141,N:N),0)","v":0},null,{"$f":"IF((G141*$G$4+H141*$H$4+I141*$I$4+J141*$J$4+K141*$K$4+L141*$L$4)>0,(G141*$G$4+H141*$H$4+I141*$I$4+J141*$J$4+K141*$K$4+L141*$L$4)/(IF(G141>0,1*$G$4,0)+IF(H141>0,1*$H$4,0)+IF(I141>0,1*$I$4,0)+IF(J141>0,1*$J$4,0)+IF(K141>0,1*$K$4,0)+IF(L141>0,1*$L$4,0)),0)","v":0},-1000,{"$f":"IF(Q141>0,RANK(R141,R:R),0)","v":0}]
[null,null,null,null,null,null,null,null,null,null,null,null,0,-1000,0,null,0,-1000,0]
[null,null,null,null,null,null,null,null,null,null,null,null,0,-1000,0,null,0,-1000,0]
[null,null,null,null,null,null,null,null,null,null,null,null,0,-1000,0,null,0,-1000,0]
[null,null,null,null,null,null,null,null,null,null,null,null,0,-1000,0,null,0,-1000,0]
[null,null,null,null,null,null,null,null,null,null,null,null,0,-1000,0,null,0,-1000,0]
[null,null,null,null,null,null,null,null,null,null,null,null,0,-1000,0,null,0,-1000,0]
[null,null,null,null,null,null,null,null,null,null,null,null,0,-1000,0,null,0,-1000,0]
[null,null,null,null,null,null,null,null,null,null,null,null,0,-1000,0,null,0,-1000,0]

{"sheet":"EDM-XL18","index":8,"n_rows":149,"n_cols":19,"rows_kept":149,"cut":false,"hidden":false,"merged":[[6,16,6,17]]}
["DSKD  69. Deutsche Meisterschaft und 19. Europameisterschaft 2017 Mettingen  ESKD"]
["DM - Endläufe in der XL Ü18 - Klasse"]
[null,null,null,null,null,null,null,null,null,null,null,null,null,null,null,null,null,null,"Bestzeit"]
["Wird der Lauf gewertet?   dann 0 oder 1 eintragen",null,null,null,null,null,0,1,1,1,1,1,null,null,null,null,null,null,"in Vorläufen"]
[null,null,null,null,"Bestzeit je Lauf",null,{"$f":"MIN(G9:G149)","v":36.82},36.9,36.9,36.880000000000003,0,0,null,null,null,null,null,null,{"$f":"MIN((IF(G4=1,G5,99)),        (IF(H4=1,H5,99)),   (IF(I4=1,I5,99)),  (IF(J4=1,J5,99)), (IF(K4=1,K5,99)),  (IF(L4=1,L5,99))       )","v":0}]
[null,null,null,null,"Mittelwert je Lauf",null,{"$f":"IF(G5>0,AVERAGE(G9:G149),0)","v":36.92},36.968333333333334,36.979999999999997,37.013333333333328,0,0]
["Start\nNummer","Gruppe","startet","Name","Vorname","Verein","Lauf 1","Lauf 2","Lauf 3","Lauf 4","Lauf 5","Lauf 6","Summe der gewerteten Läufe",null,"Platz",null,"Mittelwert",null,"Platz"]
[]
[313,"Ü18",null,"Rohls","Sebastian","Seifenkistengruppe Stromberg",36.82,36.9,36.9,36.880000000000003,null,null,{"$f":"(G9*$G$4+H9*$H$4+I9*$I$4+J9*$J$4+K9*$K$4+L9*$L$4)","v":110.68},{"$f":"IF(M9>0,M9*-1,-1000)","v":-110.68},{"$f":"IF(M9>0,RANK(N9,N:N),0)","v":1},null,{"$f":"IF((G9*$G$4+H9*$H$4+I9*$I$4+J9*$J$4+K9*$K$4+L9*$L$4)>0,(G9*$G$4+H9*$H$4+I9*$I$4+J9*$J$4+K9*$K$4+L9*$L$4)/(IF(G9>0,1*$G$4,0)+IF(H9>0,1*$H$4,0)+IF(I9>0,1*$I$4,0)+IF(J9>0,1*$J$4,0)+IF(K9>0,1*$K$4,0)+IF(L9>0,1*$L$4,0)),0)","v":36.893333333333338},{"$f":"IF(Q9>0,Q9*-1,-1000)","v":-36.893333333333338},{"$f":"IF(Q9>0,RANK(R9,R:R),0)","v":1}]
[304,"Ü18",null,"Lange","Florian","Jugendclub Mettinger SK-Derby",36.89,36.92,37.020000000000003,36.94,null,null,110.88,-110.88,2,null,36.96,-36.96,2]
[305,"Ü18",null,"Voß","Marie-Charlotte","Immer auf Achse Bergkamen",36.92,36.93,36.93,37.07,null,null,110.93,-110.93,3,null,36.976666666666667,-36.976666666666667,3]
[306,"Ü18",null,"Isaac","Marvin","Eifeler-Seifenkistenfreunde Simmerath",36.9,36.92,37.04,37.01,null,null,110.97,-110.97,4,null,36.99,-36.99,4]
[312,"Ü18",null,"Hollunder","Christina","Berkel Raser Billerbeck",37.03,37.090000000000003,36.96,37.1,null,null,111.15,-111.15,5,null,37.050000000000004,-37.050000000000004,5]
[316,"Ü18",null,"Bontjes","Sabine","Power Crew Berlin",36.96,37.049999999999997,37.03,37.08,null,null,111.16,-111.16,6,null,37.053333333333335,-37.053333333333335,6]
[null,null,null,null,null,null,null,null,null,null,null,null,0,-1000,0,null,0,-1000,0]
[null,null,null,null,null,null,null,null,null,null,null,null,0,-1000,0,null,0,-1000,0]
[null,null,null,null,null,null,null,null,null,null,null,null,0,{"$f":"IF(M17>0,M17*-1,-1000)","v":-1000},0,null,0,-1000,0]
[null,null,null,null,null,null,null,null,null,null,null,null,0,{"$f":"IF(M18>0,M18*-1,-1000)","v":-1000},0,null,0,-1000,0]
[null,null,null,null,null,null,null,null,null,null,null,null,0,-1000,0,null,0,-1000,0]
[null,null,null,null,null,null,null,null,null,null,null,null,0,{"$f":"IF(M20>0,M20*-1,-1000)","v":-1000},0,null,0,-1000,0]
[null,null,null,null,null,null,null,null,null,null,null,null,0,{"$f":"IF(M21>0,M21*-1,-1000)","v":-1000},0,null,0,-1000,0]
[null,null,null,null,null,null,null,null,null,null,null,null,0,{"$f":"IF(M22>0,M22*-1,-1000)","v":-1000},0,null,0,-1000,0]
[null,null,null,null,null,null,null,null,null,null,null,null,0,{"$f":"IF(M23>0,M23*-1,-1000)","v":-1000},0,null,0,-1000,0]
[null,null,null,null,null,null,null,null,null,null,null,null,0,-1000,0,null,0,-1000,0]
[null,null,null,null,null,null,null,null,null,null,null,null,0,{"$f":"IF(M25>0,M25*-1,-1000)","v":-1000},0,null,0,-1000,0]
[null,null,null,null,null,null,null,null,null,null,null,null,0,{"$f":"IF(M26>0,M26*-1,-1000)","v":-1000},0,null,0,-1000,0]
[null,null,null,null,null,null,null,null,null,null,null,null,0,{"$f":"IF(M27>0,M27*-1,-1000)","v":-1000},0,null,0,-1000,0]
[null,null,null,null,null,null,null,null,null,null,null,null,0,-1000,0,null,0,-1000,0]
[null,null,null,null,null,null,null,null,null,null,null,null,0,-1000,0,null,0,-1000,0]
[null,null,null,null,null,null,null,null,null,null,null,null,0,-1000,0,null,0,-1000,0]
[null,null,null,null,null,null,null,null,null,null,null,null,0,-1000,0,null,0,-1000,0]
[null,null,null,null,null,null,null,null,null,null,null,null,0,-1000,0,null,0,-1000,0]
[null,null,null,null,null,null,null,null,null,null,null,null,0,-1000,0,null,0,-1000,0]
[null,null,null,null,null,null,null,null,null,null,null,null,0,-1000,0,null,0,-1000,0]
[null,null,null,null,null,null,null,null,null,null,null,null,0,-1000,0,null,0,-1000,0]
[null,null,null,null,null,null,null,null,null,null,null,null,0,{"$f":"IF(M36>0,M36*-1,-1000)","v":-1000},0,null,0,-1000,0]
[null,null,null,null,null,null,null,null,null,null,null,null,0,{"$f":"IF(M37>0,M37*-1,-1000)","v":-1000},0,null,0,-1000,0]
[null,null,null,null,null,null,null,null,null,null,null,null,0,{"$f":"IF(M38>0,M38*-1,-1000)","v":-1000},0,null,0,-1000,0]
[null,null,null,null,null,null,null,null,null,null,null,null,0,{"$f":"IF(M39>0,M39*-1,-1000)","v":-1000},0,null,0,-1000,0]
[null,null,null,null,null,null,null,null,null,null,null,null,0,{"$f":"IF(M40>0,M40*-1,-1000)","v":-1000},0,null,0,-1000,0]
[null,null,null,null,null,null,null,null,null,null,null,null,0,-1000,0,null,0,-1000,0]
[null,null,null,null,null,null,null,null,null,null,null,null,0,{"$f":"IF(M42>0,M42*-1,-1000)","v":-1000},0,null,0,-1000,0]
[null,null,null,null,null,null,null,null,null,null,null,null,0,{"$f":"IF(M43>0,M43*-1,-1000)","v":-1000},0,null,0,-1000,0]
[null,null,null,null,null,null,null,null,null,null,null,null,0,-1000,0,null,0,-1000,0]
[null,null,null,null,null,null,null,null,null,null,null,null,0,-1000,0,null,0,-1000,0]
[null,null,null,null,null,null,null,null,null,null,null,null,0,-1000,0,null,0,-1000,0]
[null,null,null,null,null,null,null,null,null,null,null,null,0,-1000,0,null,0,-1000,0]
[null,null,null,null,null,null,null,null,null,null,null,null,0,-1000,0,null,0,-1000,0]
[null,null,null,null,null,null,null,null,null,null,null,null,0,-1000,0,null,0,-1000,0]
[null,null,null,null,null,null,null,null,null,null,null,null,0,-1000,0,null,0,-1000,0]
[null,null,null,null,null,null,null,null,null,null,null,null,0,-1000,0,null,0,-1000,0]
[null,null,null,null,null,null,null,null,null,null,null,null,0,-1000,0,null,0,-1000,0]
[null,null,null,null,null,null,null,null,null,null,null,null,0,-1000,0,null,0,-1000,0]
[null,null,null,null,null,null,null,null,null,null,null,null,0,-1000,0,null,0,-1000,0]
[null,null,null,null,null,null,null,null,null,null,null,null,0,-1000,0,null,0,-1000,0]
[null,null,null,null,null,null,null,null,null,null,null,null,0,-1000,0,null,0,-1000,0]
[null,null,null,null,null,null,null,null,null,null,null,null,0,-1000,0,null,0,-1000,0]
[null,null,null,null,null,null,null,null,null,null,null,null,0,-1000,0,null,0,-1000,0]
[null,null,null,null,null,null,null,null,null,null,null,null,0,-1000,0,null,0,-1000,0]
[null,null,null,null,null,null,null,null,null,null,null,null,0,-1000,0,null,0,-1000,0]
[null,null,null,null,null,null,null,null,null,null,null,null,0,-1000,0,null,0,-1000,0]
[null,null,null,null,null,null,null,null,null,null,null,null,0,-1000,0,null,0,-1000,0]
[null,null,null,null,null,null,null,null,null,null,null,null,0,-1000,0,null,0,-1000,0]
[null,null,null,null,null,null,null,null,null,null,null,null,0,-1000,0,null,0,-1000,0]
[null,null,null,null,null,null,null,null,null,null,null,null,0,-1000,0,null,0,-1000,0]
[null,null,null,null,null,null,null,null,null,null,null,null,0,-1000,0,null,0,-1000,0]
[null,null,null,null,null,null,null,null,null,null,null,null,0,-1000,0,null,0,-1000,0]
[null,null,null,null,null,null,null,null,null,null,null,null,0,-1000,0,null,0,-1000,0]
[null,null,null,null,null,null,null,null,null,null,null,null,0,-1000,0,null,0,-1000,0]
[null,null,null,null,null,null,null,null,null,null,null,null,0,-1000,0,null,0,-1000,0]
[null,null,null,null,null,null,null,null,null,null,null,null,0,{"$f":"IF(M71>0,M71*-1,-1000)","v":-1000},0,null,0,-1000,0]
[null,null,null,null,null,null,null,null,null,null,null,null,0,{"$f":"IF(M72>0,M72*-1,-1000)","v":-1000},0,null,0,-1000,0]
[null,null,null,null,null,null,null,null,null,null,null,null,{"$f":"(G73*$G$4+H73*$H$4+I73*$I$4+J73*$J$4+K73*$K$4+L73*$L$4)","v":0},{"$f":"IF(M73>0,M73*-1,-1000)","v":-1000},{"$f":"IF(M73>0,RANK(N73,N:N),0)","v":0},null,{"$f":"IF((G73*$G$4+H73*$H$4+I73*$I$4+J73*$J$4+K73*$K$4+L73*$L$4)>0,(G73*$G$4+H73*$H$4+I73*$I$4+J73*$J$4+K73*$K$4+L73*$L$4)/(IF(G73>0,1*$G$4,0)+IF(H73>0,1*$H$4,0)+IF(I73>0,1*$I$4,0)+IF(J73>0,1*$J$4,0)+IF(K73>0,1*$K$4,0)+IF(L73>0,1*$L$4,0)),0)","v":0},{"$f":"IF(Q73>0,Q73*-1,-1000)","v":-1000},{"$f":"IF(Q73>0,RANK(R73,R:R),0)","v":0}]
[null,null,null,null,null,null,null,null,null,null,null,null,0,{"$f":"IF(M74>0,M74*-1,-1000)","v":-1000},0,null,0,-1000,0]
[null,null,null,null,null,null,null,null,null,null,null,null,0,{"$f":"IF(M75>0,M75*-1,-1000)","v":-1000},0,null,0,-1000,0]
[null,null,null,null,null,null,null,null,null,null,null,null,0,{"$f":"IF(M76>0,M76*-1,-1000)","v":-1000},0,null,0,-1000,0]
[null,null,null,null,null,null,null,null,null,null,null,null,0,{"$f":"IF(M77>0,M77*-1,-1000)","v":-1000},0,null,0,-1000,0]
[null,null,null,null,null,null,null,null,null,null,null,null,0,-1000,0,null,0,-1000,0]
[null,null,null,null,null,null,null,null,null,null,null,null,0,-1000,0,null,0,-1000,0]
[null,null,null,null,null,null,null,null,null,null,null,null,0,{"$f":"IF(M80>0,M80*-1,-1000)","v":-1000},0,null,0,-1000,0]
[null,null,null,null,null,null,null,null,null,null,null,null,0,{"$f":"IF(M81>0,M81*-1,-1000)","v":-1000},0,null,0,-1000,0]
[null,null,null,null,null,null,null,null,null,null,null,null,0,{"$f":"IF(M82>0,M82*-1,-1000)","v":-1000},0,null,0,-1000,0]
[null,null,null,null,null,null,null,null,null,null,null,null,0,-1000,0,null,0,-1000,0]
[null,null,null,null,null,null,null,null,null,null,null,null,0,-1000,0,null,0,-1000,0]
[null,null,null,null,null,null,null,null,null,null,null,null,0,-1000,0,null,0,-1000,0]
[null,null,null,null,null,null,null,null,null,null,null,null,0,-1000,0,null,0,-1000,0]
[null,null,null,null,null,null,null,null,null,null,null,null,0,-1000,0,null,0,-1000,0]
[null,null,null,null,null,null,null,null,null,null,null,null,0,-1000,0,null,0,-1000,0]
[null,null,null,null,null,null,null,null,null,null,null,null,0,-1000,0,null,0,-1000,0]
[null,null,null,null,null,null,null,null,null,null,null,null,0,{"$f":"IF(M90>0,M90*-1,-1000)","v":-1000},0,null,0,-1000,0]
[null,null,null,null,null,null,null,null,null,null,null,null,0,-1000,0,null,0,-1000,0]
[null,null,null,null,null,null,null,null,null,null,null,null,0,-1000,0,null,0,-1000,0]
[null,null,null,null,null,null,null,null,null,null,null,null,0,-1000,0,null,0,-1000,0]
[null,null,null,null,null,null,null,null,null,null,null,null,0,-1000,0,null,0,-1000,0]
[null,null,null,null,null,null,null,null,null,null,null,null,0,{"$f":"IF(M95>0,M95*-1,-1000)","v":-1000},0,null,0,-1000,0]
[null,null,null,null,null,null,null,null,null,null,null,null,0,-1000,0,null,0,-1000,0]
[null,null,null,null,null,null,null,null,null,null,null,null,0,-1000,0,null,0,-1000,0]
[null,null,null,null,null,null,null,null,null,null,null,null,0,-1000,0,null,0,-1000,0]
[null,null,null,null,null,null,null,null,null,null,null,null,0,-1000,0,null,0,-1000,0]
[null,null,null,null,null,null,null,null,null,null,null,null,0,-1000,0,null,0,-1000,0]
[null,null,null,null,null,null,null,null,null,null,null,null,0,-1000,0,null,0,-1000,0]
[null,null,null,null,null,null,null,null,null,null,null,null,0,-1000,0,null,0,-1000,0]
[null,null,null,null,null,null,null,null,null,null,null,null,0,-1000,0,null,0,-1000,0]
[null,null,null,null,null,null,null,null,null,null,null,null,0,-1000,0,null,0,-1000,0]
[null,null,null,null,null,null,null,null,null,null,null,null,0,-1000,0,null,0,-1000,0]
[null,null,null,null,null,null,null,null,null,null,null,null,0,-1000,0,null,0,-1000,0]
[null,null,null,null,null,null,null,null,null,null,null,null,0,-1000,0,null,0,-1000,0]
[null,null,null,null,null,null,null,null,null,null,null,null,0,-1000,0,null,0,-1000,0]
[null,null,null,null,null,null,null,null,null,null,null,null,0,-1000,0,null,0,-1000,0]
[null,null,null,null,null,null,null,null,null,null,null,null,0,-1000,0,null,0,-1000,0]
[null,null,null,null,null,null,null,null,null,null,null,null,0,-1000,0,null,0,-1000,0]
[null,null,null,null,null,null,null,null,null,null,null,null,0,-1000,0,null,0,-1000,0]
[null,null,null,null,null,null,null,null,null,null,null,null,0,-1000,0,null,0,-1000,0]
[null,null,null,null,null,null,null,null,null,null,null,null,0,-1000,0,null,0,-1000,0]
[null,null,null,null,null,null,null,null,null,null,null,null,0,-1000,0,null,0,-1000,0]
[null,null,null,null,null,null,null,null,null,null,null,null,0,-1000,0,null,0,-1000,0]
[null,null,null,null,null,null,null,null,null,null,null,null,0,-1000,0,null,0,-1000,0]
[null,null,null,null,null,null,null,null,null,null,null,null,0,-1000,0,null,0,-1000,0]
[null,null,null,null,null,null,null,null,null,null,null,null,0,-1000,0,null,0,-1000,0]
[null,null,null,null,null,null,null,null,null,null,null,null,0,-1000,0,null,0,-1000,0]
[null,null,null,null,null,null,null,null,null,null,null,null,0,-1000,0,null,0,-1000,0]
[null,null,null,null,null,null,null,null,null,null,null,null,0,-1000,0,null,0,-1000,0]
[null,null,null,null,null,null,null,null,null,null,null,null,0,-1000,0,null,0,-1000,0]
[null,null,null,null,null,null,null,null,null,null,null,null,0,-1000,0,null,0,-1000,0]
[null,null,null,null,null,null,null,null,null,null,null,null,0,-1000,0,null,0,-1000,0]
[null,null,null,null,null,null,null,null,null,null,null,null,0,-1000,0,null,0,-1000,0]
[null,null,null,null,null,null,null,null,null,null,null,null,0,-1000,0,null,0,-1000,0]
[null,null,null,null,null,null,null,null,null,null,null,null,0,-1000,0,null,0,-1000,0]
[null,null,null,null,null,null,null,null,null,null,null,null,0,-1000,0,null,0,-1000,0]
[null,null,null,null,null,null,null,null,null,null,null,null,0,-1000,0,null,0,-1000,0]
[null,null,null,null,null,null,null,null,null,null,null,null,0,-1000,0,null,0,-1000,0]
[null,null,null,null,null,null,null,null,null,null,null,null,0,-1000,0,null,0,-1000,0]
[null,null,null,null,null,null,null,null,null,null,null,null,0,-1000,0,null,0,-1000,0]
[null,null,null,null,null,null,null,null,null,null,null,null,0,-1000,0,null,0,-1000,0]
[null,null,null,null,null,null,null,null,null,null,null,null,0,-1000,0,null,0,-1000,0]
[null,null,null,null,null,null,null,null,null,null,null,null,0,-1000,0,null,0,-1000,0]
[null,null,null,null,null,null,null,null,null,null,null,null,{"$f":"(G137*$G$4+H137*$H$4+I137*$I$4+J137*$J$4+K137*$K$4+L137*$L$4)","v":0},-1000,{"$f":"IF(M137>0,RANK(N137,N:N),0)","v":0},null,{"$f":"IF((G137*$G$4+H137*$H$4+I137*$I$4+J137*$J$4+K137*$K$4+L137*$L$4)>0,(G137*$G$4+H137*$H$4+I137*$I$4+J137*$J$4+K137*$K$4+L137*$L$4)/(IF(G137>0,1*$G$4,0)+IF(H137>0,1*$H$4,0)+IF(I137>0,1*$I$4,0)+IF(J137>0,1*$J$4,0)+IF(K137>0,1*$K$4,0)+IF(L137>0,1*$L$4,0)),0)","v":0},-1000,{"$f":"IF(Q137>0,RANK(R137,R:R),0)","v":0}]
[null,null,null,null,null,null,null,null,null,null,null,null,0,-1000,0,null,0,-1000,0]
[null,null,null,null,null,null,null,null,null,null,null,null,0,-1000,0,null,0,-1000,0]
[null,null,null,null,null,null,null,null,null,null,null,null,0,-1000,0,null,0,-1000,0]
[null,null,null,null,null,null,null,null,null,null,null,null,0,-1000,0,null,0,-1000,0]
[null,null,null,null,null,null,null,null,null,null,null,null,0,-1000,0,null,0,-1000,0]
[null,null,null,null,null,null,null,null,null,null,null,null,0,-1000,0,null,0,-1000,0]
[null,null,null,null,null,null,null,null,null,null,null,null,0,-1000,0,null,0,-1000,0]
[null,null,null,null,null,null,null,null,null,null,null,null,0,-1000,0,null,0,-1000,0]
[null,null,null,null,null,null,null,null,null,null,null,null,0,-1000,0,null,0,-1000,0]
[null,null,null,null,null,null,null,null,null,null,null,null,0,-1000,0,null,0,-1000,0]
[null,null,null,null,null,null,null,null,null,null,null,null,0,-1000,0,null,0,-1000,0]
[null,null,null,null,null,null,null,null,null,null,null,null,0,-1000,0,null,0,-1000,0]

{"sheet":"EDMOpen","index":9,"n_rows":202,"n_cols":15,"rows_kept":202,"cut":false,"hidden":false,"merged":[]}
["DSKD  69. Deutsche Meisterschaft und 19. Europameisterschaft 2017 Mettingen  ESKD"]
["DM - Endläufe in der DSKD-Open - Klasse"]
[]
[null,null,null,null,null,null,1,1,1,1,1,0,1]
["Bestzeit je Lauf",null,null,null,null,null,{"$f":"MIN(G9:G202)","v":37.43},37.479999999999997,36.99,37.24,0,0,0]
[]
["Start\nNummer","Gruppe","startet","Name","Vorname","Verein","Lauf 1","Lauf 2","Lauf 3","Lauf 4","Lauf 5","Lauf 6","Summe",null,"Platz"]
[]
[505,"Open",null,"Ohla","Thorben","SKK Moselflitzer Klüsserath",37.43,37.479999999999997,37.119999999999997,37.24,null,null,{"$f":"IF($G$4=1,\nIF(H9>1,(ABS(G9-H9)),0)+\nIF(I9>1,(ABS(G9-I9)),0)+\nIF(J9>1,(ABS(G9-J9)),0)+\nIF(K9>1,(ABS(G9-K9)),0)+\nIF(L9>1,(ABS(G9-L9)),0),\n\nIF(I9>1,(ABS(H9-I9)),0)+\nIF(J9>1,(ABS(H9-J9)),0)+\nIF(K9>1,(ABS(H9-K9)),0) )","v":0.54999999999999716},{"$f":"IF(M9>0,M9*-1,-1000)","v":-0.54999999999999716},{"$f":"IF(M9>0,RANK(N9,N:N),0)","v":1}]
[512,"Open",null,"Schmidt","Michael","Friesenflitzer Varel",37.43,37.76,36.99,37.340000000000003,null,null,{"$f":"IF($G$4=1,\nIF(H10>1,(ABS(G10-H10)),0)+\nIF(I10>1,(ABS(G10-I10)),0)+\nIF(J10>1,(ABS(G10-J10)),0)+\nIF(K10>1,(ABS(G10-K10)),0)+\nIF(L10>1,(ABS(G10-L10)),0),\n\nIF(I10>1,(ABS(H10-I10)),0)+\nIF(J10>1,(ABS(H10-J10)),0)+\nIF(K10>1,(ABS(H10-K10)),0) )","v":0.85999999999999233},{"$f":"IF(M10>0,M10*-1,-1000)","v":-0.85999999999999233},{"$f":"IF(M10>0,RANK(N10,N:N),0)","v":2}]
[507,"Open",null,"Hollweck","Laura","MSVg Gerolzhofen",39.4,40.11,39.270000000000003,39.44,null,null,{"$f":"IF($G$4=1,\nIF(H11>1,(ABS(G11-H11)),0)+\nIF(I11>1,(ABS(G11-I11)),0)+\nIF(J11>1,(ABS(G11-J11)),0)+\nIF(K11>1,(ABS(G11-K11)),0)+\nIF(L11>1,(ABS(G11-L11)),0),\n\nIF(I11>1,(ABS(H11-I11)),0)+\nIF(J11>1,(ABS(H11-J11)),0)+\nIF(K11>1,(ABS(H11-K11)),0) )","v":0.87999999999999545},{"$f":"IF(M11>0,M11*-1,-1000)","v":-0.87999999999999545},{"$f":"IF(M11>0,RANK(N11,N:N),0)","v":3}]
[510,"Open",null,"Ricker","Andreas","Berkel Raser Billerbeck",40.79,41.13,40.32,40.659999999999997,null,null,{"$f":"IF($G$4=1,\nIF(H12>1,(ABS(G12-H12)),0)+\nIF(I12>1,(ABS(G12-I12)),0)+\nIF(J12>1,(ABS(G12-J12)),0)+\nIF(K12>1,(ABS(G12-K12)),0)+\nIF(L12>1,(ABS(G12-L12)),0),\n\nIF(I12>1,(ABS(H12-I12)),0)+\nIF(J12>1,(ABS(H12-J12)),0)+\nIF(K12>1,(ABS(H12-K12)),0) )","v":0.94000000000000483},{"$f":"IF(M12>0,M12*-1,-1000)","v":-0.94000000000000483},{"$f":"IF(M12>0,RANK(N12,N:N),0)","v":4}]
[null,null,null,null,null,null,null,null,null,null,null,null,{"$f":"IF($G$4=1,\nIF(H13>1,(ABS(G13-H13)),0)+\nIF(I13>1,(ABS(G13-I13)),0)+\nIF(J13>1,(ABS(G13-J13)),0)+\nIF(K13>1,(ABS(G13-K13)),0)+\nIF(L13>1,(ABS(G13-L13)),0),\n\nIF(I13>1,(ABS(H13-I13)),0)+\nIF(J13>1,(ABS(H13-J13)),0)+\nIF(K13>1,(ABS(H13-K13)),0) )","v":0},{"$f":"IF(M13>0,M13*-1,-1000)","v":-1000},{"$f":"IF(M13>0,RANK(N13,N:N),0)","v":0}]
[null,null,null,null,null,null,null,null,null,null,null,null,0,-1000,0]
[null,null,null,null,null,null,null,null,null,null,null,null,0,-1000,0]
[null,null,null,null,null,null,null,null,null,null,null,null,0,-1000,0]
[null,null,null,null,null,null,null,null,null,null,null,null,0,-1000,0]
[null,null,null,null,null,null,null,null,null,null,null,null,0,-1000,0]
[null,null,null,null,null,null,null,null,null,null,null,null,0,-1000,0]
[null,null,null,null,null,null,null,null,null,null,null,null,0,-1000,0]
[null,null,null,null,null,null,null,null,null,null,null,null,0,-1000,0]
[null,null,null,null,null,null,null,null,null,null,null,null,0,-1000,0]
[null,null,null,null,null,null,null,null,null,null,null,null,0,-1000,0]
[null,null,null,null,null,null,null,null,null,null,null,null,0,-1000,0]
[null,null,null,null,null,null,null,null,null,null,null,null,0,-1000,0]
[null,null,null,null,null,null,null,null,null,null,null,null,0,-1000,0]
[null,null,null,null,null,null,null,null,null,null,null,null,0,-1000,0]
[null,null,null,null,null,null,null,null,null,null,null,null,0,-1000,0]
[null,null,null,null,null,null,null,null,null,null,null,null,0,-1000,0]
[null,null,null,null,null,null,null,null,null,null,null,null,0,-1000,0]
[null,null,null,null,null,null,null,null,null,null,null,null,0,-1000,0]
[null,null,null,null,null,null,null,null,null,null,null,null,0,-1000,0]
[null,null,null,null,null,null,null,null,null,null,null,null,0,-1000,0]
[null,null,null,null,null,null,null,null,null,null,null,null,0,-1000,0]
[null,null,null,null,null,null,null,null,null,null,null,null,0,-1000,0]
[null,null,null,null,null,null,null,null,null,null,null,null,0,-1000,0]
[null,null,null,null,null,null,null,null,null,null,null,null,0,-1000,0]
[null,null,null,null,null,null,null,null,null,null,null,null,0,-1000,0]
[null,null,null,null,null,null,null,null,null,null,null,null,0,-1000,0]
[null,null,null,null,null,null,null,null,null,null,null,null,0,-1000,0]
[null,null,null,null,null,null,null,null,null,null,null,null,0,-1000,0]
[null,null,null,null,null,null,null,null,null,null,null,null,0,-1000,0]
[null,null,null,null,null,null,null,null,null,null,null,null,0,-1000,0]
[null,null,null,null,null,null,null,null,null,null,null,null,0,-1000,0]
[null,null,null,null,null,null,null,null,null,null,null,null,0,-1000,0]
[null,null,null,null,null,null,null,null,null,null,null,null,0,-1000,0]
[null,null,null,null,null,null,null,null,null,null,null,null,0,-1000,0]
[null,null,null,null,null,null,null,null,null,null,null,null,0,-1000,0]
[null,null,null,null,null,null,null,null,null,null,null,null,0,-1000,0]
[null,null,null,null,null,null,null,null,null,null,null,null,0,-1000,0]
[null,null,null,null,null,null,null,null,null,null,null,null,0,-1000,0]
[null,null,null,null,null,null,null,null,null,null,null,null,0,-1000,0]
[null,null,null,null,null,null,null,null,null,null,null,null,0,-1000,0]
[null,null,null,null,null,null,null,null,null,null,null,null,0,-1000,0]
[null,null,null,null,null,null,null,null,null,null,null,null,0,-1000,0]
[null,null,null,null,null,null,null,null,null,null,null,null,0,-1000,0]
[null,null,null,null,null,null,null,null,null,null,null,null,0,-1000,0]
[null,null,null,null,null,null,null,null,null,null,null,null,0,-1000,0]
[null,null,null,null,null,null,null,null,null,null,null,null,0,-1000,0]
[null,null,null,null,null,null,null,null,null,null,null,null,0,-1000,0]
[null,null,null,null,null,null,null,null,null,null,null,null,0,-1000,0]
[null,null,null,null,null,null,null,null,null,null,null,null,0,-1000,0]
[null,null,null,null,null,null,null,null,null,null,null,null,0,-1000,0]
[null,null,null,null,null,null,null,null,null,null,null,null,0,-1000,0]
[null,null,null,null,null,null,null,null,null,null,null,null,0,-1000,0]
[null,null,null,null,null,null,null,null,null,null,null,null,0,-1000,0]
[null,null,null,null,null,null,null,null,null,null,null,null,0,-1000,0]
[null,null,null,null,null,null,null,null,null,null,null,null,0,-1000,0]
[null,null,null,null,null,null,null,null,null,null,null,null,0,-1000,0]
[null,null,null,null,null,null,null,null,null,null,null,null,0,-1000,0]
[null,null,null,null,null,null,null,null,null,null,null,null,0,-1000,0]
[null,null,null,null,null,null,null,null,null,null,null,null,0,-1000,0]
[null,null,null,null,null,null,null,null,null,null,null,null,0,-1000,0]
[null,null,null,null,null,null,null,null,null,null,null,null,0,-1000,0]
[null,null,null,null,null,null,null,null,null,null,null,null,0,-1000,0]
[null,null,null,null,null,null,null,null,null,null,null,null,0,-1000,0]
[null,null,null,null,null,null,null,null,null,null,null,null,{"$f":"IF($G$4=1,\nIF(H77>1,(ABS(G77-H77)),0)+\nIF(I77>1,(ABS(G77-I77)),0)+\nIF(J77>1,(ABS(G77-J77)),0)+\nIF(K77>1,(ABS(G77-K77)),0)+\nIF(L77>1,(ABS(G77-L77)),0),\n\nIF(I77>1,(ABS(H77-I77)),0)+\nIF(J77>1,(ABS(H77-J77)),0)+\nIF(K77>1,(ABS(H77-K77)),0) )","v":0},{"$f":"IF(M77>0,M77*-1,-1000)","v":-1000},{"$f":"IF(M77>0,RANK(N77,N:N),0)","v":0}]
[null,null,null,null,null,null,null,null,null,null,null,null,0,-1000,0]
[null,null,null,null,null,null,null,null,null,null,null,null,0,-1000,0]
[null,null,null,null,null,null,null,null,null,null,null,null,0,-1000,0]
[null,null,null,null,null,null,null,null,null,null,null,null,0,-1000,0]
[null,null,null,null,null,null,null,null,null,null,null,null,0,-1000,0]
[null,null,null,null,null,null,null,null,null,null,null,null,0,-1000,0]
[null,null,null,null,null,null,null,null,null,null,null,null,0,-1000,0]
[null,null,null,null,null,null,null,null,null,null,null,null,0,-1000,0]
[null,null,null,null,null,null,null,null,null,null,null,null,0,-1000,0]
[null,null,null,null,null,null,null,null,null,null,null,null,0,-1000,0]
[null,null,null,null,null,null,null,null,null,null,null,null,0,-1000,0]
[null,null,null,null,null,null,null,null,null,null,null,null,0,-1000,0]
[null,null,null,null,null,null,null,null,null,null,null,null,0,-1000,0]
[null,null,null,null,null,null,null,null,null,null,null,null,0,-1000,0]
[null,null,null,null,null,null,null,null,null,null,null,null,0,-1000,0]
[null,null,null,null,null,null,null,null,null,null,null,null,0,-1000,0]
[null,null,null,null,null,null,null,null,null,null,null,null,0,-1000,0]
[null,null,null,null,null,null,null,null,null,null,null,null,0,-1000,0]
[null,null,null,null,null,null,null,null,null,null,null,null,0,-1000,0]
[null,null,null,null,null,null,null,null,null,null,null,null,0,-1000,0]
[null,null,null,null,null,null,null,null,null,null,null,null,0,-1000,0]
[null,null,null,null,null,null,null,null,null,null,null,null,0,-1000,0]
[null,null,null,null,null,null,null,null,null,null,null,null,0,-1000,0]
[null,null,null,null,null,null,null,null,null,null,null,null,0,-1000,0]
[null,null,null,null,null,null,null,null,null,null,null,null,0,-1000,0]
[null,null,null,null,null,null,null,null,null,null,null,null,0,-1000,0]
[null,null,null,null,null,null,null,null,null,null,null,null,0,-1000,0]
[null,null,null,null,null,null,null,null,null,null,null,null,0,-1000,0]
[null,null,null,null,null,null,null,null,null,null,null,null,0,-1000,0]
[null,null,null,null,null,null,null,null,null,null,null,null,0,-1000,0]
[null,null,null,null,null,null,null,null,null,null,null,null,0,-1000,0]
[null,null,null,null,null,null,null,null,null,null,null,null,0,-1000,0]
[null,null,null,null,null,null,null,null,null,null,null,null,0,-1000,0]
[null,null,null,null,null,null,null,null,null,null,null,null,0,-1000,0]
[null,null,null,null,null,null,null,null,null,null,null,null,0,-1000,0]
[null,null,null,null,null,null,null,null,null,null,null,null,0,-1000,0]
[null,null,null,null,null,null,null,null,null,null,null,null,0,-1000,0]
[null,null,null,null,null,null,null,null,null,null,null,null,0,-1000,0]
[null,null,null,null,null,null,null,null,null,null,null,null,0,-1000,0]
[null,null,null,null,null,null,null,null,null,null,null,null,0,-1000,0]
[null,null,null,null,null,null,null,null,null,null,null,null,0,-1000,0]
[null,null,null,null,null,null,null,null,null,null,null,null,0,-1000,0]
[null,null,null,null,null,null,null,null,null,null,null,null,0,-1000,0]
[null,null,null,null,null,null,null,null,null,null,null,null,0,-1000,0]
[null,null,null,null,null,null,null,null,null,null,null,null,0,-1000,0]
[null,null,null,null,null,null,null,null,null,null,null,null,0,-1000,0]
[null,null,null,null,null,null,null,null,null,null,null,null,0,-1000,0]
[null,null,null,null,null,null,null,null,null,null,null,null,0,-1000,0]
[null,null,null,null,null,null,null,null,null,null,null,null,0,-1000,0]
[null,null,null,null,null,null,null,null,null,null,null,null,0,-1000,0]
[null,null,null,null,null,null,null,null,null,null,null,null,0,-1000,0]
[null,null,null,null,null,null,null,null,null,null,null,null,0,-1000,0]
[null,null,null,null,null,null,null,null,null,null,null,null,0,-1000,0]
[null,null,null,null,null,null,null,null,null,null,null,null,0,-1000,0]
[null,null,null,null,null,null,null,null,null,null,null,null,0,-1000,0]
[null,null,null,null,null,null,null,null,null,null,null,null,0,-1000,0]
[null,null,null,null,null,null,null,null,null,null,null,null,0,-1000,0]
[null,null,null,null,null,null,null,null,null,null,null,null,0,-1000,0]
[null,null,null,null,null,null,null,null,null,null,null,null,0,-1000,0]
[null,null,null,null,null,null,null,null,null,null,null,null,0,-1000,0]
[null,null,null,null,null,null,null,null,null,null,null,null,0,-1000,0]
[null,null,null,null,null,null,null,null,null,null,null,null,0,-1000,0]
[null,null,null,null,null,null,null,null,null,null,null,null,0,-1000,0]
[null,null,null,null,null,null,null,null,null,null,null,null,{"$f":"IF($G$4=1,\nIF(H141>1,(ABS(G141-H141)),0)+\nIF(I141>1,(ABS(G141-I141)),0)+\nIF(J141>1,(ABS(G141-J141)),0)+\nIF(K141>1,(ABS(G141-K141)),0)+\nIF(L141>1,(ABS(G141-L141)),0),\n\nIF(I141>1,(ABS(H141-I141)),0)+\nIF(J141>1,(ABS(H141-J141)),0)+\nIF(K141>1,(ABS(H141-K141)),0) )","v":0},{"$f":"IF(M141>0,M141*-1,-1000)","v":-1000},{"$f":"IF(M141>0,RANK(N141,N:N),0)","v":0}]
[null,null,null,null,null,null,null,null,null,null,null,null,0,-1000,0]
[null,null,null,null,null,null,null,null,null,null,null,null,0,-1000,0]
[null,null,null,null,null,null,null,null,null,null,null,null,0,-1000,0]
[null,null,null,null,null,null,null,null,null,null,null,null,0,-1000,0]
[null,null,null,null,null,null,null,null,null,null,null,null,0,-1000,0]
[null,null,null,null,null,null,null,null,null,null,null,null,0,-1000,0]
[null,null,null,null,null,null,null,null,null,null,null,null,0,-1000,0]
[null,null,null,null,null,null,null,null,null,null,null,null,0,-1000,0]
[null,null,null,null,null,null,null,null,null,null,null,null,0,-1000,0]
[null,null,null,null,null,null,null,null,null,null,null,null,0,-1000,0]
[null,null,null,null,null,null,null,null,null,null,null,null,0,-1000,0]
[null,null,null,null,null,null,null,null,null,null,null,null,0,-1000,0]
[null,null,null,null,null,null,null,null,null,null,null,null,0,-1000,0]
[null,null,null,null,null,null,null,null,null,null,null,null,0,-1000,0]
[null,null,null,null,null,null,null,null,null,null,null,null,0,-1000,0]
[null,null,null,null,null,null,null,null,null,null,null,null,0,-1000,0]
[null,null,null,null,null,null,null,null,null,null,null,null,0,-1000,0]
[null,null,null,null,null,null,null,null,null,null,null,null,0,-1000,0]
[null,null,null,null,null,null,null,null,null,null,null,null,0,-1000,0]
[null,null,null,null,null,null,null,null,null,null,null,null,0,-1000,0]
[null,null,null,null,null,null,null,null,null,null,null,null,0,-1000,0]
[null,null,null,null,null,null,null,null,null,null,null,null,0,-1000,0]
[null,null,null,null,null,null,null,null,null,null,null,null,0,-1000,0]
[null,null,null,null,null,null,null,null,null,null,null,null,0,-1000,0]
[null,null,null,null,null,null,null,null,null,null,null,null,0,-1000,0]
[null,null,null,null,null,null,null,null,null,null,null,null,0,-1000,0]
[null,null,null,null,null,null,null,null,null,null,null,null,0,-1000,0]
[null,null,null,null,null,null,null,null,null,null,null,null,0,-1000,0]
[null,null,null,null,null,null,null,null,null,null,null,null,0,-1000,0]
[null,null,null,null,null,null,null,null,null,null,null,null,0,-1000,0]
[null,null,null,null,null,null,null,null,null,null,null,null,0,-1000,0]
[null,null,null,null,null,null,null,null,null,null,null,null,0,-1000,0]
[null,null,null,null,null,null,null,null,null,null,null,null,0,-1000,0]
[null,null,null,null,null,null,null,null,null,null,null,null,0,-1000,0]
[null,null,null,null,null,null,null,null,null,null,null,null,0,-1000,0]
[null,null,null,null,null,null,null,null,null,null,null,null,0,-1000,0]
[null,null,null,null,null,null,null,null,null,null,null,null,0,-1000,0]
[null,null,null,null,null,null,null,null,null,null,null,null,0,-1000,0]
[null,null,null,null,null,null,null,null,null,null,null,null,0,-1000,0]
[null,null,null,null,null,null,null,null,null,null,null,null,0,-1000,0]
[null,null,null,null,null,null,null,null,null,null,null,null,0,-1000,0]
[null,null,null,null,null,null,null,null,null,null,null,null,0,-1000,0]
[null,null,null,null,null,null,null,null,null,null,null,null,0,-1000,0]
[null,null,null,null,null,null,null,null,null,null,null,null,0,-1000,0]
[null,null,null,null,null,null,null,null,null,null,null,null,0,-1000,0]
[null,null,null,null,null,null,null,null,null,null,null,null,0,-1000,0]
[null,null,null,null,null,null,null,null,null,null,null,null,0,-1000,0]
[null,null,null,null,null,null,null,null,null,null,null,null,0,-1000,0]
[null,null,null,null,null,null,null,null,null,null,null,null,0,-1000,0]
[null,null,null,null,null,null,null,null,null,null,null,null,0,-1000,0]
[null,null,null,null,null,null,null,null,null,null,null,null,0,-1000,0]
[null,null,null,null,null,null,null,null,null,null,null,null,0,-1000,0]
[null,null,null,null,null,null,null,null,null,null,null,null,0,-1000,0]
[null,null,null,null,null,null,null,null,null,null,null,null,0,-1000,0]
[null,null,null,null,null,null,null,null,null,null,null,null,0,-1000,0]
[null,null,null,null,null,null,null,null,null,null,null,null,0,-1000,0]
[null,null,null,null,null,null,null,null,null,null,null,null,0,-1000,0]
[null,null,null,null,null,null,null,null,null,null,null,null,0,-1000,0]
[null,null,null,null,null,null,null,null,null,null,null,null,0,-1000,0]
[null,null,null,null,null,null,null,null,null,null,null,null,0,-1000,0]
[null,null,null,null,null,null,null,null,null,null,null,null,0,-1000,0]

{"sheet":"EEM-JUN","index":10,"n_rows":149,"n_cols":19,"rows_kept":149,"cut":false,"hidden":false,"merged":[[6,16,6,17]]}
["DSKD  69. Deutsche Meisterschaft und 19. Europameisterschaft 2017 Mettingen  ESKD"]
["EM - Endläufe in der JUNIOR - Klasse"]
[null,null,null,null,null,null,null,null,null,null,null,null,null,null,null,null,null,null,"Bestzeit"]
["Wird der Lauf gewertet?   dann 0 oder 1 eintragen",null,null,null,null,null,0,1,1,1,1,1,null,null,null,null,null,null,"in Vorläufen"]
[null,null,null,null,"Bestzeit je Lauf",null,{"$f":"MIN(G9:G149)","v":38.229999999999997},38.21,38.450000000000003,0,0,0,null,null,null,null,null,null,{"$f":"MIN((IF(G4=1,G5,99)),        (IF(H4=1,H5,99)),   (IF(I4=1,I5,99)),  (IF(J4=1,J5,99)), (IF(K4=1,K5,99)),  (IF(L4=1,L5,99))       )","v":0}]
[null,null,null,null,"Mittelwert je Lauf",null,{"$f":"IF(G5>0,AVERAGE(G9:G149),0)","v":38.437142857142859},38.515714285714289,38.646428571428579,0,0,0]
["Start\nNummer","Gruppe","startet","Name","Vorname","Verein","Lauf 1","Lauf 2","Lauf 3","Lauf 4","Lauf 5","Lauf 6","Summe der gewerteten Läufe",null,"Platz",null,"Mittelwert",null,"Platz"]
[]
[127,"JUN",null,"Schleuß","Melina","Power Crew Berlin",38.31,38.21,38.54,null,null,null,{"$f":"(G9*$G$4+H9*$H$4+I9*$I$4+J9*$J$4+K9*$K$4+L9*$L$4)","v":76.75},{"$f":"IF(M9>0,M9*-1,-1000)","v":-76.75},{"$f":"IF(M9>0,RANK(N9,N:N),0)","v":1},null,{"$f":"IF((G9*$G$4+H9*$H$4+I9*$I$4+J9*$J$4+K9*$K$4+L9*$L$4)>0,(G9*$G$4+H9*$H$4+I9*$I$4+J9*$J$4+K9*$K$4+L9*$L$4)/(IF(G9>0,1*$G$4,0)+IF(H9>0,1*$H$4,0)+IF(I9>0,1*$I$4,0)+IF(J9>0,1*$J$4,0)+IF(K9>0,1*$K$4,0)+IF(L9>0,1*$L$4,0)),0)","v":38.375},{"$f":"IF(Q9>0,Q9*-1,-1000)","v":-38.375},{"$f":"IF(Q9>0,RANK(R9,R:R),0)","v":1}]
[113,"JUN",null,"Paschedag","Mia","Seifenkistengruppe Stromberg",38.26,38.39,38.450000000000003,null,null,null,76.84,-76.84,2,null,38.42,-38.42,2]
[112,"JUN",null,"Klein","Mika","SKK Moselflitzer Klüsserath",38.229999999999997,38.450000000000003,38.549999999999997,null,null,null,77,-77,5,null,38.5,-38.5,5]
[121,"JUN",null,"Plath","Marvin","Jugendclub Mettinger SK-Derby",38.35,38.42,38.549999999999997,null,null,null,76.97,-76.97,3,null,38.484999999999999,-38.484999999999999,3]
[120,"JUN",null,"Reinstein","Carlos","MSVg Gerolzhofen",38.36,38.42,38.6,null,null,null,77.02000000000001,-77.02000000000001,6,null,38.510000000000005,-38.510000000000005,6]
[114,"JUN",null,"Lampe","Ida","Jugendclub Mettinger SK-Derby",38.31,38.479999999999997,38.58,null,null,null,77.06,-77.06,7,null,38.53,-38.53,7]
[119,"JUN",null,"Brandt","Jana","MSVg Gerolzhofen",38.43,38.380000000000003,38.74,null,null,null,77.12,-77.12,9,null,38.56,-38.56,9]
[124,"JUN",null,"Meyhoff","Moritz","Jugendclub Mettinger SK-Derby",38.369999999999997,38.46,38.64,null,null,null,77.099999999999994,-77.099999999999994,8,null,38.549999999999997,-38.549999999999997,8]
[105,"JUN",null,"Marunde","Timéo","Frankreich",38.299999999999997,38.56,38.590000000000003,null,null,null,77.150000000000006,-77.150000000000006,10,null,38.575000000000003,-38.575000000000003,10]
[106,"JUN",null,"Klimpel","Beatrice","Power Crew Berlin",38.450000000000003,38.5,38.49,null,null,null,76.990000000000009,-76.990000000000009,4,null,38.495000000000005,-38.495000000000005,4]
[117,"JUN",null,"Salewski","Ben","SKK Moselflitzer Klüsserath",38.4,38.67,38.64,null,null,null,77.31,-77.31,12,null,38.655000000000001,-38.655000000000001,12]
[null,"JUN",null,"Zaruba","Max","Jugendclub Mettinger SK-Derby",null,null,null,null,null,null,0,-1000,0,null,0,-1000,0]
[109,"JUN",null,"Kapraun","Tim","Roadrunners Dreieich",38.619999999999997,38.68,38.54,null,null,null,77.22,-77.22,11,null,38.61,-38.61,11]
[128,"JUN",null,"Hieb","Fynn","Familiennetzwerk Hanau",38.89,38.770000000000003,39.01,null,null,null,77.78,-77.78,13,null,38.89,-38.89,13]
[129,"JUN",null,"Nicolescu","Theodor","Rumänien",38.840000000000003,38.83,39.130000000000003,null,null,null,77.960000000000008,-77.960000000000008,14,null,38.980000000000004,-38.980000000000004,14]
[null,null,null,null,null,null,null,null,null,null,null,null,0,-1000,0,null,0,-1000,0]
[null,null,null,null,null,null,null,null,null,null,null,null,0,-1000,0,null,0,-1000,0]
[null,null,null,null,null,null,null,null,null,null,null,null,0,-1000,0,null,0,-1000,0]
[null,null,null,null,null,null,null,null,null,null,null,null,0,-1000,0,null,0,-1000,0]
[null,null,null,null,null,null,null,null,null,null,null,null,0,-1000,0,null,0,-1000,0]
[null,null,null,null,null,null,null,null,null,null,null,null,0,-1000,0,null,0,-1000,0]
[null,null,null,null,null,null,null,null,null,null,null,null,0,-1000,0,null,0,-1000,0]
[null,null,null,null,null,null,null,null,null,null,null,null,0,-1000,0,null,0,-1000,0]
[null,null,null,null,null,null,null,null,null,null,null,null,0,-1000,0,null,0,-1000,0]
[null,null,null,null,null,null,null,null,null,null,null,null,0,-1000,0,null,0,-1000,0]
[null,null,null,null,null,null,null,null,null,null,null,null,0,-1000,0,null,0,-1000,0]
[null,null,null,null,null,null,null,null,null,null,null,null,0,-1000,0,null,0,-1000,0]
[null,null,null,null,null,null,null,null,null,null,null,null,0,-1000,0,null,0,-1000,0]
[null,null,null,null,null,null,null,null,null,null,null,null,0,-1000,0,null,0,-1000,0]
[null,null,null,null,null,null,null,null,null,null,null,null,0,-1000,0,null,0,-1000,0]
[null,null,null,null,null,null,null,null,null,null,null,null,0,-1000,0,null,0,-1000,0]
[null,null,null,null,null,null,null,null,null,null,null,null,0,-1000,0,null,0,-1000,0]
[null,null,null,null,null,null,null,null,null,null,null,null,0,-1000,0,null,0,-1000,0]
[null,null,null,null,null,null,null,null,null,null,null,null,0,-1000,0,null,0,-1000,0]
[null,null,null,null,null,null,null,null,null,null,null,null,0,-1000,0,null,0,-1000,0]
[null,null,null,null,null,null,null,null,null,null,null,null,0,-1000,0,null,0,-1000,0]
[null,null,null,null,null,null,null,null,null,null,null,null,0,-1000,0,null,0,-1000,0]
[null,null,null,null,null,null,null,null,null,null,null,null,0,-1000,0,null,0,-1000,0]
[null,null,null,null,null,null,null,null,null,null,null,null,0,-1000,0,null,0,-1000,0]
[null,null,null,null,null,null,null,null,null,null,null,null,0,-1000,0,null,0,-1000,0]
[null,null,null,null,null,null,null,null,null,null,null,null,0,-1000,0,null,0,-1000,0]
[null,null,null,null,null,null,null,null,null,null,null,null,0,-1000,0,null,0,-1000,0]
[null,null,null,null,null,null,null,null,null,null,null,null,0,-1000,0,null,0,-1000,0]
[null,null,null,null,null,null,null,null,null,null,null,null,0,-1000,0,null,0,-1000,0]
[null,null,null,null,null,null,null,null,null,null,null,null,0,-1000,0,null,0,-1000,0]
[null,null,null,null,null,null,null,null,null,null,null,null,0,-1000,0,null,0,-1000,0]
[null,null,null,null,null,null,null,null,null,null,null,null,0,-1000,0,null,0,-1000,0]
[null,null,null,null,null,null,null,null,null,null,null,null,0,-1000,0,null,0,-1000,0]
[null,null,null,null,null,null,null,null,null,null,null,null,0,-1000,0,null,0,-1000,0]
[null,null,null,null,null,null,null,null,null,null,null,null,0,-1000,0,null,0,-1000,0]
[null,null,null,null,null,null,null,null,null,null,null,null,0,-1000,0,null,0,-1000,0]
[null,null,null,null,null,null,null,null,null,null,null,null,0,-1000,0,null,0,-1000,0]
[null,null,null,null,null,null,null,null,null,null,null,null,0,-1000,0,null,0,-1000,0]
[null,null,null,null,null,null,null,null,null,null,null,null,0,-1000,0,null,0,-1000,0]
[null,null,null,null,null,null,null,null,null,null,null,null,0,-1000,0,null,0,-1000,0]
[null,null,null,null,null,null,null,null,null,null,null,null,0,-1000,0,null,0,-1000,0]
[null,null,null,null,null,null,null,null,null,null,null,null,0,-1000,0,null,0,-1000,0]
[null,null,null,null,null,null,null,null,null,null,null,null,0,-1000,0,null,0,-1000,0]
[null,null,null,null,null,null,null,null,null,null,null,null,0,-1000,0,null,0,-1000,0]
[null,null,null,null,null,null,null,null,null,null,null,null,0,-1000,0,null,0,-1000,0]
[null,null,null,null,null,null,null,null,null,null,null,null,0,-1000,0,null,0,-1000,0]
[null,null,null,null,null,null,null,null,null,null,null,null,0,-1000,0,null,0,-1000,0]
[null,null,null,null,null,null,null,null,null,null,null,null,0,-1000,0,null,0,-1000,0]
[null,null,null,null,null,null,null,null,null,null,null,null,0,-1000,0,null,0,-1000,0]
[null,null,null,null,null,null,null,null,null,null,null,null,{"$f":"(G73*$G$4+H73*$H$4+I73*$I$4+J73*$J$4+K73*$K$4+L73*$L$4)","v":0},{"$f":"IF(M73>0,M73*-1,-1000)","v":-1000},{"$f":"IF(M73>0,RANK(N73,N:N),0)","v":0},null,{"$f":"IF((G73*$G$4+H73*$H$4+I73*$I$4+J73*$J$4+K73*$K$4+L73*$L$4)>0,(G73*$G$4+H73*$H$4+I73*$I$4+J73*$J$4+K73*$K$4+L73*$L$4)/(IF(G73>0,1*$G$4,0)+IF(H73>0,1*$H$4,0)+IF(I73>0,1*$I$4,0)+IF(J73>0,1*$J$4,0)+IF(K73>0,1*$K$4,0)+IF(L73>0,1*$L$4,0)),0)","v":0},{"$f":"IF(Q73>0,Q73*-1,-1000)","v":-1000},{"$f":"IF(Q73>0,RANK(R73,R:R),0)","v":0}]
[null,null,null,null,null,null,null,null,null,null,null,null,0,-1000,0,null,0,-1000,0]
[null,null,null,null,null,null,null,null,null,null,null,null,0,-1000,0,null,0,-1000,0]
[null,null,null,null,null,null,null,null,null,null,null,null,0,-1000,0,null,0,-1000,0]
[null,null,null,null,null,null,null,null,null,null,null,null,0,-1000,0,null,0,-1000,0]
[null,null,null,null,null,null,null,null,null,null,null,null,0,-1000,0,null,0,-1000,0]
[null,null,null,null,null,null,null,null,null,null,null,null,0,-1000,0,null,0,-1000,0]
[null,null,null,null,null,null,null,null,null,null,null,null,0,-1000,0,null,0,-1000,0]
[null,null,null,null,null,null,null,null,null,null,null,null,0,-1000,0,null,0,-1000,0]
[null,null,null,null,null,null,null,null,null,null,null,null,0,-1000,0,null,0,-1000,0]
[null,null,null,null,null,null,null,null,null,null,null,null,0,-1000,0,null,0,-1000,0]
[null,null,null,null,null,null,null,null,null,null,null,null,0,-1000,0,null,0,-1000,0]
[null,null,null,null,null,null,null,null,null,null,null,null,0,-1000,0,null,0,-1000,0]
[null,null,null,null,null,null,null,null,null,null,null,null,0,-1000,0,null,0,-1000,0]
[null,null,null,null,null,null,null,null,null,null,null,null,0,-1000,0,null,0,-1000,0]
[null,null,null,null,null,null,null,null,null,null,null,null,0,-1000,0,null,0,-1000,0]
[null,null,null,null,null,null,null,null,null,null,null,null,0,-1000,0,null,0,-1000,0]
[null,null,null,null,null,null,null,null,null,null,null,null,0,-1000,0,null,0,-1000,0]
[null,null,null,null,null,null,null,null,null,null,null,null,0,-1000,0,null,0,-1000,0]
[null,null,null,null,null,null,null,null,null,null,null,null,0,-1000,0,null,0,-1000,0]
[null,null,null,null,null,null,null,null,null,null,null,null,0,-1000,0,null,0,-1000,0]
[null,null,null,null,null,null,null,null,null,null,null,null,0,-1000,0,null,0,-1000,0]
[null,null,null,null,null,null,null,null,null,null,null,null,0,-1000,0,null,0,-1000,0]
[null,null,null,null,null,null,null,null,null,null,null,null,0,-1000,0,null,0,-1000,0]
[null,null,null,null,null,null,null,null,null,null,null,null,0,-1000,0,null,0,-1000,0]
[null,null,null,null,null,null,null,null,null,null,null,null,0,-1000,0,null,0,-1000,0]
[null,null,null,null,null,null,null,null,null,null,null,null,0,-1000,0,null,0,-1000,0]
[null,null,null,null,null,null,null,null,null,null,null,null,0,-1000,0,null,0,-1000,0]
[null,null,null,null,null,null,null,null,null,null,null,null,0,-1000,0,null,0,-1000,0]
[null,null,null,null,null,null,null,null,null,null,null,null,0,-1000,0,null,0,-1000,0]
[null,null,null,null,null,null,null,null,null,null,null,null,0,-1000,0,null,0,-1000,0]
[null,null,null,null,null,null,null,null,null,null,null,null,0,-1000,0,null,0,-1000,0]
[null,null,null,null,null,null,null,null,null,null,null,null,0,-1000,0,null,0,-1000,0]
[null,null,null,null,null,null,null,null,null,null,null,null,0,-1000,0,null,0,-1000,0]
[null,null,null,null,null,null,null,null,null,null,null,null,0,-1000,0,null,0,-1000,0]
[null,null,null,null,null,null,null,null,null,null,null,null,0,-1000,0,null,0,-1000,0]
[null,null,null,null,null,null,null,null,null,null,null,null,0,-1000,0,null,0,-1000,0]
[null,null,null,null,null,null,null,null,null,null,null,null,0,-1000,0,null,0,-1000,0]
[null,null,null,null,null,null,null,null,null,null,null,null,0,-1000,0,null,0,-1000,0]
[null,null,null,null,null,null,null,null,null,null,null,null,0,-1000,0,null,0,-1000,0]
[null,null,null,null,null,null,null,null,null,null,null,null,0,-1000,0,null,0,-1000,0]
[null,null,null,null,null,null,null,null,null,null,null,null,0,-1000,0,null,0,-1000,0]
[null,null,null,null,null,null,null,null,null,null,null,null,0,-1000,0,null,0,-1000,0]
[null,null,null,null,null,null,null,null,null,null,null,null,0,-1000,0,null,0,-1000,0]
[null,null,null,null,null,null,null,null,null,null,null,null,0,-1000,0,null,0,-1000,0]
[null,null,null,null,null,null,null,null,null,null,null,null,0,-1000,0,null,0,-1000,0]
[null,null,null,null,null,null,null,null,null,null,null,null,0,-1000,0,null,0,-1000,0]
[null,null,null,null,null,null,null,null,null,null,null,null,0,-1000,0,null,0,-1000,0]
[null,null,null,null,null,null,null,null,null,null,null,null,0,-1000,0,null,0,-1000,0]
[null,null,null,null,null,null,null,null,null,null,null,null,0,-1000,0,null,0,-1000,0]
[null,null,null,null,null,null,null,null,null,null,null,null,0,-1000,0,null,0,-1000,0]
[null,null,null,null,null,null,null,null,null,null,null,null,0,-1000,0,null,0,-1000,0]
[null,null,null,null,null,null,null,null,null,null,null,null,0,-1000,0,null,0,-1000,0]
[null,null,null,null,null,null,null,null,null,null,null,null,0,-1000,0,null,0,-1000,0]
[null,null,null,null,null,null,null,null,null,null,null,null,0,-1000,0,null,0,-1000,0]
[null,null,null,null,null,null,null,null,null,null,null,null,0,-1000,0,null,0,-1000,0]
[null,null,null,null,null,null,null,null,null,null,null,null,0,-1000,0,null,0,-1000,0]
[null,null,null,null,null,null,null,null,null,null,null,null,0,-1000,0,null,0,-1000,0]
[null,null,null,null,null,null,null,null,null,null,null,null,0,-1000,0,null,0,-1000,0]
[null,null,null,null,null,null,null,null,null,null,null,null,0,-1000,0,null,0,-1000,0]
[null,null,null,null,null,null,null,null,null,null,null,null,0,-1000,0,null,0,-1000,0]
[null,null,null,null,null,null,null,null,null,null,null,null,0,-1000,0,null,0,-1000,0]
[null,null,null,null,null,null,null,null,null,null,null,null,0,-1000,0,null,0,-1000,0]
[null,null,null,null,null,null,null,null,null,null,null,null,0,-1000,0,null,0,-1000,0]
[null,null,null,null,null,null,null,null,null,null,null,null,{"$f":"(G137*$G$4+H137*$H$4+I137*$I$4+J137*$J$4+K137*$K$4+L137*$L$4)","v":0},{"$f":"IF(M137>0,M137*-1,-1000)","v":-1000},{"$f":"IF(M137>0,RANK(N137,N:N),0)","v":0},null,{"$f":"IF((G137*$G$4+H137*$H$4+I137*$I$4+J137*$J$4+K137*$K$4+L137*$L$4)>0,(G137*$G$4+H137*$H$4+I137*$I$4+J137*$J$4+K137*$K$4+L137*$L$4)/(IF(G137>0,1*$G$4,0)+IF(H137>0,1*$H$4,0)+IF(I137>0,1*$I$4,0)+IF(J137>0,1*$J$4,0)+IF(K137>0,1*$K$4,0)+IF(L137>0,1*$L$4,0)),0)","v":0},{"$f":"IF(Q137>0,Q137*-1,-1000)","v":-1000},{"$f":"IF(Q137>0,RANK(R137,R:R),0)","v":0}]
[null,null,null,null,null,null,null,null,null,null,null,null,0,-1000,0,null,0,-1000,0]
[null,null,null,null,null,null,null,null,null,null,null,null,0,-1000,0,null,0,-1000,0]
[null,null,null,null,null,null,null,null,null,null,null,null,0,-1000,0,null,0,-1000,0]
[null,null,null,null,null,null,null,null,null,null,null,null,0,-1000,0,null,0,-1000,0]
[null,null,null,null,null,null,null,null,null,null,null,null,0,-1000,0,null,0,-1000,0]
[null,null,null,null,null,null,null,null,null,null,null,null,0,-1000,0,null,0,-1000,0]
[null,null,null,null,null,null,null,null,null,null,null,null,0,-1000,0,null,0,-1000,0]
[null,null,null,null,null,null,null,null,null,null,null,null,0,-1000,0,null,0,-1000,0]
[null,null,null,null,null,null,null,null,null,null,null,null,0,-1000,0,null,0,-1000,0]
[null,null,null,null,null,null,null,null,null,null,null,null,0,-1000,0,null,0,-1000,0]
[null,null,null,null,null,null,null,null,null,null,null,null,0,-1000,0,null,0,-1000,0]
[null,null,null,null,null,null,null,null,null,null,null,null,0,-1000,0,null,0,-1000,0]

{"sheet":"EEM-SEN","index":11,"n_rows":149,"n_cols":19,"rows_kept":149,"cut":false,"hidden":false,"merged":[[6,16,6,17]]}
["DSKD  69. Deutsche Meisterschaft und 19. Europameisterschaft 2017 Mettingen  ESKD"]
["EM - Endläufe in der SENIOR - Klasse"]
[null,null,null,null,null,null,null,null,null,null,null,null,null,null,null,null,null,null,"Bestzeit"]
["Wird der Lauf gewertet?   dann 0 oder 1 eintragen",null,null,null,null,null,1,1,1,1,1,0,null,null,null,null,null,null,"in Vorläufen"]
[null,null,null,null,"Bestzeit je Lauf",null,{"$f":"MIN(G9:G149)","v":36.71},36.76,0,0,0,100,null,null,null,null,null,null,{"$f":"MIN((IF(G4=1,G5,99)),        (IF(H4=1,H5,99)),   (IF(I4=1,I5,99)),  (IF(J4=1,J5,99)), (IF(K4=1,K5,99)),  (IF(L4=1,L5,99))       )","v":0}]
[null,null,null,null,"Mittelwert je Lauf",null,{"$f":"IF(G5>0,AVERAGE(G9:G149),0)","v":37.003333333333337},37.047499999999999,0,0,0,100]
["Start\nNummer","Gruppe","startet","Name","Vorname","Verein","Lauf 1","Lauf 2","Lauf 3","Lauf 4","Lauf 5","Lauf 6","Summe der gewerteten Läufe",null,"Platz",null,"Mittelwert",null,"Platz"]
[]
[407,"SEN",null,"Meyer","Henry","Jugendclub Mettinger SK-Derby",36.71,36.79,null,null,null,null,{"$f":"(G9*$G$4+H9*$H$4+I9*$I$4+J9*$J$4+K9*$K$4+L9*$L$4)","v":73.5},{"$f":"IF(M9>0,M9*-1,-1000)","v":-73.5},{"$f":"IF(M9>0,RANK(N9,N:N),0)","v":1},null,{"$f":"IF((G9*$G$4+H9*$H$4+I9*$I$4+J9*$J$4+K9*$K$4+L9*$L$4)>0,(G9*$G$4+H9*$H$4+I9*$I$4+J9*$J$4+K9*$K$4+L9*$L$4)/(IF(G9>0,1*$G$4,0)+IF(H9>0,1*$H$4,0)+IF(I9>0,1*$I$4,0)+IF(J9>0,1*$J$4,0)+IF(K9>0,1*$K$4,0)+IF(L9>0,1*$L$4,0)),0)","v":36.75},{"$f":"IF(Q9>0,Q9*-1,-1000)","v":-36.75},{"$f":"IF(Q9>0,RANK(R9,R:R),0)","v":1}]
[415,"SEN",null,"Freudenstein ","Rieke","Jugendclub Mettinger SK-Derby",36.840000000000003,36.76,null,null,null,null,73.599999999999994,-73.599999999999994,2,null,36.799999999999997,-36.799999999999997,2]
[420,"SEN",null,"Schrüfer","Stella","Seifenkistenfreunde Nürnberg",36.76,36.93,null,null,null,null,73.69,-73.69,3,null,36.844999999999999,-36.844999999999999,3]
[410,"SEN",null,"Hoebertz","Max Ole","Power Crew Berlin",36.89,36.840000000000003,null,null,null,null,73.73,-73.73,4,null,36.865000000000002,-36.865000000000002,4]
[404,"SEN",null,"Lampe","Pia","Jugendclub Mettinger SK-Derby",36.869999999999997,37.11,null,null,null,null,73.97999999999999,-73.97999999999999,5,null,36.989999999999995,-36.989999999999995,5]
[409,"SEN",null,"Reinstein","Marie","MSVg Gerolzhofen",36.99,37.049999999999997,null,null,null,null,74.039999999999992,-74.039999999999992,6,null,37.019999999999996,-37.019999999999996,6]
[416,"SEN",null,"Klimpel","Benedikt","SK-Verband Baden-Württemberg",37.1,37.07,null,null,null,null,74.17,-74.17,7,null,37.085000000000001,-37.085000000000001,7]
[412,"SEN",null,"Salewski","Lena","SKK Moselflitzer Klüsserath",37.07,37.130000000000003,null,null,null,null,74.2,-74.2,8,null,37.1,-37.1,8]
[417,"SEN",null,"Krebs","Luca","Roadrunners Dreieich",37.07,37.159999999999997,null,null,null,null,74.22999999999999,-74.22999999999999,9,null,37.114999999999995,-37.114999999999995,9]
[424,"SEN",null,"Brandelik","Wiebke","SK-Verband Baden-Württemberg",37.11,37.15,null,null,null,null,74.259999999999991,-74.259999999999991,10,null,37.129999999999995,-37.129999999999995,10]
[418,"SEN",null,"Reuscher","Silas","Joker-Team Berlin",37.29,37.14,null,null,null,null,74.430000000000007,-74.430000000000007,11,null,37.215000000000003,-37.215000000000003,11]
[414,"SEN",null,"Adam","Alexander","Familiennetzwerk Hanau",37.340000000000003,37.44,null,null,null,null,74.78,-74.78,12,null,37.39,-37.39,12]
[423,"SEN",null,"Gößling","Jule","Jugendclub Mettinger SK-Derby",null,null,null,null,null,100,0,-1000,0,null,0,-1000,0]
[null,null,null,null,null,null,null,null,null,null,null,null,0,-1000,0,null,0,-1000,0]
[null,null,null,null,null,null,null,null,null,null,null,null,0,-1000,0,null,0,-1000,0]
[null,null,null,null,null,null,null,null,null,null,null,null,0,-1000,0,null,0,-1000,0]
[null,null,null,null,null,null,null,null,null,null,null,null,0,-1000,0,null,0,-1000,0]
[null,null,null,null,null,null,null,null,null,null,null,null,0,-1000,0,null,0,-1000,0]
[null,null,null,null,null,null,null,null,null,null,null,null,0,-1000,0,null,0,-1000,0]
[null,null,null,null,null,null,null,null,null,null,null,null,0,-1000,0,null,0,-1000,0]
[null,null,null,null,null,null,null,null,null,null,null,null,0,-1000,0,null,0,-1000,0]
[null,null,null,null,null,null,null,null,null,null,null,null,0,-1000,0,null,0,-1000,0]
[null,null,null,null,null,null,null,null,null,null,null,null,0,-1000,0,null,0,-1000,0]
[null,null,null,null,null,null,null,null,null,null,null,null,0,-1000,0,null,0,-1000,0]
[null,null,null,null,null,null,null,null,null,null,null,null,0,-1000,0,null,0,-1000,0]
[null,null,null,null,null,null,null,null,null,null,null,null,0,-1000,0,null,0,-1000,0]
[null,null,null,null,null,null,null,null,null,null,null,null,0,-1000,0,null,0,-1000,0]
[null,null,null,null,null,null,null,null,null,null,null,null,0,-1000,0,null,0,-1000,0]
[null,null,null,null,null,null,null,null,null,null,null,null,0,-1000,0,null,0,-1000,0]
[null,null,null,null,null,null,null,null,null,null,null,null,0,-1000,0,null,0,-1000,0]
[null,null,null,null,null,null,null,null,null,null,null,null,0,-1000,0,null,0,-1000,0]
[null,null,null,null,null,null,null,null,null,null,null,null,0,-1000,0,null,0,-1000,0]
[null,null,null,null,null,null,null,null,null,null,null,null,0,-1000,0,null,0,-1000,0]
[null,null,null,null,null,null,null,null,null,null,null,null,0,-1000,0,null,0,-1000,0]
[null,null,null,null,null,null,null,null,null,null,null,null,0,-1000,0,null,0,-1000,0]
[null,null,null,null,null,null,null,null,null,null,null,null,0,-1000,0,null,0,-1000,0]
[null,null,null,null,null,null,null,null,null,null,null,null,0,-1000,0,null,0,-1000,0]
[null,null,null,null,null,null,null,null,null,null,null,null,0,-1000,0,null,0,-1000,0]
[null,null,null,null,null,null,null,null,null,null,null,null,0,-1000,0,null,0,-1000,0]
[null,null,null,null,null,null,null,null,null,null,null,null,0,-1000,0,null,0,-1000,0]
[null,null,null,null,null,null,null,null,null,null,null,null,0,-1000,0,null,0,-1000,0]
[null,null,null,null,null,null,null,null,null,null,null,null,0,-1000,0,null,0,-1000,0]
[null,null,null,null,null,null,null,null,null,null,null,null,0,-1000,0,null,0,-1000,0]
[null,null,null,null,null,null,null,null,null,null,null,null,0,-1000,0,null,0,-1000,0]
[null,null,null,null,null,null,null,null,null,null,null,null,0,-1000,0,null,0,-1000,0]
[null,null,null,null,null,null,null,null,null,null,null,null,0,-1000,0,null,0,-1000,0]
[null,null,null,null,null,null,null,null,null,null,null,null,0,-1000,0,null,0,-1000,0]
[null,null,null,null,null,null,null,null,null,null,null,null,0,-1000,0,null,0,-1000,0]
[null,null,null,null,null,null,null,null,null,null,null,null,0,-1000,0,null,0,-1000,0]
[null,null,null,null,null,null,null,null,null,null,null,null,0,-1000,0,null,0,-1000,0]
[null,null,null,null,null,null,null,null,null,null,null,null,0,-1000,0,null,0,-1000,0]
[null,null,null,null,null,null,null,null,null,null,null,null,0,-1000,0,null,0,-1000,0]
[null,null,null,null,null,null,null,null,null,null,null,null,0,-1000,0,null,0,-1000,0]
[null,null,null,null,null,null,null,null,null,null,null,null,0,-1000,0,null,0,-1000,0]
[null,null,null,null,null,null,null,null,null,null,null,null,0,-1000,0,null,0,-1000,0]
[null,null,null,null,null,null,null,null,null,null,null,null,0,-1000,0,null,0,-1000,0]
[null,null,null,null,null,null,null,null,null,null,null,null,0,-1000,0,null,0,-1000,0]
[null,null,null,null,null,null,null,null,null,null,null,null,0,-1000,0,null,0,-1000,0]
[null,null,null,null,null,null,null,null,null,null,null,null,0,-1000,0,null,0,-1000,0]
[null,null,null,null,null,null,null,null,null,null,null,null,0,-1000,0,null,0,-1000,0]
[null,null,null,null,null,null,null,null,null,null,null,null,0,-1000,0,null,0,-1000,0]
[null,null,null,null,null,null,null,null,null,null,null,null,0,-1000,0,null,0,-1000,0]
[null,null,null,null,null,null,null,null,null,null,null,null,0,-1000,0,null,0,-1000,0]
[null,null,null,null,null,null,null,null,null,null,null,null,0,-1000,0,null,0,-1000,0]
[null,null,null,null,null,null,null,null,null,null,null,null,{"$f":"(G73*$G$4+H73*$H$4+I73*$I$4+J73*$J$4+K73*$K$4+L73*$L$4)","v":0},{"$f":"IF(M73>0,M73*-1,-1000)","v":-1000},{"$f":"IF(M73>0,RANK(N73,N:N),0)","v":0},null,{"$f":"IF((G73*$G$4+H73*$H$4+I73*$I$4+J73*$J$4+K73*$K$4+L73*$L$4)>0,(G73*$G$4+H73*$H$4+I73*$I$4+J73*$J$4+K73*$K$4+L73*$L$4)/(IF(G73>0,1*$G$4,0)+IF(H73>0,1*$H$4,0)+IF(I73>0,1*$I$4,0)+IF(J73>0,1*$J$4,0)+IF(K73>0,1*$K$4,0)+IF(L73>0,1*$L$4,0)),0)","v":0},{"$f":"IF(Q73>0,Q73*-1,-1000)","v":-1000},{"$f":"IF(Q73>0,RANK(R73,R:R),0)","v":0}]
[null,null,null,null,null,null,null,null,null,null,null,null,0,-1000,0,null,0,-1000,0]
[null,null,null,null,null,null,null,null,null,null,null,null,0,-1000,0,null,0,-1000,0]
[null,null,null,null,null,null,null,null,null,null,null,null,0,-1000,0,null,0,-1000,0]
[null,null,null,null,null,null,null,null,null,null,null,null,0,-1000,0,null,0,-1000,0]
[null,null,null,null,null,null,null,null,null,null,null,null,0,-1000,0,null,0,-1000,0]
[null,null,null,null,null,null,null,null,null,null,null,null,0,-1000,0,null,0,-1000,0]
[null,null,null,null,null,null,null,null,null,null,null,null,0,-1000,0,null,0,-1000,0]
[null,null,null,null,null,null,null,null,null,null,null,null,0,-1000,0,null,0,-1000,0]
[null,null,null,null,null,null,null,null,null,null,null,null,0,-1000,0,null,0,-1000,0]
[null,null,null,null,null,null,null,null,null,null,null,null,0,-1000,0,null,0,-1000,0]
[null,null,null,null,null,null,null,null,null,null,null,null,0,-1000,0,null,0,-1000,0]
[null,null,null,null,null,null,null,null,null,null,null,null,0,-1000,0,null,0,-1000,0]
[null,null,null,null,null,null,null,null,null,null,null,null,0,-1000,0,null,0,-1000,0]
[null,null,null,null,null,null,null,null,null,null,null,null,0,-1000,0,null,0,-1000,0]
[null,null,null,null,null,null,null,null,null,null,null,null,0,-1000,0,null,0,-1000,0]
[null,null,null,null,null,null,null,null,null,null,null,null,0,-1000,0,null,0,-1000,0]
[null,null,null,null,null,null,null,null,null,null,null,null,0,-1000,0,null,0,-1000,0]
[null,null,null,null,null,null,null,null,null,null,null,null,0,-1000,0,null,0,-1000,0]
[null,null,null,null,null,null,null,null,null,null,null,null,0,-1000,0,null,0,-1000,0]
[null,null,null,null,null,null,null,null,null,null,null,null,0,-1000,0,null,0,-1000,0]
[null,null,null,null,null,null,null,null,null,null,null,null,0,-1000,0,null,0,-1000,0]
[null,null,null,null,null,null,null,null,null,null,null,null,0,-1000,0,null,0,-1000,0]
[null,null,null,null,null,null,null,null,null,null,null,null,0,-1000,0,null,0,-1000,0]
[null,null,null,null,null,null,null,null,null,null,null,null,0,-1000,0,null,0,-1000,0]
[null,null,null,null,null,null,null,null,null,null,null,null,0,-1000,0,null,0,-1000,0]
[null,null,null,null,null,null,null,null,null,null,null,null,0,-1000,0,null,0,-1000,0]
[null,null,null,null,null,null,null,null,null,null,null,null,0,-1000,0,null,0,-1000,0]
[null,null,null,null,null,null,null,null,null,null,null,null,0,-1000,0,null,0,-1000,0]
[null,null,null,null,null,null,null,null,null,null,null,null,0,-1000,0,null,0,-1000,0]
[null,null,null,null,null,null,null,null,null,null,null,null,0,-1000,0,null,0,-1000,0]
[null,null,null,null,null,null,null,null,null,null,null,null,0,-1000,0,null,0,-1000,0]
[null,null,null,null,null,null,null,null,null,null,null,null,0,-1000,0,null,0,-1000,0]
[null,null,null,null,null,null,null,null,null,null,null,null,0,-1000,0,null,0,-1000,0]
[null,null,null,null,null,null,null,null,null,null,null,null,0,-1000,0,null,0,-1000,0]
[null,null,null,null,null,null,null,null,null,null,null,null,0,-1000,0,null,0,-1000,0]
[null,null,null,null,null,null,null,null,null,null,null,null,0,-1000,0,null,0,-1000,0]
[null,null,null,null,null,null,null,null,null,null,null,null,0,-1000,0,null,0,-1000,0]
[null,null,null,null,null,null,null,null,null,null,null,null,0,-1000,0,null,0,-1000,0]
[null,null,null,null,null,null,null,null,null,null,null,null,0,-1000,0,null,0,-1000,0]
[null,null,null,null,null,null,null,null,null,null,null,null,0,-1000,0,null,0,-1000,0]
[null,null,null,null,null,null,null,null,null,null,null,null,0,-1000,0,null,0,-1000,0]
[null,null,null,null,null,null,null,null,null,null,null,null,0,-1000,0,null,0,-1000,0]
[null,null,null,null,null,null,null,null,null,null,null,null,0,-1000,0,null,0,-1000,0]
[null,null,null,null,null,null,null,null,null,null,null,null,0,-1000,0,null,0,-1000,0]
[null,null,null,null,null,null,null,null,null,null,null,null,0,-1000,0,null,0,-1000,0]
[null,null,null,null,null,null,null,null,null,null,null,null,0,-1000,0,null,0,-1000,0]
[null,null,null,null,null,null,null,null,null,null,null,null,0,-1000,0,null,0,-1000,0]
[null,null,null,null,null,null,null,null,null,null,null,null,0,-1000,0,null,0,-1000,0]
[null,null,null,null,null,null,null,null,null,null,null,null,0,-1000,0,null,0,-1000,0]
[null,null,null,null,null,null,null,null,null,null,null,null,0,-1000,0,null,0,-1000,0]
[null,null,null,null,null,null,null,null,null,null,null,null,0,-1000,0,null,0,-1000,0]
[null,null,null,null,null,null,null,null,null,null,null,null,0,-1000,0,null,0,-1000,0]
[null,null,null,null,null,null,null,null,null,null,null,null,0,-1000,0,null,0,-1000,0]
[null,null,null,null,null,null,null,null,null,null,null,null,0,-1000,0,null,0,-1000,0]
[null,null,null,null,null,null,null,null,null,null,null,null,0,-1000,0,null,0,-1000,0]
[null,null,null,null,null,null,null,null,null,null,null,null,0,-1000,0,null,0,-1000,0]
[null,null,null,null,null,null,null,null,null,null,null,null,0,-1000,0,null,0,-1000,0]
[null,null,null,null,null,null,null,null,null,null,null,null,0,-1000,0,null,0,-1000,0]
[null,null,null,null,null,null,null,null,null,null,null,null,0,-1000,0,null,0,-1000,0]
[null,null,null,null,null,null,null,null,null,null,null,null,0,-1000,0,null,0,-1000,0]
[null,null,null,null,null,null,null,null,null,null,null,null,0,-1000,0,null,0,-1000,0]
[null,null,null,null,null,null,null,null,null,null,null,null,0,-1000,0,null,0,-1000,0]
[null,null,null,null,null,null,null,null,null,null,null,null,0,-1000,0,null,0,-1000,0]
[null,null,null,null,null,null,null,null,null,null,null,null,{"$f":"(G137*$G$4+H137*$H$4+I137*$I$4+J137*$J$4+K137*$K$4+L137*$L$4)","v":0},{"$f":"IF(M137>0,M137*-1,-1000)","v":-1000},{"$f":"IF(M137>0,RANK(N137,N:N),0)","v":0},null,{"$f":"IF((G137*$G$4+H137*$H$4+I137*$I$4+J137*$J$4+K137*$K$4+L137*$L$4)>0,(G137*$G$4+H137*$H$4+I137*$I$4+J137*$J$4+K137*$K$4+L137*$L$4)/(IF(G137>0,1*$G$4,0)+IF(H137>0,1*$H$4,0)+IF(I137>0,1*$I$4,0)+IF(J137>0,1*$J$4,0)+IF(K137>0,1*$K$4,0)+IF(L137>0,1*$L$4,0)),0)","v":0},{"$f":"IF(Q137>0,Q137*-1,-1000)","v":-1000},{"$f":"IF(Q137>0,RANK(R137,R:R),0)","v":0}]
[null,null,null,null,null,null,null,null,null,null,null,null,0,-1000,0,null,0,-1000,0]
[null,null,null,null,null,null,null,null,null,null,null,null,0,-1000,0,null,0,-1000,0]
[null,null,null,null,null,null,null,null,null,null,null,null,0,-1000,0,null,0,-1000,0]
[null,null,null,null,null,null,null,null,null,null,null,null,0,-1000,0,null,0,-1000,0]
[null,null,null,null,null,null,null,null,null,null,null,null,0,-1000,0,null,0,-1000,0]
[null,null,null,null,null,null,null,null,null,null,null,null,0,-1000,0,null,0,-1000,0]
[null,null,null,null,null,null,null,null,null,null,null,null,0,-1000,0,null,0,-1000,0]
[null,null,null,null,null,null,null,null,null,null,null,null,0,-1000,0,null,0,-1000,0]
[null,null,null,null,null,null,null,null,null,null,null,null,0,-1000,0,null,0,-1000,0]
[null,null,null,null,null,null,null,null,null,null,null,null,0,-1000,0,null,0,-1000,0]
[null,null,null,null,null,null,null,null,null,null,null,null,0,-1000,0,null,0,-1000,0]
[null,null,null,null,null,null,null,null,null,null,null,null,0,-1000,0,null,0,-1000,0]

{"sheet":"EEM-XL","index":12,"n_rows":149,"n_cols":19,"rows_kept":149,"cut":false,"hidden":false,"merged":[[6,16,6,17]]}
["DSKD  69. Deutsche Meisterschaft und 19. Europameisterschaft 2017 Mettingen  ESKD"]
["EM - Endläufe in der Elite XL - Klasse"]
[null,null,null,null,null,null,null,null,null,null,null,null,null,null,null,null,null,null,"Bestzeit"]
["Wird der Lauf gewertet?   dann 0 oder 1 eintragen",null,null,null,null,null,1,1,0,1,1,1,null,null,null,null,null,null,"in Vorläufen"]
[null,null,null,null,"Bestzeit je Lauf",null,{"$f":"MIN(G9:G149)","v":36.79},36.869999999999997,36.93,0,0,0,null,null,null,null,null,null,{"$f":"MIN((IF(G4=1,G5,99)),        (IF(H4=1,H5,99)),   (IF(I4=1,I5,99)),  (IF(J4=1,J5,99)), (IF(K4=1,K5,99)),  (IF(L4=1,L5,99))       )","v":0}]
[null,null,null,null,"Mittelwert je Lauf",null,{"$f":"IF(G5>0,AVERAGE(G9:G149),0)","v":37.126666666666665},37.216666666666669,37.304444444444442,0,0,0]
["Start\nNummer","Gruppe","startet","Name","Vorname","Verein","Lauf 1","Lauf 2","Lauf 3","Lauf 4","Lauf 5","Lauf 6","Summe der gewerteten Läufe",null,"Platz",null,"Mittelwert",null,"Platz"]
[]
[210,"Elite XL",null,"Strohmaier","Sebastian","SV Losaurach",36.79,36.869999999999997,36.93,null,null,null,{"$f":"(G9*$G$4+H9*$H$4+I9*$I$4+J9*$J$4+K9*$K$4+L9*$L$4)","v":73.66},{"$f":"IF(M9>0,M9*-1,-1000)","v":-73.66},{"$f":"IF(M9>0,RANK(N9,N:N),0)","v":1},null,{"$f":"IF((G9*$G$4+H9*$H$4+I9*$I$4+J9*$J$4+K9*$K$4+L9*$L$4)>0,(G9*$G$4+H9*$H$4+I9*$I$4+J9*$J$4+K9*$K$4+L9*$L$4)/(IF(G9>0,1*$G$4,0)+IF(H9>0,1*$H$4,0)+IF(I9>0,1*$I$4,0)+IF(J9>0,1*$J$4,0)+IF(K9>0,1*$K$4,0)+IF(L9>0,1*$L$4,0)),0)","v":36.83},{"$f":"IF(Q9>0,Q9*-1,-1000)","v":-36.83},{"$f":"IF(Q9>0,RANK(R9,R:R),0)","v":1}]
[205,"Elite XL",null,"Braun","Armin","MSVg Gerolzhofen",37.06,37.03,37.24,null,null,null,74.09,-74.09,2,null,37.045000000000002,-37.045000000000002,2]
[209,"Elite XL",null,"Nießen","Nicolas","Eifeler-Seifenkistenfreunde Simmerath",37.049999999999997,37.119999999999997,37.200000000000003,null,null,null,74.169999999999987,-74.169999999999987,3,null,37.084999999999994,-37.084999999999994,3]
[203,"Elite XL",null,"Reinicke","Tim","Power Crew Berlin",37.049999999999997,37.21,37.24,null,null,null,74.259999999999991,-74.259999999999991,4,null,37.129999999999995,-37.129999999999995,4]
[212,"Elite XL",null,"Ricker","Jana-Lena","Berkel Raser Billerbeck",37.17,37.31,37.43,null,null,null,74.48,-74.48,5,null,37.24,-37.24,5]
[202,"Elite XL",null,"Schmidt","Marvin","Friesenflitzer Varel",37.21,37.340000000000003,37.39,null,null,null,74.550000000000011,-74.550000000000011,6,null,37.275000000000006,-37.275000000000006,6]
[207,"Elite XL",null,"Herberth","Yannick","SK-Verband Baden-Württemberg",37.17,37.380000000000003,37.31,null,null,null,74.550000000000011,-74.550000000000011,6,null,37.275000000000006,-37.275000000000006,6]
[201,"Elite XL",null,"Herberth","Laura","SK-Verband Baden-Württemberg",37.21,37.369999999999997,37.270000000000003,null,null,null,74.58,-74.58,8,null,37.29,-37.29,8]
[204,"Elite XL",null,"Fischer","Moritz","Joker-Team Berlin",37.43,37.32,37.729999999999997,null,null,null,74.75,-74.75,9,null,37.375,-37.375,9]
[null,null,null,null,null,null,null,null,null,null,null,null,0,-1000,0,null,0,-1000,0]
[null,null,null,null,null,null,null,null,null,null,null,null,0,-1000,0,null,0,-1000,0]
[null,null,null,null,null,null,null,null,null,null,null,null,0,-1000,0,null,0,-1000,0]
[null,null,null,null,null,null,null,null,null,null,null,null,0,-1000,0,null,0,-1000,0]
[null,null,null,null,null,null,null,null,null,null,null,null,0,-1000,0,null,0,-1000,0]
[null,null,null,null,null,null,null,null,null,null,null,null,0,-1000,0,null,0,-1000,0]
[null,null,null,null,null,null,null,null,null,null,null,null,0,-1000,0,null,0,-1000,0]
[null,null,null,null,null,null,null,null,null,null,null,null,0,-1000,0,null,0,-1000,0]
[null,null,null,null,null,null,null,null,null,null,null,null,0,-1000,0,null,0,-1000,0]
[null,null,null,null,null,null,null,null,null,null,null,null,0,-1000,0,null,0,-1000,0]
[null,null,null,null,null,null,null,null,null,null,null,null,0,-1000,0,null,0,-1000,0]
[null,null,null,null,null,null,null,null,null,null,null,null,0,-1000,0,null,0,-1000,0]
[null,null,null,null,null,null,null,null,null,null,null,null,0,-1000,0,null,0,-1000,0]
[null,null,null,null,null,null,null,null,null,null,null,null,0,-1000,0,null,0,-1000,0]
[null,null,null,null,null,null,null,null,null,null,null,null,0,-1000,0,null,0,-1000,0]
[null,null,null,null,null,null,null,null,null,null,null,null,0,-1000,0,null,0,-1000,0]
[null,null,null,null,null,null,null,null,null,null,null,null,0,-1000,0,null,0,-1000,0]
[null,null,null,null,null,null,null,null,null,null,null,null,0,-1000,0,null,0,-1000,0]
[null,null,null,null,null,null,null,null,null,null,null,null,0,-1000,0,null,0,-1000,0]
[null,null,null,null,null,null,null,null,null,null,null,null,0,-1000,0,null,0,-1000,0]
[null,null,null,null,null,null,null,null,null,null,null,null,0,-1000,0,null,0,-1000,0]
[null,null,null,null,null,null,null,null,null,null,null,null,0,-1000,0,null,0,-1000,0]
[null,null,null,null,null,null,null,null,null,null,null,null,0,-1000,0,null,0,-1000,0]
[null,null,null,null,null,null,null,null,null,null,null,null,0,-1000,0,null,0,-1000,0]
[null,null,null,null,null,null,null,null,null,null,null,null,0,-1000,0,null,0,-1000,0]
[null,null,null,null,null,null,null,null,null,null,null,null,0,-1000,0,null,0,-1000,0]
[null,null,null,null,null,null,null,null,null,null,null,null,0,-1000,0,null,0,-1000,0]
[null,null,null,null,null,null,null,null,null,null,null,null,0,-1000,0,null,0,-1000,0]
[null,null,null,null,null,null,null,null,null,null,null,null,0,-1000,0,null,0,-1000,0]
[null,null,null,null,null,null,null,null,null,null,null,null,0,-1000,0,null,0,-1000,0]
[null,null,null,null,null,null,null,null,null,null,null,null,0,-1000,0,null,0,-1000,0]
[null,null,null,null,null,null,null,null,null,null,null,null,0,-1000,0,null,0,-1000,0]
[null,null,null,null,null,null,null,null,null,null,null,null,0,-1000,0,null,0,-1000,0]
[null,null,null,null,null,null,null,null,null,null,null,null,0,-1000,0,null,0,-1000,0]
[null,null,null,null,null,null,null,null,null,null,null,null,0,-1000,0,null,0,-1000,0]
[null,null,null,null,null,null,null,null,null,null,null,null,0,-1000,0,null,0,-1000,0]
[null,null,null,null,null,null,null,null,null,null,null,null,0,-1000,0,null,0,-1000,0]
[null,null,null,null,null,null,null,null,null,null,null,null,0,-1000,0,null,0,-1000,0]
[null,null,null,null,null,null,null,null,null,null,null,null,0,-1000,0,null,0,-1000,0]
[null,null,null,null,null,null,null,null,null,null,null,null,0,-1000,0,null,0,-1000,0]
[null,null,null,null,null,null,null,null,null,null,null,null,0,-1000,0,null,0,-1000,0]
[null,null,null,null,null,null,null,null,null,null,null,null,0,-1000,0,null,0,-1000,0]
[null,null,null,null,null,null,null,null,null,null,null,null,0,-1000,0,null,0,-1000,0]
[null,null,null,null,null,null,null,null,null,null,null,null,0,-1000,0,null,0,-1000,0]
[null,null,null,null,null,null,null,null,null,null,null,null,0,-1000,0,null,0,-1000,0]
[null,null,null,null,null,null,null,null,null,null,null,null,0,-1000,0,null,0,-1000,0]
[null,null,null,null,null,null,null,null,null,null,null,null,0,-1000,0,null,0,-1000,0]
[null,null,null,null,null,null,null,null,null,null,null,null,0,-1000,0,null,0,-1000,0]
[null,null,null,null,null,null,null,null,null,null,null,null,0,-1000,0,null,0,-1000,0]
[null,null,null,null,null,null,null,null,null,null,null,null,0,-1000,0,null,0,-1000,0]
[null,null,null,null,null,null,null,null,null,null,null,null,0,-1000,0,null,0,-1000,0]
[null,null,null,null,null,null,null,null,null,null,null,null,0,-1000,0,null,0,-1000,0]
[null,null,null,null,null,null,null,null,null,null,null,null,0,-1000,0,null,0,-1000,0]
[null,null,null,null,null,null,null,null,null,null,null,null,0,-1000,0,null,0,-1000,0]
[null,null,null,null,null,null,null,null,null,null,null,null,0,-1000,0,null,0,-1000,0]
[null,null,null,null,null,null,null,null,null,null,null,null,{"$f":"(G73*$G$4+H73*$H$4+I73*$I$4+J73*$J$4+K73*$K$4+L73*$L$4)","v":0},{"$f":"IF(M73>0,M73*-1,-1000)","v":-1000},{"$f":"IF(M73>0,RANK(N73,N:N),0)","v":0},null,{"$f":"IF((G73*$G$4+H73*$H$4+I73*$I$4+J73*$J$4+K73*$K$4+L73*$L$4)>0,(G73*$G$4+H73*$H$4+I73*$I$4+J73*$J$4+K73*$K$4+L73*$L$4)/(IF(G73>0,1*$G$4,0)+IF(H73>0,1*$H$4,0)+IF(I73>0,1*$I$4,0)+IF(J73>0,1*$J$4,0)+IF(K73>0,1*$K$4,0)+IF(L73>0,1*$L$4,0)),0)","v":0},{"$f":"IF(Q73>0,Q73*-1,-1000)","v":-1000},{"$f":"IF(Q73>0,RANK(R73,R:R),0)","v":0}]
[null,null,null,null,null,null,null,null,null,null,null,null,0,-1000,0,null,0,-1000,0]
[null,null,null,null,null,null,null,null,null,null,null,null,0,-1000,0,null,0,-1000,0]
[null,null,null,null,null,null,null,null,null,null,null,null,0,-1000,0,null,0,-1000,0]
[null,null,null,null,null,null,null,null,null,null,null,null,0,-1000,0,null,0,-1000,0]
[null,null,null,null,null,null,null,null,null,null,null,null,0,-1000,0,null,0,-1000,0]
[null,null,null,null,null,null,null,null,null,null,null,null,0,-1000,0,null,0,-1000,0]
[null,null,null,null,null,null,null,null,null,null,null,null,0,-1000,0,null,0,-1000,0]
[null,null,null,null,null,null,null,null,null,null,null,null,0,-1000,0,null,0,-1000,0]
[null,null,null,null,null,null,null,null,null,null,null,null,0,-1000,0,null,0,-1000,0]
[null,null,null,null,null,null,null,null,null,null,null,null,0,-1000,0,null,0,-1000,0]
[null,null,null,null,null,null,null,null,null,null,null,null,0,-1000,0,null,0,-1000,0]
[null,null,null,null,null,null,null,null,null,null,null,null,0,-1000,0,null,0,-1000,0]
[null,null,null,null,null,null,null,null,null,null,null,null,0,-1000,0,null,0,-1000,0]
[null,null,null,null,null,null,null,null,null,null,null,null,0,-1000,0,null,0,-1000,0]
[null,null,null,null,null,null,null,null,null,null,null,null,0,-1000,0,null,0,-1000,0]
[null,null,null,null,null,null,null,null,null,null,null,null,0,-1000,0,null,0,-1000,0]
[null,null,null,null,null,null,null,null,null,null,null,null,0,-1000,0,null,0,-1000,0]
[null,null,null,null,null,null,null,null,null,null,null,null,0,-1000,0,null,0,-1000,0]
[null,null,null,null,null,null,null,null,null,null,null,null,0,-1000,0,null,0,-1000,0]
[null,null,null,null,null,null,null,null,null,null,null,null,0,-1000,0,null,0,-1000,0]
[null,null,null,null,null,null,null,null,null,null,null,null,0,-1000,0,null,0,-1000,0]
[null,null,null,null,null,null,null,null,null,null,null,null,0,-1000,0,null,0,-1000,0]
[null,null,null,null,null,null,null,null,null,null,null,null,0,-1000,0,null,0,-1000,0]
[null,null,null,null,null,null,null,null,null,null,null,null,0,-1000,0,null,0,-1000,0]
[null,null,null,null,null,null,null,null,null,null,null,null,0,-1000,0,null,0,-1000,0]
[null,null,null,null,null,null,null,null,null,null,null,null,0,-1000,0,null,0,-1000,0]
[null,null,null,null,null,null,null,null,null,null,null,null,0,-1000,0,null,0,-1000,0]
[null,null,null,null,null,null,null,null,null,null,null,null,0,-1000,0,null,0,-1000,0]
[null,null,null,null,null,null,null,null,null,null,null,null,0,-1000,0,null,0,-1000,0]
[null,null,null,null,null,null,null,null,null,null,null,null,0,-1000,0,null,0,-1000,0]
[null,null,null,null,null,null,null,null,null,null,null,null,0,-1000,0,null,0,-1000,0]
[null,null,null,null,null,null,null,null,null,null,null,null,0,-1000,0,null,0,-1000,0]
[null,null,null,null,null,null,null,null,null,null,null,null,0,-1000,0,null,0,-1000,0]
[null,null,null,null,null,null,null,null,null,null,null,null,0,-1000,0,null,0,-1000,0]
[null,null,null,null,null,null,null,null,null,null,null,null,0,-1000,0,null,0,-1000,0]
[null,null,null,null,null,null,null,null,null,null,null,null,0,-1000,0,null,0,-1000,0]
[null,null,null,null,null,null,null,null,null,null,null,null,0,-1000,0,null,0,-1000,0]
[null,null,null,null,null,null,null,null,null,null,null,null,0,-1000,0,null,0,-1000,0]
[null,null,null,null,null,null,null,null,null,null,null,null,0,-1000,0,null,0,-1000,0]
[null,null,null,null,null,null,null,null,null,null,null,null,0,-1000,0,null,0,-1000,0]
[null,null,null,null,null,null,null,null,null,null,null,null,0,-1000,0,null,0,-1000,0]
[null,null,null,null,null,null,null,null,null,null,null,null,0,-1000,0,null,0,-1000,0]
[null,null,null,null,null,null,null,null,null,null,null,null,0,-1000,0,null,0,-1000,0]
[null,null,null,null,null,null,null,null,null,null,null,null,0,-1000,0,null,0,-1000,0]
[null,null,null,null,null,null,null,null,null,null,null,null,0,-1000,0,null,0,-1000,0]
[null,null,null,null,null,null,null,null,null,null,null,null,0,-1000,0,null,0,-1000,0]
[null,null,null,null,null,null,null,null,null,null,null,null,0,-1000,0,null,0,-1000,0]
[null,null,null,null,null,null,null,null,null,null,null,null,0,-1000,0,null,0,-1000,0]
[null,null,null,null,null,null,null,null,null,null,null,null,0,-1000,0,null,0,-1000,0]
[null,null,null,null,null,null,null,null,null,null,null,null,0,-1000,0,null,0,-1000,0]
[null,null,null,null,null,null,null,null,null,null,null,null,0,-1000,0,null,0,-1000,0]
[null,null,null,null,null,null,null,null,null,null,null,null,0,-1000,0,null,0,-1000,0]
[null,null,null,null,null,null,null,null,null,null,null,null,0,-1000,0,null,0,-1000,0]
[null,null,null,null,null,null,null,null,null,null,null,null,0,-1000,0,null,0,-1000,0]
[null,null,null,null,null,null,null,null,null,null,null,null,0,-1000,0,null,0,-1000,0]
[null,null,null,null,null,null,null,null,null,null,null,null,0,-1000,0,null,0,-1000,0]
[null,null,null,null,null,null,null,null,null,null,null,null,0,-1000,0,null,0,-1000,0]
[null,null,null,null,null,null,null,null,null,null,null,null,0,-1000,0,null,0,-1000,0]
[null,null,null,null,null,null,null,null,null,null,null,null,0,-1000,0,null,0,-1000,0]
[null,null,null,null,null,null,null,null,null,null,null,null,0,-1000,0,null,0,-1000,0]
[null,null,null,null,null,null,null,null,null,null,null,null,0,-1000,0,null,0,-1000,0]
[null,null,null,null,null,null,null,null,null,null,null,null,0,-1000,0,null,0,-1000,0]
[null,null,null,null,null,null,null,null,null,null,null,null,0,-1000,0,null,0,-1000,0]
[null,null,null,null,null,null,null,null,null,null,null,null,{"$f":"(G137*$G$4+H137*$H$4+I137*$I$4+J137*$J$4+K137*$K$4+L137*$L$4)","v":0},{"$f":"IF(M137>0,M137*-1,-1000)","v":-1000},{"$f":"IF(M137>0,RANK(N137,N:N),0)","v":0},null,{"$f":"IF((G137*$G$4+H137*$H$4+I137*$I$4+J137*$J$4+K137*$K$4+L137*$L$4)>0,(G137*$G$4+H137*$H$4+I137*$I$4+J137*$J$4+K137*$K$4+L137*$L$4)/(IF(G137>0,1*$G$4,0)+IF(H137>0,1*$H$4,0)+IF(I137>0,1*$I$4,0)+IF(J137>0,1*$J$4,0)+IF(K137>0,1*$K$4,0)+IF(L137>0,1*$L$4,0)),0)","v":0},{"$f":"IF(Q137>0,Q137*-1,-1000)","v":-1000},{"$f":"IF(Q137>0,RANK(R137,R:R),0)","v":0}]
[null,null,null,null,null,null,null,null,null,null,null,null,0,-1000,0,null,0,-1000,0]
[null,null,null,null,null,null,null,null,null,null,null,null,0,-1000,0,null,0,-1000,0]
[null,null,null,null,null,null,null,null,null,null,null,null,0,-1000,0,null,0,-1000,0]
[null,null,null,null,null,null,null,null,null,null,null,null,0,-1000,0,null,0,-1000,0]
[null,null,null,null,null,null,null,null,null,null,null,null,0,-1000,0,null,0,-1000,0]
[null,null,null,null,null,null,null,null,null,null,null,null,0,-1000,0,null,0,-1000,0]
[null,null,null,null,null,null,null,null,null,null,null,null,0,-1000,0,null,0,-1000,0]
[null,null,null,null,null,null,null,null,null,null,null,null,0,-1000,0,null,0,-1000,0]
[null,null,null,null,null,null,null,null,null,null,null,null,0,-1000,0,null,0,-1000,0]
[null,null,null,null,null,null,null,null,null,null,null,null,0,-1000,0,null,0,-1000,0]
[null,null,null,null,null,null,null,null,null,null,null,null,0,-1000,0,null,0,-1000,0]
[null,null,null,null,null,null,null,null,null,null,null,null,0,-1000,0,null,0,-1000,0]

{"sheet":"EEM-XL18","index":13,"n_rows":149,"n_cols":19,"rows_kept":149,"cut":false,"hidden":false,"merged":[[6,16,6,17]]}
["DSKD  69. Deutsche Meisterschaft und 19. Europameisterschaft 2017 Mettingen  ESKD"]
["EM - Endläufe in der XL Ü18 - Klasse"]
[null,null,null,null,null,null,null,null,null,null,null,null,null,null,null,null,null,null,"Bestzeit"]
["Wird der Lauf gewertet?   dann 0 oder 1 eintragen",null,null,null,null,null,1,1,0,1,1,1,null,null,null,null,null,null,"in Vorläufen"]
[null,null,null,null,"Bestzeit je Lauf",null,{"$f":"MIN(G9:G149)","v":36.76},36.93,37.01,0,0,0,null,null,null,null,null,null,{"$f":"MIN((IF(G4=1,G5,99)),        (IF(H4=1,H5,99)),   (IF(I4=1,I5,99)),  (IF(J4=1,J5,99)), (IF(K4=1,K5,99)),  (IF(L4=1,L5,99))       )","v":0}]
[null,null,null,null,"Mittelwert je Lauf",null,{"$f":"IF(G5>0,AVERAGE(G9:G149),0)","v":37.091818181818184},37.156363636363643,37.286000000000001,0,0,0]
["Start\nNummer","Gruppe","startet","Name","Vorname","Verein","Lauf 1","Lauf 2","Lauf 3","Lauf 4","Lauf 5","Lauf 6","Summe der gewerteten Läufe",null,"Platz",null,"Mittelwert",null,"Platz"]
[]
[304,"Ü18",null,"Lange","Florian","Jugendclub Mettinger SK-Derby",36.76,36.979999999999997,37.01,null,null,null,{"$f":"(G9*$G$4+H9*$H$4+I9*$I$4+J9*$J$4+K9*$K$4+L9*$L$4)","v":73.739999999999995},{"$f":"IF(M9>0,M9*-1,-1000)","v":-73.739999999999995},{"$f":"IF(M9>0,RANK(N9,N:N),0)","v":1},null,{"$f":"IF((G9*$G$4+H9*$H$4+I9*$I$4+J9*$J$4+K9*$K$4+L9*$L$4)>0,(G9*$G$4+H9*$H$4+I9*$I$4+J9*$J$4+K9*$K$4+L9*$L$4)/(IF(G9>0,1*$G$4,0)+IF(H9>0,1*$H$4,0)+IF(I9>0,1*$I$4,0)+IF(J9>0,1*$J$4,0)+IF(K9>0,1*$K$4,0)+IF(L9>0,1*$L$4,0)),0)","v":36.869999999999997},{"$f":"IF(Q9>0,Q9*-1,-1000)","v":-36.869999999999997},{"$f":"IF(Q9>0,RANK(R9,R:R),0)","v":1}]
[308,"Ü18",null,"Leismann","Pascal","SV Losaurach",36.9,36.93,37.08,null,null,null,73.83,-73.83,2,null,36.914999999999999,-36.914999999999999,2]
[316,"Ü18",null,"Bontjes","Sabine","Power Crew Berlin",37,36.99,37.18,null,null,null,73.990000000000009,-73.990000000000009,3,null,36.995000000000005,-36.995000000000005,3]
[315,"Ü18",null,"Schmidt","Imke","Friesenflitzer Varel",37.07,37.06,37.24,null,null,null,74.13,-74.13,4,null,37.064999999999998,-37.064999999999998,4]
[313,"Ü18",null,"Rohls","Sebastian","Seifenkistengruppe Stromberg",37.06,37.200000000000003,null,null,null,null,74.260000000000005,-74.260000000000005,5,null,37.130000000000003,-37.130000000000003,5]
[302,"Ü18",null,"Wetter","Sebastian","Berkel Raser Billerbeck",37.1,37.18,37.33,null,null,null,74.28,-74.28,6,null,37.14,-37.14,6]
[305,"Ü18",null,"Voß","Marie-Charlotte","Immer auf Achse Bergkamen",37.19,37.17,37.4,null,null,null,74.36,-74.36,7,null,37.18,-37.18,7]
[303,"Ü18",null,"Gudlowski","Svea","Joker-Team Berlin ",37.21,37.28,37.33,null,null,null,74.490000000000009,-74.490000000000009,8,null,37.245000000000005,-37.245000000000005,8]
[317,"Ü18",null,"Bataljevs","Maris","Lettland",37.229999999999997,37.29,37.33,null,null,null,74.52,-74.52,9,null,37.26,-37.26,9]
[301,"Ü18",null,"Loo van","Julian","Belgien",37.24,37.32,37.47,null,null,null,74.56,-74.56,10,null,37.28,-37.28,10]
[318,"Ü18",null,"Nicolescu","Bogdan","Rumänien",37.25,37.32,37.49,null,null,null,74.569999999999993,-74.569999999999993,11,null,37.284999999999997,-37.284999999999997,11]
[null,null,null,null,null,null,null,null,null,null,null,null,0,-1000,0,null,0,-1000,0]
[null,null,null,null,null,null,null,null,null,null,null,null,0,-1000,0,null,0,-1000,0]
[null,null,null,null,null,null,null,null,null,null,null,null,0,-1000,0,null,0,-1000,0]
[null,null,null,null,null,null,null,null,null,null,null,null,0,-1000,0,null,0,-1000,0]
[null,null,null,null,null,null,null,null,null,null,null,null,0,-1000,0,null,0,-1000,0]
[null,null,null,null,null,null,null,null,null,null,null,null,0,-1000,0,null,0,-1000,0]
[null,null,null,null,null,null,null,null,null,null,null,null,0,-1000,0,null,0,-1000,0]
[null,null,null,null,null,null,null,null,null,null,null,null,0,-1000,0,null,0,-1000,0]
[null,null,null,null,null,null,null,null,null,null,null,null,0,-1000,0,null,0,-1000,0]
[null,null,null,null,null,null,null,null,null,null,null,null,0,-1000,0,null,0,-1000,0]
[null,null,null,null,null,null,null,null,null,null,null,null,0,-1000,0,null,0,-1000,0]
[null,null,null,null,null,null,null,null,null,null,null,null,0,-1000,0,null,0,-1000,0]
[null,null,null,null,null,null,null,null,null,null,null,null,0,-1000,0,null,0,-1000,0]
[null,null,null,null,null,null,null,null,null,null,null,null,0,-1000,0,null,0,-1000,0]
[null,null,null,null,null,null,null,null,null,null,null,null,0,-1000,0,null,0,-1000,0]
[null,null,null,null,null,null,null,null,null,null,null,null,0,-1000,0,null,0,-1000,0]
[null,null,null,null,null,null,null,null,null,null,null,null,0,-1000,0,null,0,-1000,0]
[null,null,null,null,null,null,null,null,null,null,null,null,0,-1000,0,null,0,-1000,0]
[null,null,null,null,null,null,null,null,null,null,null,null,0,-1000,0,null,0,-1000,0]
[null,null,null,null,null,null,null,null,null,null,null,null,0,-1000,0,null,0,-1000,0]
[null,null,null,null,null,null,null,null,null,null,null,null,0,-1000,0,null,0,-1000,0]
[null,null,null,null,null,null,null,null,null,null,null,null,0,-1000,0,null,0,-1000,0]
[null,null,null,null,null,null,null,null,null,null,null,null,0,-1000,0,null,0,-1000,0]
[null,null,null,null,null,null,null,null,null,null,null,null,0,-1000,0,null,0,-1000,0]
[null,null,null,null,null,null,null,null,null,null,null,null,0,-1000,0,null,0,-1000,0]
[null,null,null,null,null,null,null,null,null,null,null,null,0,-1000,0,null,0,-1000,0]
[null,null,null,null,null,null,null,null,null,null,null,null,0,-1000,0,null,0,-1000,0]
[null,null,null,null,null,null,null,null,null,null,null,null,0,-1000,0,null,0,-1000,0]
[null,null,null,null,null,null,null,null,null,null,null,null,0,-1000,0,null,0,-1000,0]
[null,null,null,null,null,null,null,null,null,null,null,null,0,-1000,0,null,0,-1000,0]
[null,null,null,null,null,null,null,null,null,null,null,null,0,-1000,0,null,0,-1000,0]
[null,null,null,null,null,null,null,null,null,null,null,null,0,-1000,0,null,0,-1000,0]
[null,null,null,null,null,null,null,null,null,null,null,null,0,-1000,0,null,0,-1000,0]
[null,null,null,null,null,null,null,null,null,null,null,null,0,-1000,0,null,0,-1000,0]
[null,null,null,null,null,null,null,null,null,null,null,null,0,-1000,0,null,0,-1000,0]
[null,null,null,null,null,null,null,null,null,null,null,null,0,-1000,0,null,0,-1000,0]
[null,null,null,null,null,null,null,null,null,null,null,null,0,-1000,0,null,0,-1000,0]
[null,null,null,null,null,null,null,null,null,null,null,null,0,-1000,0,null,0,-1000,0]
[null,null,null,null,null,null,null,null,null,null,null,null,0,-1000,0,null,0,-1000,0]
[null,null,null,null,null,null,null,null,null,null,null,null,0,-1000,0,null,0,-1000,0]
[null,null,null,null,null,null,null,null,null,null,null,null,0,-1000,0,null,0,-1000,0]
[null,null,null,null,null,null,null,null,null,null,null,null,0,-1000,0,null,0,-1000,0]
[null,null,null,null,null,null,null,null,null,null,null,null,0,-1000,0,null,0,-1000,0]
[null,null,null,null,null,null,null,null,null,null,null,null,0,-1000,0,null,0,-1000,0]
[null,null,null,null,null,null,null,null,null,null,null,null,0,-1000,0,null,0,-1000,0]
[null,null,null,null,null,null,null,null,null,null,null,null,0,-1000,0,null,0,-1000,0]
[null,null,null,null,null,null,null,null,null,null,null,null,0,-1000,0,null,0,-1000,0]
[null,null,null,null,null,null,null,null,null,null,null,null,0,-1000,0,null,0,-1000,0]
[null,null,null,null,null,null,null,null,null,null,null,null,0,-1000,0,null,0,-1000,0]
[null,null,null,null,null,null,null,null,null,null,null,null,0,-1000,0,null,0,-1000,0]
[null,null,null,null,null,null,null,null,null,null,null,null,0,-1000,0,null,0,-1000,0]
[null,null,null,null,null,null,null,null,null,null,null,null,0,-1000,0,null,0,-1000,0]
[null,null,null,null,null,null,null,null,null,null,null,null,0,-1000,0,null,0,-1000,0]
[null,null,null,null,null,null,null,null,null,null,null,null,{"$f":"(G73*$G$4+H73*$H$4+I73*$I$4+J73*$J$4+K73*$K$4+L73*$L$4)","v":0},{"$f":"IF(M73>0,M73*-1,-1000)","v":-1000},{"$f":"IF(M73>0,RANK(N73,N:N),0)","v":0},null,{"$f":"IF((G73*$G$4+H73*$H$4+I73*$I$4+J73*$J$4+K73*$K$4+L73*$L$4)>0,(G73*$G$4+H73*$H$4+I73*$I$4+J73*$J$4+K73*$K$4+L73*$L$4)/(IF(G73>0,1*$G$4,0)+IF(H73>0,1*$H$4,0)+IF(I73>0,1*$I$4,0)+IF(J73>0,1*$J$4,0)+IF(K73>0,1*$K$4,0)+IF(L73>0,1*$L$4,0)),0)","v":0},{"$f":"IF(Q73>0,Q73*-1,-1000)","v":-1000},{"$f":"IF(Q73>0,RANK(R73,R:R),0)","v":0}]
[null,null,null,null,null,null,null,null,null,null,null,null,0,-1000,0,null,0,-1000,0]
[null,null,null,null,null,null,null,null,null,null,null,null,0,-1000,0,null,0,-1000,0]
[null,null,null,null,null,null,null,null,null,null,null,null,0,-1000,0,null,0,-1000,0]
[null,null,null,null,null,null,null,null,null,null,null,null,0,-1000,0,null,0,-1000,0]
[null,null,null,null,null,null,null,null,null,null,null,null,0,-1000,0,null,0,-1000,0]
[null,null,null,null,null,null,null,null,null,null,null,null,0,-1000,0,null,0,-1000,0]
[null,null,null,null,null,null,null,null,null,null,null,null,0,-1000,0,null,0,-1000,0]
[null,null,null,null,null,null,null,null,null,null,null,null,0,-1000,0,null,0,-1000,0]
[null,null,null,null,null,null,null,null,null,null,null,null,0,-1000,0,null,0,-1000,0]
[null,null,null,null,null,null,null,null,null,null,null,null,0,-1000,0,null,0,-1000,0]
[null,null,null,null,null,null,null,null,null,null,null,null,0,-1000,0,null,0,-1000,0]
[null,null,null,null,null,null,null,null,null,null,null,null,0,-1000,0,null,0,-1000,0]
[null,null,null,null,null,null,null,null,null,null,null,null,0,-1000,0,null,0,-1000,0]
[null,null,null,null,null,null,null,null,null,null,null,null,0,-1000,0,null,0,-1000,0]
[null,null,null,null,null,null,null,null,null,null,null,null,0,-1000,0,null,0,-1000,0]
[null,null,null,null,null,null,null,null,null,null,null,null,0,-1000,0,null,0,-1000,0]
[null,null,null,null,null,null,null,null,null,null,null,null,0,-1000,0,null,0,-1000,0]
[null,null,null,null,null,null,null,null,null,null,null,null,0,-1000,0,null,0,-1000,0]
[null,null,null,null,null,null,null,null,null,null,null,null,0,-1000,0,null,0,-1000,0]
[null,null,null,null,null,null,null,null,null,null,null,null,0,-1000,0,null,0,-1000,0]
[null,null,null,null,null,null,null,null,null,null,null,null,0,-1000,0,null,0,-1000,0]
[null,null,null,null,null,null,null,null,null,null,null,null,0,-1000,0,null,0,-1000,0]
[null,null,null,null,null,null,null,null,null,null,null,null,0,-1000,0,null,0,-1000,0]
[null,null,null,null,null,null,null,null,null,null,null,null,0,-1000,0,null,0,-1000,0]
[null,null,null,null,null,null,null,null,null,null,null,null,0,-1000,0,null,0,-1000,0]
[null,null,null,null,null,null,null,null,null,null,null,null,0,-1000,0,null,0,-1000,0]
[null,null,null,null,null,null,null,null,null,null,null,null,0,-1000,0,null,0,-1000,0]
[null,null,null,null,null,null,null,null,null,null,null,null,0,-1000,0,null,0,-1000,0]
[null,null,null,null,null,null,null,null,null,null,null,null,0,-1000,0,null,0,-1000,0]
[null,null,null,null,null,null,null,null,null,null,null,null,0,-1000,0,null,0,-1000,0]
[null,null,null,null,null,null,null,null,null,null,null,null,0,-1000,0,null,0,-1000,0]
[null,null,null,null,null,null,null,null,null,null,null,null,0,-1000,0,null,0,-1000,0]
[null,null,null,null,null,null,null,null,null,null,null,null,0,-1000,0,null,0,-1000,0]
[null,null,null,null,null,null,null,null,null,null,null,null,0,-1000,0,null,0,-1000,0]
[null,null,null,null,null,null,null,null,null,null,null,null,0,-1000,0,null,0,-1000,0]
[null,null,null,null,null,null,null,null,null,null,null,null,0,-1000,0,null,0,-1000,0]
[null,null,null,null,null,null,null,null,null,null,null,null,0,-1000,0,null,0,-1000,0]
[null,null,null,null,null,null,null,null,null,null,null,null,0,-1000,0,null,0,-1000,0]
[null,null,null,null,null,null,null,null,null,null,null,null,0,-1000,0,null,0,-1000,0]
[null,null,null,null,null,null,null,null,null,null,null,null,0,-1000,0,null,0,-1000,0]
[null,null,null,null,null,null,null,null,null,null,null,null,0,-1000,0,null,0,-1000,0]
[null,null,null,null,null,null,null,null,null,null,null,null,0,-1000,0,null,0,-1000,0]
[null,null,null,null,null,null,null,null,null,null,null,null,0,-1000,0,null,0,-1000,0]
[null,null,null,null,null,null,null,null,null,null,null,null,0,-1000,0,null,0,-1000,0]
[null,null,null,null,null,null,null,null,null,null,null,null,0,-1000,0,null,0,-1000,0]
[null,null,null,null,null,null,null,null,null,null,null,null,0,-1000,0,null,0,-1000,0]
[null,null,null,null,null,null,null,null,null,null,null,null,0,-1000,0,null,0,-1000,0]
[null,null,null,null,null,null,null,null,null,null,null,null,0,-1000,0,null,0,-1000,0]
[null,null,null,null,null,null,null,null,null,null,null,null,0,-1000,0,null,0,-1000,0]
[null,null,null,null,null,null,null,null,null,null,null,null,0,-1000,0,null,0,-1000,0]
[null,null,null,null,null,null,null,null,null,null,null,null,0,-1000,0,null,0,-1000,0]
[null,null,null,null,null,null,null,null,null,null,null,null,0,-1000,0,null,0,-1000,0]
[null,null,null,null,null,null,null,null,null,null,null,null,0,-1000,0,null,0,-1000,0]
[null,null,null,null,null,null,null,null,null,null,null,null,0,-1000,0,null,0,-1000,0]
[null,null,null,null,null,null,null,null,null,null,null,null,0,-1000,0,null,0,-1000,0]
[null,null,null,null,null,null,null,null,null,null,null,null,0,-1000,0,null,0,-1000,0]
[null,null,null,null,null,null,null,null,null,null,null,null,0,-1000,0,null,0,-1000,0]
[null,null,null,null,null,null,null,null,null,null,null,null,0,-1000,0,null,0,-1000,0]
[null,null,null,null,null,null,null,null,null,null,null,null,0,-1000,0,null,0,-1000,0]
[null,null,null,null,null,null,null,null,null,null,null,null,0,-1000,0,null,0,-1000,0]
[null,null,null,null,null,null,null,null,null,null,null,null,0,-1000,0,null,0,-1000,0]
[null,null,null,null,null,null,null,null,null,null,null,null,0,-1000,0,null,0,-1000,0]
[null,null,null,null,null,null,null,null,null,null,null,null,0,-1000,0,null,0,-1000,0]
[null,null,null,null,null,null,null,null,null,null,null,null,{"$f":"(G137*$G$4+H137*$H$4+I137*$I$4+J137*$J$4+K137*$K$4+L137*$L$4)","v":0},{"$f":"IF(M137>0,M137*-1,-1000)","v":-1000},{"$f":"IF(M137>0,RANK(N137,N:N),0)","v":0},null,{"$f":"IF((G137*$G$4+H137*$H$4+I137*$I$4+J137*$J$4+K137*$K$4+L137*$L$4)>0,(G137*$G$4+H137*$H$4+I137*$I$4+J137*$J$4+K137*$K$4+L137*$L$4)/(IF(G137>0,1*$G$4,0)+IF(H137>0,1*$H$4,0)+IF(I137>0,1*$I$4,0)+IF(J137>0,1*$J$4,0)+IF(K137>0,1*$K$4,0)+IF(L137>0,1*$L$4,0)),0)","v":0},{"$f":"IF(Q137>0,Q137*-1,-1000)","v":-1000},{"$f":"IF(Q137>0,RANK(R137,R:R),0)","v":0}]
[null,null,null,null,null,null,null,null,null,null,null,null,0,-1000,0,null,0,-1000,0]
[null,null,null,null,null,null,null,null,null,null,null,null,0,-1000,0,null,0,-1000,0]
[null,null,null,null,null,null,null,null,null,null,null,null,0,-1000,0,null,0,-1000,0]
[null,null,null,null,null,null,null,null,null,null,null,null,0,-1000,0,null,0,-1000,0]
[null,null,null,null,null,null,null,null,null,null,null,null,0,-1000,0,null,0,-1000,0]
[null,null,null,null,null,null,null,null,null,null,null,null,0,-1000,0,null,0,-1000,0]
[null,null,null,null,null,null,null,null,null,null,null,null,0,-1000,0,null,0,-1000,0]
[null,null,null,null,null,null,null,null,null,null,null,null,0,-1000,0,null,0,-1000,0]
[null,null,null,null,null,null,null,null,null,null,null,null,0,-1000,0,null,0,-1000,0]
[null,null,null,null,null,null,null,null,null,null,null,null,0,-1000,0,null,0,-1000,0]
[null,null,null,null,null,null,null,null,null,null,null,null,0,-1000,0,null,0,-1000,0]
[null,null,null,null,null,null,null,null,null,null,null,null,0,-1000,0,null,0,-1000,0]

{"sheet":"EEMOpen","index":14,"n_rows":202,"n_cols":15,"rows_kept":202,"cut":false,"hidden":false,"merged":[]}
["DSKD  69. Deutsche Meisterschaft und 19. Europameisterschaft 2017 Mettingen  ESKD"]
["  EM - Endläufe in der DSKD-Open - Klasse  "]
[]
[null,null,null,null,null,null,1,1,1,1,1,0,1]
["Bestzeit je Lauf",null,null,null,null,null,{"$f":"MIN(G9:G202)","v":36.28},36.270000000000003,0,0,0,0,0]
[]
["Start\nNummer","Gruppe","startet","Name","Vorname","Verein","Lauf 1","Lauf 2","Lauf 3","Lauf 4","Lauf 5","Lauf 6","Summe",null,"Platz"]
[]
[507,"Open",null,"Hollweck","Laura","MSVg Gerolzhofen",39.03,39.03,null,null,null,null,{"$f":"IF($G$4=1,\nIF(H9>1,(ABS(G9-H9)),0)+\nIF(I9>1,(ABS(G9-I9)),0)+\nIF(J9>1,(ABS(G9-J9)),0)+\nIF(K9>1,(ABS(G9-K9)),0)+\nIF(L9>1,(ABS(G9-L9)),0),\n\nIF(I9>1,(ABS(H9-I9)),0)+\nIF(J9>1,(ABS(H9-J9)),0)+\nIF(K9>1,(ABS(H9-K9)),0) )","v":0},{"$f":"IF(M9>0,M9*-1,-1000)","v":-1000},1]
[508,"Open",null,"Schleuß","Susan","SK-Verband Baden-Württemberg",36.28,36.270000000000003,null,null,null,null,9.9999999999980105E-3,-9.9999999999980105E-3,2]
[505,"Open",null,"Ohla","Thorben","SKK Moselflitzer Klüsserath",37.53,37.5,null,null,null,null,3.0000000000001137E-2,-3.0000000000001137E-2,3]
[512,"Open",null,"Schmidt","Michael","Friesenflitzer Varel",37.619999999999997,37.51,null,null,null,null,0.10999999999999943,-0.10999999999999943,4]
[511,"Open",null,"Schneider","Gabriele","Joker-Team Berlin ",46.12,45.95,null,null,null,null,0.1699999999999946,-0.1699999999999946,5]
[509,"Open",null,"Klimpel","Corinna","Power Crew Berlin",37.619999999999997,37.409999999999997,null,null,null,null,0.21000000000000085,-0.21000000000000085,6]
[501,"Open",null,"Feinauer","Louis","SV Losaurach",39.01,38.72,null,null,null,null,0.28999999999999915,-0.28999999999999915,7]
[null,null,null,null,null,null,null,null,null,null,null,null,0,-1000,{"$f":"IF(M16>0,RANK(N16,N:N),0)","v":0}]
[515,"Open",null,"Crook","Florian","Jugendclub Mettinger SK-Derby",37.83,37.520000000000003,null,null,null,null,0.30999999999999517,-0.30999999999999517,8]
[510,"Open",null,"Ricker","Andreas","Berkel Raser Billerbeck",41.09,40.549999999999997,null,null,null,null,0.54000000000000625,-0.54000000000000625,9]
[null,null,null,null,null,null,null,null,null,null,null,null,0,-1000,{"$f":"IF(M19>0,RANK(N19,N:N),0)","v":0}]
[null,null,null,null,null,null,null,null,null,null,null,null,0,-1000,0]
[null,null,null,null,null,null,null,null,null,null,null,null,0,-1000,0]
[null,null,null,null,null,null,null,null,null,null,null,null,0,-1000,0]
[null,null,null,null,null,null,null,null,null,null,null,null,0,-1000,0]
[null,null,null,null,null,null,null,null,null,null,null,null,0,-1000,0]
[null,null,null,null,null,null,null,null,null,null,null,null,0,-1000,0]
[null,null,null,null,null,null,null,null,null,null,null,null,0,-1000,0]
[null,null,null,null,null,null,null,null,null,null,null,null,0,-1000,0]
[null,null,null,null,null,null,null,null,null,null,null,null,0,-1000,0]
[null,null,null,null,null,null,null,null,null,null,null,null,0,-1000,0]
[null,null,null,null,null,null,null,null,null,null,null,null,0,-1000,0]
[null,null,null,null,null,null,null,null,null,null,null,null,0,-1000,0]
[null,null,null,null,null,null,null,null,null,null,null,null,0,-1000,0]
[null,null,null,null,null,null,null,null,null,null,null,null,0,-1000,0]
[null,null,null,null,null,null,null,null,null,null,null,null,0,-1000,0]
[null,null,null,null,null,null,null,null,null,null,null,null,0,-1000,0]
[null,null,null,null,null,null,null,null,null,null,null,null,0,-1000,0]
[null,null,null,null,null,null,null,null,null,null,null,null,0,-1000,0]
[null,null,null,null,null,null,null,null,null,null,null,null,0,-1000,0]
[null,null,null,null,null,null,null,null,null,null,null,null,0,-1000,0]
[null,null,null,null,null,null,null,null,null,null,null,null,0,-1000,0]
[null,null,null,null,null,null,null,null,null,null,null,null,0,-1000,0]
[null,null,null,null,null,null,null,null,null,null,null,null,0,-1000,0]
[null,null,null,null,null,null,null,null,null,null,null,null,0,-1000,0]
[null,null,null,null,null,null,null,null,null,null,null,null,0,-1000,0]
[null,null,null,null,null,null,null,null,null,null,null,null,0,-1000,0]
[null,null,null,null,null,null,null,null,null,null,null,null,0,-1000,0]
[null,null,null,null,null,null,null,null,null,null,null,null,0,-1000,0]
[null,null,null,null,null,null,null,null,null,null,null,null,0,-1000,0]
[null,null,null,null,null,null,null,null,null,null,null,null,0,-1000,0]
[null,null,null,null,null,null,null,null,null,null,null,null,0,-1000,0]
[null,null,null,null,null,null,null,null,null,null,null,null,0,-1000,0]
[null,null,null,null,null,null,null,null,null,null,null,null,0,-1000,0]
[null,null,null,null,null,null,null,null,null,null,null,null,0,-1000,0]
[null,null,null,null,null,null,null,null,null,null,null,null,0,-1000,0]
[null,null,null,null,null,null,null,null,null,null,null,null,0,-1000,0]
[null,null,null,null,null,null,null,null,null,null,null,null,0,-1000,0]
[null,null,null,null,null,null,null,null,null,null,null,null,0,-1000,0]
[null,null,null,null,null,null,null,null,null,null,null,null,0,-1000,0]
[null,null,null,null,null,null,null,null,null,null,null,null,0,-1000,0]
[null,null,null,null,null,null,null,null,null,null,null,null,0,-1000,0]
[null,null,null,null,null,null,null,null,null,null,null,null,0,-1000,0]
[null,null,null,null,null,null,null,null,null,null,null,null,0,-1000,0]
[null,null,null,null,null,null,null,null,null,null,null,null,0,-1000,0]
[null,null,null,null,null,null,null,null,null,null,null,null,0,-1000,0]
[null,null,null,null,null,null,null,null,null,null,null,null,0,-1000,0]
[null,null,null,null,null,null,null,null,null,null,null,null,0,-1000,0]
[null,null,null,null,null,null,null,null,null,null,null,null,0,-1000,0]
[null,null,null,null,null,null,null,null,null,null,null,null,0,-1000,0]
[null,null,null,null,null,null,null,null,null,null,null,null,0,-1000,0]
[null,null,null,null,null,null,null,null,null,null,null,null,0,-1000,0]
[null,null,null,null,null,null,null,null,null,null,null,null,0,-1000,0]
[null,null,null,null,null,null,null,null,null,null,null,null,0,-1000,0]
[null,null,null,null,null,null,null,null,null,null,null,null,{"$f":"IF($G$4=1,\nIF(H73>1,(ABS(G73-H73)),0)+\nIF(I73>1,(ABS(G73-I73)),0)+\nIF(J73>1,(ABS(G73-J73)),0)+\nIF(K73>1,(ABS(G73-K73)),0)+\nIF(L73>1,(ABS(G73-L73)),0),\n\nIF(I73>1,(ABS(H73-I73)),0)+\nIF(J73>1,(ABS(H73-J73)),0)+\nIF(K73>1,(ABS(H73-K73)),0) )","v":0},{"$f":"IF(M73>0,M73*-1,-1000)","v":-1000},0]
[null,null,null,null,null,null,null,null,null,null,null,null,0,-1000,0]
[null,null,null,null,null,null,null,null,null,null,null,null,0,-1000,0]
[null,null,null,null,null,null,null,null,null,null,null,null,0,-1000,0]
[null,null,null,null,null,null,null,null,null,null,null,null,0,-1000,0]
[null,null,null,null,null,null,null,null,null,null,null,null,0,-1000,0]
[null,null,null,null,null,null,null,null,null,null,null,null,0,-1000,0]
[null,null,null,null,null,null,null,null,null,null,null,null,0,-1000,0]
[null,null,null,null,null,null,null,null,null,null,null,null,0,-1000,0]
[null,null,null,null,null,null,null,null,null,null,null,null,0,-1000,0]
[null,null,null,null,null,null,null,null,null,null,null,null,0,-1000,{"$f":"IF(M83>0,RANK(N83,N:N),0)","v":0}]
[null,null,null,null,null,null,null,null,null,null,null,null,0,-1000,0]
[null,null,null,null,null,null,null,null,null,null,null,null,0,-1000,0]
[null,null,null,null,null,null,null,null,null,null,null,null,0,-1000,0]
[null,null,null,null,null,null,null,null,null,null,null,null,0,-1000,0]
[null,null,null,null,null,null,null,null,null,null,null,null,0,-1000,0]
[null,null,null,null,null,null,null,null,null,null,null,null,0,-1000,0]
[null,null,null,null,null,null,null,null,null,null,null,null,0,-1000,0]
[null,null,null,null,null,null,null,null,null,null,null,null,0,-1000,0]
[null,null,null,null,null,null,null,null,null,null,null,null,0,-1000,0]
[null,null,null,null,null,null,null,null,null,null,null,null,0,-1000,0]
[null,null,null,null,null,null,null,null,null,null,null,null,0,-1000,0]
[null,null,null,null,null,null,null,null,null,null,null,null,0,-1000,0]
[null,null,null,null,null,null,null,null,null,null,null,null,0,-1000,0]
[null,null,null,null,null,null,null,null,null,null,null,null,0,-1000,0]
[null,null,null,null,null,null,null,null,null,null,null,null,0,-1000,0]
[null,null,null,null,null,null,null,null,null,null,null,null,0,-1000,0]
[null,null,null,null,null,null,null,null,null,null,null,null,0,-1000,0]
[null,null,null,null,null,null,null,null,null,null,null,null,0,-1000,0]
[null,null,null,null,null,null,null,null,null,null,null,null,0,-1000,0]
[null,null,null,null,null,null,null,null,null,null,null,null,0,-1000,0]
[null,null,null,null,null,null,null,null,null,null,null,null,0,-1000,0]
[null,null,null,null,null,null,null,null,null,null,null,null,0,-1000,0]
[null,null,null,null,null,null,null,null,null,null,null,null,0,-1000,0]
[null,null,null,null,null,null,null,null,null,null,null,null,0,-1000,0]
[null,null,null,null,null,null,null,null,null,null,null,null,0,-1000,0]
[null,null,null,null,null,null,null,null,null,null,null,null,0,-1000,0]
[null,null,null,null,null,null,null,null,null,null,null,null,0,-1000,0]
[null,null,null,null,null,null,null,null,null,null,null,null,0,-1000,0]
[null,null,null,null,null,null,null,null,null,null,null,null,0,-1000,0]
[null,null,null,null,null,null,null,null,null,null,null,null,0,-1000,0]
[null,null,null,null,null,null,null,null,null,null,null,null,0,-1000,0]
[null,null,null,null,null,null,null,null,null,null,null,null,0,-1000,0]
[null,null,null,null,null,null,null,null,null,null,null,null,0,-1000,0]
[null,null,null,null,null,null,null,null,null,null,null,null,0,-1000,0]
[null,null,null,null,null,null,null,null,null,null,null,null,0,-1000,0]
[null,null,null,null,null,null,null,null,null,null,null,null,0,-1000,0]
[null,null,null,null,null,null,null,null,null,null,null,null,0,-1000,0]
[null,null,null,null,null,null,null,null,null,null,null,null,0,-1000,0]
[null,null,null,null,null,null,null,null,null,null,null,null,0,-1000,0]
[null,null,null,null,null,null,null,null,null,null,null,null,0,-1000,0]
[null,null,null,null,null,null,null,null,null,null,null,null,0,-1000,0]
[null,null,null,null,null,null,null,null,null,null,null,null,0,-1000,0]
[null,null,null,null,null,null,null,null,null,null,null,null,0,-1000,0]
[null,null,null,null,null,null,null,null,null,null,null,null,0,-1000,0]
[null,null,null,null,null,null,null,null,null,null,null,null,0,-1000,0]
[null,null,null,null,null,null,null,null,null,null,null,null,0,-1000,0]
[null,null,null,null,null,null,null,null,null,null,null,null,0,-1000,0]
[null,null,null,null,null,null,null,null,null,null,null,null,0,-1000,0]
[null,null,null,null,null,null,null,null,null,null,null,null,0,-1000,0]
[null,null,null,null,null,null,null,null,null,null,null,null,0,-1000,0]
[null,null,null,null,null,null,null,null,null,null,null,null,0,-1000,0]
[null,null,null,null,null,null,null,null,null,null,null,null,0,-1000,0]
[null,null,null,null,null,null,null,null,null,null,null,null,0,-1000,0]
[null,null,null,null,null,null,null,null,null,null,null,null,{"$f":"IF($G$4=1,\nIF(H137>1,(ABS(G137-H137)),0)+\nIF(I137>1,(ABS(G137-I137)),0)+\nIF(J137>1,(ABS(G137-J137)),0)+\nIF(K137>1,(ABS(G137-K137)),0)+\nIF(L137>1,(ABS(G137-L137)),0),\n\nIF(I137>1,(ABS(H137-I137)),0)+\nIF(J137>1,(ABS(H137-J137)),0)+\nIF(K137>1,(ABS(H137-K137)),0) )","v":0},{"$f":"IF(M137>0,M137*-1,-1000)","v":-1000},0]
[null,null,null,null,null,null,null,null,null,null,null,null,0,-1000,0]
[null,null,null,null,null,null,null,null,null,null,null,null,0,-1000,0]
[null,null,null,null,null,null,null,null,null,null,null,null,0,-1000,0]
[null,null,null,null,null,null,null,null,null,null,null,null,0,-1000,0]
[null,null,null,null,null,null,null,null,null,null,null,null,0,-1000,0]
[null,null,null,null,null,null,null,null,null,null,null,null,0,-1000,0]
[null,null,null,null,null,null,null,null,null,null,null,null,0,-1000,0]
[null,null,null,null,null,null,null,null,null,null,null,null,0,-1000,0]
[null,null,null,null,null,null,null,null,null,null,null,null,0,-1000,0]
[null,null,null,null,null,null,null,null,null,null,null,null,0,-1000,{"$f":"IF(M147>0,RANK(N147,N:N),0)","v":0}]
[null,null,null,null,null,null,null,null,null,null,null,null,0,-1000,0]
[null,null,null,null,null,null,null,null,null,null,null,null,0,-1000,0]
[null,null,null,null,null,null,null,null,null,null,null,null,0,-1000,0]
[null,null,null,null,null,null,null,null,null,null,null,null,0,-1000,0]
[null,null,null,null,null,null,null,null,null,null,null,null,0,-1000,0]
[null,null,null,null,null,null,null,null,null,null,null,null,0,-1000,0]
[null,null,null,null,null,null,null,null,null,null,null,null,0,-1000,0]
[null,null,null,null,null,null,null,null,null,null,null,null,0,-1000,0]
[null,null,null,null,null,null,null,null,null,null,null,null,0,-1000,0]
[null,null,null,null,null,null,null,null,null,null,null,null,0,-1000,0]
[null,null,null,null,null,null,null,null,null,null,null,null,0,-1000,0]
[null,null,null,null,null,null,null,null,null,null,null,null,0,-1000,0]
[null,null,null,null,null,null,null,null,null,null,null,null,0,-1000,0]
[null,null,null,null,null,null,null,null,null,null,null,null,0,-1000,0]
[null,null,null,null,null,null,null,null,null,null,null,null,0,-1000,0]
[null,null,null,null,null,null,null,null,null,null,null,null,0,-1000,0]
[null,null,null,null,null,null,null,null,null,null,null,null,0,-1000,0]
[null,null,null,null,null,null,null,null,null,null,null,null,0,-1000,0]
[null,null,null,null,null,null,null,null,null,null,null,null,0,-1000,0]
[null,null,null,null,null,null,null,null,null,null,null,null,0,-1000,0]
[null,null,null,null,null,null,null,null,null,null,null,null,0,-1000,0]
[null,null,null,null,null,null,null,null,null,null,null,null,0,-1000,0]
[null,null,null,null,null,null,null,null,null,null,null,null,0,-1000,0]
[null,null,null,null,null,null,null,null,null,null,null,null,0,-1000,0]
[null,null,null,null,null,null,null,null,null,null,null,null,0,-1000,0]
[null,null,null,null,null,null,null,null,null,null,null,null,0,-1000,0]
[null,null,null,null,null,null,null,null,null,null,null,null,0,-1000,0]
[null,null,null,null,null,null,null,null,null,null,null,null,0,-1000,0]
[null,null,null,null,null,null,null,null,null,null,null,null,0,-1000,0]
[null,null,null,null,null,null,null,null,null,null,null,null,0,-1000,0]
[null,null,null,null,null,null,null,null,null,null,null,null,0,-1000,0]
[null,null,null,null,null,null,null,null,null,null,null,null,0,-1000,0]
[null,null,null,null,null,null,null,null,null,null,null,null,0,-1000,0]
[null,null,null,null,null,null,null,null,null,null,null,null,0,-1000,0]
[null,null,null,null,null,null,null,null,null,null,null,null,0,-1000,0]
[null,null,null,null,null,null,null,null,null,null,null,null,0,-1000,0]
[null,null,null,null,null,null,null,null,null,null,null,null,0,-1000,0]
[null,null,null,null,null,null,null,null,null,null,null,null,0,-1000,0]
[null,null,null,null,null,null,null,null,null,null,null,null,0,-1000,0]
[null,null,null,null,null,null,null,null,null,null,null,null,0,-1000,0]
[null,null,null,null,null,null,null,null,null,null,null,null,0,-1000,0]
[null,null,null,null,null,null,null,null,null,null,null,null,0,-1000,0]
[null,null,null,null,null,null,null,null,null,null,null,null,0,-1000,0]
[null,null,null,null,null,null,null,null,null,null,null,null,0,-1000,0]
[null,null,null,null,null,null,null,null,null,null,null,null,0,-1000,0]
[null,null,null,null,null,null,null,null,null,null,null,null,0,-1000,0]
[null,null,null,null,null,null,null,null,null,null,null,null,0,-1000,0]
[null,null,null,null,null,null,null,null,null,null,null,null,0,-1000,0]
[null,null,null,null,null,null,null,null,null,null,null,null,0,-1000,0]
[null,null,null,null,null,null,null,null,null,null,null,null,0,-1000,0]
[null,null,null,null,null,null,null,null,null,null,null,null,0,-1000,0]
[null,null,null,null,null,null,null,null,null,null,null,null,0,-1000,0]
[null,null,null,null,null,null,null,null,null,null,null,null,0,-1000,0]
[null,null,null,null,null,null,null,null,null,null,null,null,{"$f":"IF($G$4=1,\nIF(H201>1,(ABS(G201-H201)),0)+\nIF(I201>1,(ABS(G201-I201)),0)+\nIF(J201>1,(ABS(G201-J201)),0)+\nIF(K201>1,(ABS(G201-K201)),0)+\nIF(L201>1,(ABS(G201-L201)),0),\n\nIF(I201>1,(ABS(H201-I201)),0)+\nIF(J201>1,(ABS(H201-J201)),0)+\nIF(K201>1,(ABS(H201-K201)),0) )","v":0},{"$f":"IF(M201>0,M201*-1,-1000)","v":-1000},0]
[null,null,null,null,null,null,null,null,null,null,null,null,0,-1000,0]